{"text_format":"2","workbook":"xlsx","n_sheets":8,"sheets":["SETUP and Instructions","C19RM Budget","Annex A - COVID-19 Diagc Tests","Annex B - PPE and other HP","Budget Summary","Free worksheet","ctlgs","PRList"],"not_rendered":{"charts":0,"images":1,"macros":0,"external_links":0,"defined_names":4,"comments":0,"pivot_tables":0},"unopened":[],"bounds":{"document_bytes":16777216,"sheet_cells":100000,"run_cost":"one","rows_first":2000,"rows_last":500,"rows_between":2000,"halvings":0,"cell_chars":16384,"cell_head_chars":4096},"cells_cut":0,"cells_raw":0,"read":"whole","date_system":"1900"}

{"sheet":"SETUP and Instructions","index":0,"n_rows":124,"n_cols":54,"rows_kept":124,"cut":false,"hidden":false,"merged":[[19,1,19,6],[13,1,18,6],[20,1,20,6],[1,1,1,6],[50,53,50,54],[8,5,8,6],[25,3,25,6],[26,3,26,6]]}
[{"$nulls":6},"Date Published: 10 June 2020 (rev 15 July)",{"$nulls":5},"Update 03 July"]
[null,"C19RM Funding Request Supplementary Template ",{"$nulls":10},"Control field 1",{"$nulls":12},"Please Select"]
[{"$nulls":12},{"$f":"SUM(M7:M11)","v":0},{"$nulls":12},"Please Select"]
[null,"Country",null,null,null,"Grant Currency:","Please Select"]
[{"$nulls":5},"Local currency","Please Select"]
[null,"Rceipient/Implementer name","Grant number",null,null,{"$f":"IF(G4=\"Please Select\", \"Fx rate to grant currency\", \"Exchange rate to \" &G4 &\" (1 \"&G4 &\"= )\")","v":"Fx rate to grant currency"},1,{"$f":"IF(G5=\"Please select\",\"\",G5)","v":""}]
[1,null,{"$f":"IF(ISBLANK(B7)=TRUE,\"\",VLOOKUP(B7,PRList!B:E,2,FALSE))","v":""},{"$nulls":9},{"$f":"IF(N7=\"n/A\",0,1)","v":0},{"$f":"IF(ISBLANK(B7)=TRUE,\"N/A\",VLOOKUP(B7,PRList!B:E,2,FALSE))","v":"N/A"}]
[2,null,{"$f":"IF(ISBLANK(B8)=TRUE,\"\",VLOOKUP(B8,PRList!B:E,2,FALSE))","v":""},null,null,"definition of cell highlights",{"$nulls":6},{"$f":"IF(N8=\"n/A\",0,1)","v":0},{"$f":"IF(ISBLANK(B8)=TRUE,\"N/A\",VLOOKUP(B8,PRList!B:E,2,FALSE))","v":"N/A"}]
[3,null,{"$f":"IF(ISBLANK(B9)=TRUE,\"\",VLOOKUP(B9,PRList!B:E,2,FALSE))","v":""},null,null,"Locked cells, no data entry is required"]
[4,null,{"$f":"IF(ISBLANK(B10)=TRUE,\"\",VLOOKUP(B10,PRList!B:E,2,FALSE))","v":""},null,null,"Data entry cells: please enter the necessary data"]
[5,null,{"$f":"IF(ISBLANK(B11)=TRUE,\"\",VLOOKUP(B11,PRList!B:E,2,FALSE))","v":""},null,null,"Drop down (multi-choice) fields. Please select an applicable value from the list",{"$nulls":6},{"$f":"IF(N11=\"n/A\",0,1)","v":0},{"$f":"IF(ISBLANK(B11)=TRUE,\"N/A\",VLOOKUP(B11,PRList!B:E,2,FALSE))","v":"N/A"}]
[{"$nulls":5},"Optional data entry cells - please enter the data if available"]
[]
[null,"This template has been developed to facilitate the preparation and submission of C19RM funding requests by the CCMs and Global Fund's review of these submissions. \nPlease do not tamper or otherwise unprotect the file to change its structure. This may affect the functionality of the template. \nPlease review carefully instructions presented on this worksheet, as well as notes presented on other worksheets\n\nCCM and the selected Principal Recipient shall use this C19RM Funding Request Supplementary Template  to support its C19RM request\n- Activities can be budgeted in two currencies: in a grant currency and/or in a local currency. Please indicate the grant currency in the upper left corner on this  worksheet. The selection will automatically be replicated in other worksheets. (A grant currency in this context refers to a currency of the country's existing grant that is implemented by the Principal Recipient that is also selected as an implementer of C19RM activities).\nPlease chose grant and local currency prior to using the template. Once the currencies are selected and template is filled in, please do not change currency, otherwise the currency columns/cells on all 3 worksheets need to be manually adjusted to capture new values;\n'Please make sure that 'payment currency' is indicated for each row (where applicable). if an unit cost for an activity is inserted but no \"payment currency\" is selected, then the template will consider that such unit costs are entered in the 'grant currency'\n\n"]
[{"$nulls":12},"Please Select"]
[{"$nulls":12},"Please Select"]
[]
[{"$nulls":12},{"$f":"if","v":{"$error":"#NAME?"}}]
[]
[null,"- Detailed costings and clear budgetary assumptions shall be developed and presented as per the below table for each activity/intervention included in the C19RM request. This will facilitate the review and rapid approval of submitted funding requests. Additional assumptions/information can be entered in the 'Free sheet' or presented in separate attachments.  \n- Please fill up the 'C19RM budget worksheet' and provided annexes  with necessary information. Information and estimated budget on health products procurement, including upstream logistics costs, shall be entered on 'COVID 19 diagnostic tests' and 'PPE and other HP' worksheets. \n- Cells highlighted in gray are locked and no data entry is expected in such cells\n-  Please provide necessary description for each item/activity in the below list. Additional information can be provided under the 'Reference/comment' column'\n\n"]
[null,"\n- Useful WHO references for planning/budgeting purpose (but not limited to):        \n(a) Covid-19 Partners Platform (portal): https://covid-19-response.org/        \n(b) WHO Operational Planning Guidelines to Support Country Preparedness and Response: \nhttps://www.who.int/docs/default-source/coronaviruse/covid-19-sprp-unct-guidelines.pdf?sfvrsn=81ff43d8_4\"        \n(c) WHO Disease Commodity Packages for nCoV (6March2020): https://www.who.int/emergencies/what-we-do/prevention-readiness/disease-commodity-packages/dcp-ncov.pdf?ua=1        \n(d) Emergency Global Supply Chain System (COVID-19) catalogue: https://www.who.int/publications-detail/emergency-global-supply-chain-system-(covid-19)-catalogue        \n(e) WHO Covid-19 Essential Supplies Forecasting Tool (COVID-ESFT) v2.0: https://www.who.int/who-documents-detail/covid-19-essential-supplies-forecasting-tool        \n"]
[]
[]
[]
[null,"Mapping of Activity categories with the module and interventions "]
[null,"Activity Category","Module","Intervention"]
[null,"Mitigating COVID-19 impact on HIV, TB, Malaria programs","COVID-19","Risk mitigation for disease programs"]
[null,"Reinforcing national COVID-19 response","COVID-19","COVID-19 control and containment including health systems strengthening"]
[null,"Urgent improvements in health and community systems","COVID-19","COVID-19 control and containment including health systems strengthening"]
{"$rows_empty":21}
[{"$nulls":53},"P2"]
[]
[{"$nulls":21},500,{"$nulls":21},{"$f":"N53","v":0},{"$nulls":9},{"$f":"AO53*V53","v":0}]
[{"$nulls":21},10,{"$nulls":21},{"$f":"N54","v":0},{"$nulls":9},{"$f":"AO54*V54","v":0}]
[{"$nulls":21},20,{"$nulls":21},0,{"$nulls":9},0]
[{"$nulls":43},0,{"$nulls":9},0]
[{"$nulls":43},0,{"$nulls":9},0]
[{"$nulls":43},0,{"$nulls":9},0]
[{"$nulls":43},0,{"$nulls":9},0]
[{"$nulls":43},0,{"$nulls":9},0]
[{"$nulls":43},0,{"$nulls":9},0]
[{"$nulls":43},0,{"$nulls":9},0]
[{"$nulls":43},0,{"$nulls":9},0]
[{"$nulls":43},0,{"$nulls":9},0]
[{"$nulls":43},0,{"$nulls":9},0]
[{"$nulls":43},0,{"$nulls":9},0]
[{"$nulls":43},0,{"$nulls":9},0]
[{"$nulls":43},0,{"$nulls":9},0]
[{"$nulls":43},0,{"$nulls":9},0]
[{"$nulls":43},0,{"$nulls":9},0]
[{"$nulls":43},0,{"$nulls":9},0]
[{"$nulls":43},0,{"$nulls":9},0]
[{"$nulls":43},0,{"$nulls":9},0]
[{"$nulls":43},0,{"$nulls":9},0]
[{"$nulls":43},0,{"$nulls":9},0]
[{"$nulls":43},0,{"$nulls":9},0]
[{"$nulls":43},0,{"$nulls":9},0]
[{"$nulls":43},0,{"$nulls":9},0]
[{"$nulls":43},0,{"$nulls":9},0]
[{"$nulls":43},0,{"$nulls":9},0]
[{"$nulls":43},0,{"$nulls":9},0]
[{"$nulls":43},0,{"$nulls":9},0]
[{"$nulls":43},0,{"$nulls":9},0]
[{"$nulls":43},0,{"$nulls":9},0]
[{"$nulls":43},0,{"$nulls":9},0]
[{"$nulls":43},0,{"$nulls":9},0]
[{"$nulls":43},0,{"$nulls":9},0]
[{"$nulls":43},0,{"$nulls":9},0]
[{"$nulls":43},0,{"$nulls":9},0]
[{"$nulls":43},0,{"$nulls":9},0]
[{"$nulls":43},0,{"$nulls":9},0]
[{"$nulls":43},0,{"$nulls":9},0]
[{"$nulls":43},0,{"$nulls":9},0]
[{"$nulls":43},0,{"$nulls":9},0]
[{"$nulls":43},0,{"$nulls":9},0]
[{"$nulls":43},0,{"$nulls":9},0]
[{"$nulls":43},0,{"$nulls":9},0]
[{"$nulls":43},0,{"$nulls":9},0]
[{"$nulls":43},0,{"$nulls":9},0]
[{"$nulls":43},0,{"$nulls":9},0]
[{"$nulls":43},0,{"$nulls":9},0]
[{"$nulls":43},0,{"$nulls":9},0]
[{"$nulls":43},0,{"$nulls":9},0]
[{"$nulls":43},0,{"$nulls":9},0]
[{"$nulls":43},0,{"$nulls":9},0]
[{"$nulls":43},0,{"$nulls":9},0]
[{"$nulls":43},0,{"$nulls":9},0]
[{"$nulls":43},0,{"$nulls":9},0]
[{"$nulls":43},0,{"$nulls":9},0]
[{"$nulls":43},0,{"$nulls":9},0]
[{"$nulls":43},0,{"$nulls":9},0]
[{"$nulls":43},0,{"$nulls":9},0]
[]
[]
[{"$nulls":45},{"$f":"SUMIFS($AT$53:$AT$112,$B$53:$B$112,$AN115,$C$53:$C$112,$AO115)","v":0},{"$f":"SUMIFS($AU$53:$AU$112,$B$53:$B$112,$AN115,$C$53:$C$112,$AO115)","v":0},{"$f":"SUMIFS($AV$53:$AV$112,$B$53:$B$112,$AN115,$C$53:$C$112,$AO115)","v":0},{"$f":"SUMIFS($AW$53:$AW$112,$B$53:$B$112,$AN115,$C$53:$C$112,$AO115)","v":0},{"$nulls":4},{"$f":"SUMIFS($BB$53:$BB$112,$B$53:$B$112,$AN115,$C$53:$C$112,$AO115)","v":0}]
[{"$nulls":45},{"$f":"SUMIFS($AT$53:$AT$112,$B$53:$B$112,$AN116,$C$53:$C$112,$AO116)","v":0},{"$f":"SUMIFS($AT$53:$AT$112,$B$53:$B$112,$AN116,$C$53:$C$112,$AO116)","v":0},0,0,{"$nulls":4},{"$f":"SUMIFS($AT$53:$AT$112,$B$53:$B$112,$AN116,$C$53:$C$112,$AO116)","v":0}]
[{"$nulls":45},0,0,0,0,{"$nulls":4},0]
[{"$nulls":45},0,0,0,0,{"$nulls":4},0]
[{"$nulls":45},0,0,0,0,{"$nulls":4},0]
[{"$nulls":45},0,0,0,0,{"$nulls":4},0]
[{"$nulls":45},0,0,0,0,{"$nulls":4},0]
[{"$nulls":45},0,0,0,0,{"$nulls":4},0]
[{"$nulls":45},0,0,0,0,{"$nulls":4},0]
[{"$nulls":45},{"$f":"AT113-SUM(AT115:AT123)","v":0},{"$f":"AU113-SUM(AU115:AU123)","v":0},{"$f":"AV113-SUM(AV115:AV123)","v":0},{"$f":"AW113-SUM(AW115:AW123)","v":0},{"$nulls":4},{"$f":"BB113-SUM(BB115:BB123)","v":0}]

{"sheet":"C19RM Budget","index":1,"n_rows":155,"n_cols":41,"rows_kept":155,"cut":false,"hidden":false,"merged":[[0,0,1,0],[5,7,6,7],[8,1,8,2],[9,1,9,2],[5,0,6,0],[0,4,0,6],[5,6,6,6],[5,4,6,4],[5,5,6,5],[5,1,6,1],[5,2,6,2],[5,3,6,3],[13,1,13,2],[14,1,14,2],[15,1,15,2],[19,1,19,2],[5,23,6,23],[11,1,11,2],[12,1,12,2],[5,14,5,19],[5,20,5,21],[5,22,6,22],[10,1,10,2],[5,8,5,13],[16,1,16,2],[17,1,17,2],[18,1,18,2],[5,24,6,24],[0,15,0,17],[0,18,0,19],[0,20,0,21],[1,18,1,19],[2,18,2,19],[3,18,3,19],[1,20,1,21],[2,20,2,21],[3,20,3,21]]}
["C19RM Funding Request Supplementary Template ","Grant Currency:",{"$f":"IF('SETUP and Instructions'!G4=\"Please select\", \"No grant currency is selected on Setup Tab\",'SETUP and Instructions'!G4)","v":"No grant currency is selected on Setup Tab"},null,"Summary",null,null,"Priority 1","Priority 2",{"$nulls":6},"Summary",null,null,"Priority 1",null,"Priority 2",{"$nulls":14},"Service column"]
[null,"Local Currency",{"$f":"IF('SETUP and Instructions'!G5=\"Please select\", \"No local currency is selected on Setup Tab\",'SETUP and Instructions'!G5)","v":"No local currency is selected on Setup Tab"},null,"Sub Total Health Products",null,null,{"$f":"S2","v":0},{"$f":"U2","v":0},{"$nulls":6},"Sub Total Health Products",null,null,{"$f":"IF(ISNUMBER(SUM(T9:T20))=TRUE,SUM(T9:T20),0)","v":0},null,{"$f":"IF(ISNUMBER(SUM(V9:V20))=TRUE,SUM(V9:V20),0)","v":0},{"$nulls":14},{"$f":"IF(C1=\"Please select\", \"ERROR, no grant currency is selected\",C1)","v":"No grant currency is selected on Setup Tab"}]
[null,{"$f":"'SETUP and Instructions'!F6","v":"Fx rate to grant currency"},{"$f":"'SETUP and Instructions'!G6","v":1},null,"Sub Total activities and non-HP",null,null,{"$f":"S3","v":0},{"$f":"U3","v":0},{"$nulls":6},"Sub Total activities and non-HP",null,null,{"$f":"IF(ISNUMBER(SUM(T23:T154))=TRUE,SUM(T23:T154),0)","v":0},null,{"$f":"IF(ISNUMBER(SUM(V23:V154))=TRUE,SUM(V23:V154),0)","v":0},{"$nulls":14},{"$f":"IF(C2=\"Please select\", \"ERROR, no local currency is selected\",C2)","v":"No local currency is selected on Setup Tab"}]
[{"$nulls":4},"Total ",null,null,{"$f":"S4","v":""},{"$f":"U4","v":""},{"$nulls":6},"Total ",null,null,{"$f":"IF(S2+S3>0,S3+S2,\"\")","v":""},null,{"$f":"IF(U2+U3>0,U3+U2,\"\")","v":""}]
[{"$nulls":35},"Please select"]
["Activity category","Sub-Categery","Activity description","PR/Grant","Unit of measure ","Payment Currency ","Unit Price (Payment currency)",{"$f":"IF('SETUP and Instructions'!G4=\"Please select\",\"Unit Price - grant currency\",\"Unit Price (\"&C1&\")\")","v":"Unit Price - grant currency"},"Quantity for PRIORITY 1",{"$nulls":5},"Budget for activities under the PRIORITY 1",{"$nulls":5},"Priority 2",null,"Reference for Activity / CCM or PR Comment","LFA comment","GF comment"]
[{"$nulls":8},"Quantity \n(Q2-2020)","Quantity \n(Q3-2020)","Quantity \n(Q4-2020)","Quantity \n(Q1-2021)","Quantity \n(Q2-2021)","Total","Q2-2020","Q3-2020","Q4-2020","Q1-2021","Q2-2021",{"$f":"IF('SETUP and Instructions'!G4=\"Please select\",\"Total budget - grant currency\",\"Total Budget Price (\"&C1&\")\")","v":"Total budget - grant currency"},"Quantity","Total grant currency "]
["Health Products"]
["Mitigating impact of Covid-19","Diagnostic Products",null,{"$f":"IF('SETUP and Instructions'!$M$3=1,'SETUP and Instructions'!$C$7,\"\")","v":""},{"$nulls":10},0,{"$f":"'Annex A - COVID-19 Diagc Tests'!AQ142","v":0},{"$f":"'Annex A - COVID-19 Diagc Tests'!AR142","v":0},{"$f":"'Annex A - COVID-19 Diagc Tests'!AS142","v":0},0,{"$f":"SUM(O9:S9)","v":0},null,{"$f":"'Annex A - COVID-19 Diagc Tests'!AW142","v":0}]
["Mitigating impact of Covid-19","PPE & Infection Control (products)",null,{"$f":"IF('SETUP and Instructions'!$M$3=1,'SETUP and Instructions'!$C$7,\"\")","v":""},{"$nulls":10},0,{"$f":"'Annex B - PPE and other HP'!AT139+'Annex B - PPE and other HP'!AX25","v":0},{"$f":"'Annex B - PPE and other HP'!AU139+'Annex B - PPE and other HP'!AY25","v":0},{"$f":"'Annex B - PPE and other HP'!AV139+'Annex B - PPE and other HP'!AZ25","v":0},0,{"$f":"SUM(O10:S10)","v":0},null,{"$f":"'Annex B - PPE and other HP'!BB139+'Annex B - PPE and other HP'!BC25","v":0}]
["Mitigating impact of Covid-19","Treatment, Life support products",null,{"$f":"IF('SETUP and Instructions'!$M$3=1,'SETUP and Instructions'!$C$7,\"\")","v":""},{"$nulls":10},0,{"$f":"'Annex B - PPE and other HP'!AT140","v":0},{"$f":"'Annex B - PPE and other HP'!AU140","v":0},{"$f":"'Annex B - PPE and other HP'!AV140","v":0},0,0,null,{"$f":"'Annex B - PPE and other HP'!BB140","v":0}]
["Mitigating impact of Covid-19","All other Health Products",null,{"$f":"IF('SETUP and Instructions'!$M$3=1,'SETUP and Instructions'!$C$7,\"\")","v":""},{"$nulls":10},0,{"$f":"'Annex B - PPE and other HP'!AT141","v":0},{"$f":"'Annex B - PPE and other HP'!AU141","v":0},{"$f":"'Annex B - PPE and other HP'!AV141","v":0},0,0,null,{"$f":"'Annex B - PPE and other HP'!BB141","v":0}]
["Reinforcing national response","PPE & Infection Control (products)",null,{"$f":"IF('SETUP and Instructions'!$M$3=1,'SETUP and Instructions'!$C$7,\"\")","v":""},{"$nulls":10},0,{"$f":"'Annex B - PPE and other HP'!AT142+'Annex B - PPE and other HP'!AT25","v":0},{"$f":"'Annex B - PPE and other HP'!AU142+'Annex B - PPE and other HP'!AU25","v":0},{"$f":"'Annex B - PPE and other HP'!AV142+'Annex B - PPE and other HP'!AV25","v":0},0,0,null,{"$f":"'Annex B - PPE and other HP'!BB142+'Annex B - PPE and other HP'!BB25","v":0}]
["Reinforcing national response","Treatment, Life support products",null,{"$f":"IF('SETUP and Instructions'!$M$3=1,'SETUP and Instructions'!$C$7,\"\")","v":""},null,null,"No Data entry is required here, please complete Annexes A and B",{"$nulls":7},0,{"$f":"'Annex B - PPE and other HP'!AT143+'Annex B - PPE and other HP'!AT44","v":0},{"$f":"'Annex B - PPE and other HP'!AU143+'Annex B - PPE and other HP'!AU44","v":0},{"$f":"'Annex B - PPE and other HP'!AV143+'Annex B - PPE and other HP'!AV44","v":0},0,0,null,{"$f":"'Annex B - PPE and other HP'!BB143++'Annex B - PPE and other HP'!BB44","v":0}]
["Reinforcing national response","Diagnostic Products",null,{"$f":"IF('SETUP and Instructions'!$M$3=1,'SETUP and Instructions'!$C$7,\"\")","v":""},{"$nulls":10},0,{"$f":"'Annex A - COVID-19 Diagc Tests'!AQ148","v":0},{"$f":"'Annex A - COVID-19 Diagc Tests'!AR148","v":0},{"$f":"'Annex A - COVID-19 Diagc Tests'!AS148","v":0},0,0,null,{"$f":"'Annex A - COVID-19 Diagc Tests'!AW148","v":0},{"$nulls":18},{"$f":"ctlgs!E19","v":"Health worker protection/IC activities "}]
["Reinforcing national response","All other Health Products",null,{"$f":"IF('SETUP and Instructions'!$M$3=1,'SETUP and Instructions'!$C$7,\"\")","v":""},{"$nulls":10},0,{"$f":"'Annex B - PPE and other HP'!AT150","v":0},{"$f":"'Annex B - PPE and other HP'!AU150","v":0},{"$f":"'Annex B - PPE and other HP'!AV150","v":0},0,0,null,{"$f":"'Annex B - PPE and other HP'!BB150","v":0},{"$nulls":18},{"$f":"ctlgs!E20","v":"Training / Info Campaigns"}]
["Improvements in health and comm. Syst","Diagnostic Products",null,{"$f":"IF('SETUP and Instructions'!$M$3=1,'SETUP and Instructions'!$C$7,\"\")","v":""},{"$nulls":10},0,{"$f":"'Annex A - COVID-19 Diagc Tests'!AQ144","v":0},{"$f":"'Annex A - COVID-19 Diagc Tests'!AR144","v":0},{"$f":"'Annex A - COVID-19 Diagc Tests'!AS144","v":0},0,0,null,{"$f":"'Annex A - COVID-19 Diagc Tests'!AW144","v":0},{"$nulls":13},{"$f":"ctlgs!G7","v":"Mitigating impact of Covid-19"},{"$nulls":4},{"$f":"ctlgs!E21","v":"Treatment (activities/services)"}]
["Improvements in health and comm. Syst","Treatment, Life support products",null,{"$f":"IF('SETUP and Instructions'!$M$3=1,'SETUP and Instructions'!$C$7,\"\")","v":""},{"$nulls":10},0,{"$f":"'Annex B - PPE and other HP'!AT146","v":0},{"$f":"'Annex B - PPE and other HP'!AU146","v":0},{"$f":"'Annex B - PPE and other HP'!AV146","v":0},0,0,null,{"$f":"'Annex B - PPE and other HP'!BB146","v":0},{"$nulls":13},{"$f":"ctlgs!G8","v":"Reinforcing national response"},{"$nulls":4},{"$f":"ctlgs!E22","v":"Diagnosis / Testing services"}]
["Improvements in health and comm. Syst","PPE & Infection Control (products)",null,{"$f":"IF('SETUP and Instructions'!$M$3=1,'SETUP and Instructions'!$C$7,\"\")","v":""},{"$nulls":10},0,{"$f":"'Annex B - PPE and other HP'!AT145","v":0},{"$f":"'Annex B - PPE and other HP'!AU145","v":0},{"$f":"'Annex B - PPE and other HP'!AV145","v":0},0,0,null,{"$f":"'Annex B - PPE and other HP'!BB145","v":0},{"$nulls":13},{"$f":"ctlgs!G9","v":"Improvements in health and comm. Syst"},{"$nulls":4},{"$f":"ctlgs!E23","v":"Surveillance and M&E  activities"}]
["Improvements in health and comm. Syst","All other Health Products",null,{"$f":"IF('SETUP and Instructions'!$M$3=1,'SETUP and Instructions'!$C$7,\"\")","v":""},{"$nulls":10},0,{"$f":"'Annex B - PPE and other HP'!AT147","v":0},{"$f":"'Annex B - PPE and other HP'!AU147","v":0},{"$f":"'Annex B - PPE and other HP'!AV147","v":0},0,0,null,{"$f":"'Annex B - PPE and other HP'!BB147","v":0},{"$nulls":18},{"$f":"ctlgs!E24","v":"Other"}]
["Sub-Total Health Products"]
["Activities and non-health products",{"$nulls":34},"Category check","ProdType check","If unit C or Q entered","IfCorQ and No Cat","if CorQno cat"]
[null,null,null,{"$f":"IF('SETUP and Instructions'!$M$3=1,'SETUP and Instructions'!$C$7,\"\")","v":""},null,"USD",null,{"$f":"IF(ISBLANK(G23)=TRUE,\"\",IF(F23=$C$2,G23/$C$3,G23))","v":""},{"$nulls":5},{"$f":"SUM(I23+J23+K23+L23+M23)","v":0},{"$f":"IF(ISNUMBER($H23*I23)=TRUE,$H23*I23,\"\")","v":""},{"$f":"IF(ISNUMBER($H23*J23)=TRUE,$H23*J23,\"\")","v":""},{"$f":"IF(ISNUMBER($H23*K23)=TRUE,$H23*K23,\"\")","v":""},{"$f":"IF(ISNUMBER($H23*L23)=TRUE,$H23*L23,\"\")","v":""},{"$f":"IF(ISNUMBER($H23*M23)=TRUE,$H23*M23,\"\")","v":""},{"$f":"SUM(O23:S23)","v":0},null,{"$f":"IF(ISNUMBER(U23*H23)=TRUE,U23*H23,\"\")","v":""},{"$nulls":13},{"$f":"IF(A23=$AJ$17,1,IF(A23=$AJ$18,1,IF(A23=$AJ$19,1,0)))","v":0},{"$f":"IF(B23=$AO$15,1,IF(B23=$AO$16,1,IF(B23=$AO$17,1,IF(B23=$AO$18,1,IF(B23=$AO$19,1,IF(B23=$AO$20,1,0))))))","v":0},{"$f":"IF(SUM(I23:M23)<>0,1,IF(G23<>0,1,IF(U23<>0,1,0)))","v":0},{"$f":"IF(AL23=0,0,IF(AJ23=0,\"E\",0))","v":0},{"$f":"IF(AL23=0,0,IF(AK23=0,\"E\",0))","v":0}]
[null,null,null,{"$f":"IF('SETUP and Instructions'!$M$3=1,'SETUP and Instructions'!$C$7,\"\")","v":""},null,null,null,{"$f":"IF(ISBLANK(G24)=TRUE,\"\",IF(F24=$C$2,G24/$C$3,G24))","v":""},{"$nulls":5},{"$f":"SUM(I24+J24+K24+L24+M24)","v":0},{"$f":"IF(ISNUMBER($H24*I24)=TRUE,$H24*I24,\"\")","v":""},{"$f":"IF(ISNUMBER($H24*J24)=TRUE,$H24*J24,\"\")","v":""},{"$f":"IF(ISNUMBER($H24*K24)=TRUE,$H24*K24,\"\")","v":""},{"$f":"IF(ISNUMBER($H24*L24)=TRUE,$H24*L24,\"\")","v":""},{"$f":"IF(ISNUMBER($H24*M24)=TRUE,$H24*M24,\"\")","v":""},{"$f":"SUM(O24:S24)","v":0},null,{"$f":"IF(ISNUMBER(U24*H24)=TRUE,U24*H24,\"\")","v":""},{"$nulls":13},{"$f":"IF(A24=$AJ$17,1,IF(A24=$AJ$18,1,IF(A24=$AJ$19,1,0)))","v":0},{"$f":"IF(B24=$AO$15,1,IF(B24=$AO$16,1,IF(B24=$AO$17,1,IF(B24=$AO$18,1,IF(B24=$AO$19,1,IF(B24=$AO$20,1,0))))))","v":0},{"$f":"IF(SUM(I24:M24)<>0,1,IF(G24<>0,1,IF(U24<>0,1,0)))","v":0},{"$f":"IF(AL24=0,0,IF(AJ24=0,\"E\",0))","v":0},{"$f":"IF(AL24=0,0,IF(AK24=0,\"E\",0))","v":0}]
[null,null,null,{"$f":"IF('SETUP and Instructions'!$M$3=1,'SETUP and Instructions'!$C$7,\"\")","v":""},null,null,null,"",{"$nulls":5},0,"","","","","",0,null,"",{"$nulls":13},0,0,0,0,0]
[null,null,null,{"$f":"IF('SETUP and Instructions'!$M$3=1,'SETUP and Instructions'!$C$7,\"\")","v":""},null,null,null,"",{"$nulls":5},0,"","","","","",0,null,"",{"$nulls":13},0,0,0,0,0]
[null,null,null,{"$f":"IF('SETUP and Instructions'!$M$3=1,'SETUP and Instructions'!$C$7,\"\")","v":""},null,null,null,"",{"$nulls":5},0,"","","","","",0,null,"",{"$nulls":13},0,0,0,0,0]
[null,null,null,{"$f":"IF('SETUP and Instructions'!$M$3=1,'SETUP and Instructions'!$C$7,\"\")","v":""},null,null,null,"",{"$nulls":5},0,"","","","","",0,null,"",{"$nulls":13},0,0,0,0,0]
[null,null,null,{"$f":"IF('SETUP and Instructions'!$M$3=1,'SETUP and Instructions'!$C$7,\"\")","v":""},null,null,null,"",{"$nulls":5},0,"","","","","",0,null,"",{"$nulls":13},0,0,0,0,0]
[null,null,null,{"$f":"IF('SETUP and Instructions'!$M$3=1,'SETUP and Instructions'!$C$7,\"\")","v":""},null,null,null,"",{"$nulls":5},0,"","","","","",0,null,"",{"$nulls":13},0,0,0,0,0]
[null,null,null,{"$f":"IF('SETUP and Instructions'!$M$3=1,'SETUP and Instructions'!$C$7,\"\")","v":""},null,null,null,"",{"$nulls":5},0,"","","","","",0,null,"",{"$nulls":13},0,0,0,0,0]
[null,null,null,{"$f":"IF('SETUP and Instructions'!$M$3=1,'SETUP and Instructions'!$C$7,\"\")","v":""},null,null,null,"",{"$nulls":5},0,"","","","","",0,null,"",{"$nulls":13},0,0,0,0,0]
[null,null,null,{"$f":"IF('SETUP and Instructions'!$M$3=1,'SETUP and Instructions'!$C$7,\"\")","v":""},null,null,null,"",{"$nulls":5},0,"","","","","",0,null,"",{"$nulls":13},0,0,0,0,0]
[null,null,null,{"$f":"IF('SETUP and Instructions'!$M$3=1,'SETUP and Instructions'!$C$7,\"\")","v":""},null,null,null,"",{"$nulls":5},0,"","","","","",0,null,"",{"$nulls":13},0,0,0,0,0]
[null,null,null,{"$f":"IF('SETUP and Instructions'!$M$3=1,'SETUP and Instructions'!$C$7,\"\")","v":""},null,null,null,"",{"$nulls":5},0,"","","","","",0,null,"",{"$nulls":13},0,0,0,0,0]
[null,null,null,{"$f":"IF('SETUP and Instructions'!$M$3=1,'SETUP and Instructions'!$C$7,\"\")","v":""},null,null,null,"",{"$nulls":5},0,"","","","","",0,null,"",{"$nulls":13},0,0,0,0,0]
[null,null,null,{"$f":"IF('SETUP and Instructions'!$M$3=1,'SETUP and Instructions'!$C$7,\"\")","v":""},null,null,null,"",{"$nulls":5},0,"","","","","",0,null,"",{"$nulls":13},0,0,0,0,0]
[null,null,null,{"$f":"IF('SETUP and Instructions'!$M$3=1,'SETUP and Instructions'!$C$7,\"\")","v":""},null,null,null,"",{"$nulls":5},0,"","","","","",0,null,"",{"$nulls":13},0,0,0,0,0]
[null,null,null,{"$f":"IF('SETUP and Instructions'!$M$3=1,'SETUP and Instructions'!$C$7,\"\")","v":""},null,null,null,"",{"$nulls":5},0,"","","","","",0,null,"",{"$nulls":13},0,0,0,0,0]
[null,null,null,{"$f":"IF('SETUP and Instructions'!$M$3=1,'SETUP and Instructions'!$C$7,\"\")","v":""},null,null,null,"",{"$nulls":5},0,"","","","","",0,null,"",{"$nulls":13},0,0,0,0,0]
[null,null,null,{"$f":"IF('SETUP and Instructions'!$M$3=1,'SETUP and Instructions'!$C$7,\"\")","v":""},null,null,null,"",{"$nulls":5},0,"","","","","",0,null,"",{"$nulls":13},0,0,0,0,0]
[null,null,null,{"$f":"IF('SETUP and Instructions'!$M$3=1,'SETUP and Instructions'!$C$7,\"\")","v":""},null,null,null,"",{"$nulls":5},0,"","","","","",0,null,"",{"$nulls":13},0,0,0,0,0]
[null,null,null,{"$f":"IF('SETUP and Instructions'!$M$3=1,'SETUP and Instructions'!$C$7,\"\")","v":""},null,null,null,"",{"$nulls":5},0,"","","","","",0,null,"",{"$nulls":13},0,0,0,0,0]
[null,null,null,{"$f":"IF('SETUP and Instructions'!$M$3=1,'SETUP and Instructions'!$C$7,\"\")","v":""},null,null,null,"",{"$nulls":5},0,"","","","","",0,null,"",{"$nulls":13},0,0,0,0,0]
[null,null,null,{"$f":"IF('SETUP and Instructions'!$M$3=1,'SETUP and Instructions'!$C$7,\"\")","v":""},null,null,null,"",{"$nulls":5},0,"","","","","",0,null,"",{"$nulls":13},0,0,0,0,0]
[null,null,null,{"$f":"IF('SETUP and Instructions'!$M$3=1,'SETUP and Instructions'!$C$7,\"\")","v":""},null,null,null,"",{"$nulls":5},0,"","","","","",0,null,"",{"$nulls":13},0,0,0,0,0]
[null,null,null,{"$f":"IF('SETUP and Instructions'!$M$3=1,'SETUP and Instructions'!$C$7,\"\")","v":""},null,null,null,"",{"$nulls":5},0,"","","","","",0,null,"",{"$nulls":13},0,0,0,0,0]
[null,null,null,{"$f":"IF('SETUP and Instructions'!$M$3=1,'SETUP and Instructions'!$C$7,\"\")","v":""},null,null,null,"",{"$nulls":5},0,"","","","","",0,null,"",{"$nulls":13},0,0,0,0,0]
[null,null,null,{"$f":"IF('SETUP and Instructions'!$M$3=1,'SETUP and Instructions'!$C$7,\"\")","v":""},null,null,null,"",{"$nulls":5},0,"","","","","",0,null,"",{"$nulls":13},0,0,0,0,0]
[null,null,null,{"$f":"IF('SETUP and Instructions'!$M$3=1,'SETUP and Instructions'!$C$7,\"\")","v":""},null,null,null,"",{"$nulls":5},0,"","","","","",0,null,"",{"$nulls":13},0,0,0,0,0]
[null,null,null,{"$f":"IF('SETUP and Instructions'!$M$3=1,'SETUP and Instructions'!$C$7,\"\")","v":""},null,null,null,"",{"$nulls":5},0,"","","","","",0,null,"",{"$nulls":13},0,0,0,0,0]
[null,null,null,{"$f":"IF('SETUP and Instructions'!$M$3=1,'SETUP and Instructions'!$C$7,\"\")","v":""},null,null,null,"",{"$nulls":5},0,"","","","","",0,null,"",{"$nulls":13},0,0,0,0,0]
[null,null,null,{"$f":"IF('SETUP and Instructions'!$M$3=1,'SETUP and Instructions'!$C$7,\"\")","v":""},null,null,null,"",{"$nulls":5},0,"","","","","",0,null,"",{"$nulls":13},0,0,0,0,0]
[null,null,null,{"$f":"IF('SETUP and Instructions'!$M$3=1,'SETUP and Instructions'!$C$7,\"\")","v":""},null,null,null,"",{"$nulls":5},0,"","","","","",0,null,"",{"$nulls":13},0,0,0,0,0]
[null,null,null,{"$f":"IF('SETUP and Instructions'!$M$3=1,'SETUP and Instructions'!$C$7,\"\")","v":""},null,null,null,"",{"$nulls":5},0,"","","","","",0,null,"",{"$nulls":13},0,0,0,0,0]
[null,null,null,{"$f":"IF('SETUP and Instructions'!$M$3=1,'SETUP and Instructions'!$C$7,\"\")","v":""},null,null,null,"",{"$nulls":5},0,"","","","","",0,null,"",{"$nulls":13},0,0,0,0,0]
[null,null,null,{"$f":"IF('SETUP and Instructions'!$M$3=1,'SETUP and Instructions'!$C$7,\"\")","v":""},null,null,null,"",{"$nulls":5},0,"","","","","",0,null,"",{"$nulls":13},0,0,0,0,0]
[null,null,null,{"$f":"IF('SETUP and Instructions'!$M$3=1,'SETUP and Instructions'!$C$7,\"\")","v":""},null,null,null,"",{"$nulls":5},0,"","","","","",0,null,"",{"$nulls":13},0,0,0,0,0]
[null,null,null,{"$f":"IF('SETUP and Instructions'!$M$3=1,'SETUP and Instructions'!$C$7,\"\")","v":""},null,null,null,"",{"$nulls":5},0,"","","","","",0,null,"",{"$nulls":13},0,0,0,0,0]
[null,null,null,{"$f":"IF('SETUP and Instructions'!$M$3=1,'SETUP and Instructions'!$C$7,\"\")","v":""},null,null,null,"",{"$nulls":5},0,"","","","","",0,null,"",{"$nulls":13},0,0,0,0,0]
[null,null,null,{"$f":"IF('SETUP and Instructions'!$M$3=1,'SETUP and Instructions'!$C$7,\"\")","v":""},null,null,null,"",{"$nulls":5},0,"","","","","",0,null,"",{"$nulls":13},0,0,0,0,0]
[null,null,null,{"$f":"IF('SETUP and Instructions'!$M$3=1,'SETUP and Instructions'!$C$7,\"\")","v":""},null,null,null,"",{"$nulls":5},0,"","","","","",0,null,"",{"$nulls":13},0,0,0,0,0]
[null,null,null,{"$f":"IF('SETUP and Instructions'!$M$3=1,'SETUP and Instructions'!$C$7,\"\")","v":""},null,null,null,"",{"$nulls":5},0,"","","","","",0,null,"",{"$nulls":13},0,0,0,0,0]
[null,null,null,{"$f":"IF('SETUP and Instructions'!$M$3=1,'SETUP and Instructions'!$C$7,\"\")","v":""},null,null,null,"",{"$nulls":5},0,"","","","","",0,null,"",{"$nulls":13},0,0,0,0,0]
[null,null,null,{"$f":"IF('SETUP and Instructions'!$M$3=1,'SETUP and Instructions'!$C$7,\"\")","v":""},null,null,null,"",{"$nulls":5},0,"","","","","",0,null,"",{"$nulls":13},0,0,0,0,0]
[null,null,null,{"$f":"IF('SETUP and Instructions'!$M$3=1,'SETUP and Instructions'!$C$7,\"\")","v":""},null,null,null,"",{"$nulls":5},0,"","","","","",0,null,"",{"$nulls":13},0,0,0,0,0]
[null,null,null,{"$f":"IF('SETUP and Instructions'!$M$3=1,'SETUP and Instructions'!$C$7,\"\")","v":""},null,null,null,"",{"$nulls":5},0,"","","","","",0,null,"",{"$nulls":13},0,0,0,0,0]
[null,null,null,{"$f":"IF('SETUP and Instructions'!$M$3=1,'SETUP and Instructions'!$C$7,\"\")","v":""},null,null,null,"",{"$nulls":5},0,"","","","","",0,null,"",{"$nulls":13},0,0,0,0,0]
[null,null,null,{"$f":"IF('SETUP and Instructions'!$M$3=1,'SETUP and Instructions'!$C$7,\"\")","v":""},null,null,null,"",{"$nulls":5},0,"","","","","",0,null,"",{"$nulls":13},0,0,0,0,0]
[null,null,null,{"$f":"IF('SETUP and Instructions'!$M$3=1,'SETUP and Instructions'!$C$7,\"\")","v":""},null,null,null,"",{"$nulls":5},0,"","","","","",0,null,"",{"$nulls":13},0,0,0,0,0]
[null,null,null,{"$f":"IF('SETUP and Instructions'!$M$3=1,'SETUP and Instructions'!$C$7,\"\")","v":""},null,null,null,"",{"$nulls":5},0,"","","","","",0,null,"",{"$nulls":13},0,0,0,0,0]
[null,null,null,{"$f":"IF('SETUP and Instructions'!$M$3=1,'SETUP and Instructions'!$C$7,\"\")","v":""},null,null,null,"",{"$nulls":5},0,"","","","","",0,null,"",{"$nulls":13},0,0,0,0,0]
[null,null,null,{"$f":"IF('SETUP and Instructions'!$M$3=1,'SETUP and Instructions'!$C$7,\"\")","v":""},null,null,null,"",{"$nulls":5},0,"","","","","",0,null,"",{"$nulls":13},0,0,0,0,0]
[null,null,null,{"$f":"IF('SETUP and Instructions'!$M$3=1,'SETUP and Instructions'!$C$7,\"\")","v":""},null,null,null,"",{"$nulls":5},0,"","","","","",0,null,"",{"$nulls":13},0,0,0,0,0]
[null,null,null,{"$f":"IF('SETUP and Instructions'!$M$3=1,'SETUP and Instructions'!$C$7,\"\")","v":""},null,null,null,"",{"$nulls":5},0,"","","","","",0,null,"",{"$nulls":13},0,0,0,0,0]
[null,null,null,{"$f":"IF('SETUP and Instructions'!$M$3=1,'SETUP and Instructions'!$C$7,\"\")","v":""},null,null,null,"",{"$nulls":5},0,"","","","","",0,null,"",{"$nulls":13},0,0,0,0,0]
[null,null,null,{"$f":"IF('SETUP and Instructions'!$M$3=1,'SETUP and Instructions'!$C$7,\"\")","v":""},null,null,null,"",{"$nulls":5},0,"","","","","",0,null,"",{"$nulls":13},0,0,0,0,0]
[null,null,null,{"$f":"IF('SETUP and Instructions'!$M$3=1,'SETUP and Instructions'!$C$7,\"\")","v":""},null,null,null,"",{"$nulls":5},0,"","","","","",0,null,"",{"$nulls":13},0,0,0,0,0]
[null,null,null,{"$f":"IF('SETUP and Instructions'!$M$3=1,'SETUP and Instructions'!$C$7,\"\")","v":""},null,null,null,"",{"$nulls":5},0,"","","","","",0,null,"",{"$nulls":13},0,0,0,0,0]
[null,null,null,{"$f":"IF('SETUP and Instructions'!$M$3=1,'SETUP and Instructions'!$C$7,\"\")","v":""},null,null,null,"",{"$nulls":5},0,"","","","","",0,null,"",{"$nulls":13},0,0,0,0,0]
[null,null,null,{"$f":"IF('SETUP and Instructions'!$M$3=1,'SETUP and Instructions'!$C$7,\"\")","v":""},null,null,null,"",{"$nulls":5},0,"","","","","",0,null,"",{"$nulls":13},0,0,0,0,0]
[null,null,null,{"$f":"IF('SETUP and Instructions'!$M$3=1,'SETUP and Instructions'!$C$7,\"\")","v":""},null,null,null,"",{"$nulls":5},0,"","","","","",0,null,"",{"$nulls":13},0,0,0,0,0]
[null,null,null,{"$f":"IF('SETUP and Instructions'!$M$3=1,'SETUP and Instructions'!$C$7,\"\")","v":""},null,null,null,"",{"$nulls":5},0,"","","","","",0,null,"",{"$nulls":13},0,0,0,0,0]
[null,null,null,{"$f":"IF('SETUP and Instructions'!$M$3=1,'SETUP and Instructions'!$C$7,\"\")","v":""},null,null,null,"",{"$nulls":5},0,"","","","","",0,null,"",{"$nulls":13},0,0,0,0,0]
[null,null,null,{"$f":"IF('SETUP and Instructions'!$M$3=1,'SETUP and Instructions'!$C$7,\"\")","v":""},null,null,null,"",{"$nulls":5},0,"","","","","",0,null,"",{"$nulls":13},0,0,0,0,0]
[null,null,null,{"$f":"IF('SETUP and Instructions'!$M$3=1,'SETUP and Instructions'!$C$7,\"\")","v":""},null,null,null,"",{"$nulls":5},0,"","","","","",0,null,"",{"$nulls":13},0,0,0,0,0]
[null,null,null,{"$f":"IF('SETUP and Instructions'!$M$3=1,'SETUP and Instructions'!$C$7,\"\")","v":""},null,null,null,"",{"$nulls":5},0,"","","","","",0,null,"",{"$nulls":13},0,0,0,0,0]
[null,null,null,{"$f":"IF('SETUP and Instructions'!$M$3=1,'SETUP and Instructions'!$C$7,\"\")","v":""},null,null,null,{"$f":"IF(ISBLANK(G88)=TRUE,\"\",IF(F88=$C$2,G88/$C$3,G88))","v":""},{"$nulls":5},{"$f":"SUM(I88+J88+K88+L88+M88)","v":0},{"$f":"IF(ISNUMBER($H88*I88)=TRUE,$H88*I88,\"\")","v":""},{"$f":"IF(ISNUMBER($H88*J88)=TRUE,$H88*J88,\"\")","v":""},{"$f":"IF(ISNUMBER($H88*K88)=TRUE,$H88*K88,\"\")","v":""},{"$f":"IF(ISNUMBER($H88*L88)=TRUE,$H88*L88,\"\")","v":""},{"$f":"IF(ISNUMBER($H88*M88)=TRUE,$H88*M88,\"\")","v":""},{"$f":"SUM(O88:S88)","v":0},null,{"$f":"IF(ISNUMBER(U88*H88)=TRUE,U88*H88,\"\")","v":""},{"$nulls":13},{"$f":"IF(A88=$AJ$17,1,IF(A88=$AJ$18,1,IF(A88=$AJ$19,1,0)))","v":0},{"$f":"IF(B88=$AO$15,1,IF(B88=$AO$16,1,IF(B88=$AO$17,1,IF(B88=$AO$18,1,IF(B88=$AO$19,1,IF(B88=$AO$20,1,0))))))","v":0},{"$f":"IF(SUM(I88:M88)<>0,1,IF(G88<>0,1,IF(U88<>0,1,0)))","v":0},{"$f":"IF(AL88=0,0,IF(AJ88=0,\"E\",0))","v":0},{"$f":"IF(AL88=0,0,IF(AK88=0,\"E\",0))","v":0}]
[null,null,null,{"$f":"IF('SETUP and Instructions'!$M$3=1,'SETUP and Instructions'!$C$7,\"\")","v":""},null,null,null,{"$f":"IF(ISBLANK(G89)=TRUE,\"\",IF(F89=$C$2,G89/$C$3,G89))","v":""},{"$nulls":5},{"$f":"SUM(I89+J89+K89+L89+M89)","v":0},{"$f":"IF(ISNUMBER($H89*I89)=TRUE,$H89*I89,\"\")","v":""},{"$f":"IF(ISNUMBER($H89*J89)=TRUE,$H89*J89,\"\")","v":""},{"$f":"IF(ISNUMBER($H89*K89)=TRUE,$H89*K89,\"\")","v":""},{"$f":"IF(ISNUMBER($H89*L89)=TRUE,$H89*L89,\"\")","v":""},{"$f":"IF(ISNUMBER($H89*M89)=TRUE,$H89*M89,\"\")","v":""},{"$f":"SUM(O89:S89)","v":0},null,{"$f":"IF(ISNUMBER(U89*H89)=TRUE,U89*H89,\"\")","v":""},{"$nulls":13},0,0,0,0,0]
[null,null,null,{"$f":"IF('SETUP and Instructions'!$M$3=1,'SETUP and Instructions'!$C$7,\"\")","v":""},null,null,null,"",{"$nulls":5},0,"","","","","",0,null,""]
[null,null,null,{"$f":"IF('SETUP and Instructions'!$M$3=1,'SETUP and Instructions'!$C$7,\"\")","v":""},null,null,null,"",{"$nulls":5},0,"","","","","",0,null,""]
[null,null,null,{"$f":"IF('SETUP and Instructions'!$M$3=1,'SETUP and Instructions'!$C$7,\"\")","v":""},null,null,null,"",{"$nulls":5},0,"","","","","",0,null,""]
[null,null,null,{"$f":"IF('SETUP and Instructions'!$M$3=1,'SETUP and Instructions'!$C$7,\"\")","v":""},null,null,null,"",{"$nulls":5},0,"","","","","",0,null,""]
[null,null,null,{"$f":"IF('SETUP and Instructions'!$M$3=1,'SETUP and Instructions'!$C$7,\"\")","v":""},null,null,null,"",{"$nulls":5},0,"","","","","",0,null,""]
[null,null,null,{"$f":"IF('SETUP and Instructions'!$M$3=1,'SETUP and Instructions'!$C$7,\"\")","v":""},null,null,null,"",{"$nulls":5},0,"","","","","",0,null,""]
[null,null,null,{"$f":"IF('SETUP and Instructions'!$M$3=1,'SETUP and Instructions'!$C$7,\"\")","v":""},null,null,null,"",{"$nulls":5},0,"","","","","",0,null,""]
[null,null,null,{"$f":"IF('SETUP and Instructions'!$M$3=1,'SETUP and Instructions'!$C$7,\"\")","v":""},null,null,null,"",{"$nulls":5},0,"","","","","",0,null,""]
[null,null,null,{"$f":"IF('SETUP and Instructions'!$M$3=1,'SETUP and Instructions'!$C$7,\"\")","v":""},null,null,null,"",{"$nulls":5},0,"","","","","",0,null,""]
[null,null,null,{"$f":"IF('SETUP and Instructions'!$M$3=1,'SETUP and Instructions'!$C$7,\"\")","v":""},null,null,null,"",{"$nulls":5},0,"","","","","",0,null,""]
[null,null,null,{"$f":"IF('SETUP and Instructions'!$M$3=1,'SETUP and Instructions'!$C$7,\"\")","v":""},null,null,null,"",{"$nulls":5},0,"","","","","",0,null,""]
[null,null,null,{"$f":"IF('SETUP and Instructions'!$M$3=1,'SETUP and Instructions'!$C$7,\"\")","v":""},null,null,null,"",{"$nulls":5},0,"","","","","",0,null,""]
[null,null,null,{"$f":"IF('SETUP and Instructions'!$M$3=1,'SETUP and Instructions'!$C$7,\"\")","v":""},null,null,null,"",{"$nulls":5},0,"","","","","",0,null,""]
[null,null,null,{"$f":"IF('SETUP and Instructions'!$M$3=1,'SETUP and Instructions'!$C$7,\"\")","v":""},null,null,null,"",{"$nulls":5},0,"","","","","",0,null,""]
[null,null,null,{"$f":"IF('SETUP and Instructions'!$M$3=1,'SETUP and Instructions'!$C$7,\"\")","v":""},null,null,null,"",{"$nulls":5},0,"","","","","",0,null,""]
[null,null,null,{"$f":"IF('SETUP and Instructions'!$M$3=1,'SETUP and Instructions'!$C$7,\"\")","v":""},null,null,null,"",{"$nulls":5},0,"","","","","",0,null,""]
[null,null,null,{"$f":"IF('SETUP and Instructions'!$M$3=1,'SETUP and Instructions'!$C$7,\"\")","v":""},null,null,null,"",{"$nulls":5},0,"","","","","",0,null,""]
[null,null,null,{"$f":"IF('SETUP and Instructions'!$M$3=1,'SETUP and Instructions'!$C$7,\"\")","v":""},null,null,null,"",{"$nulls":5},0,"","","","","",0,null,""]
[null,null,null,{"$f":"IF('SETUP and Instructions'!$M$3=1,'SETUP and Instructions'!$C$7,\"\")","v":""},null,null,null,"",{"$nulls":5},0,"","","","","",0,null,""]
[null,null,null,{"$f":"IF('SETUP and Instructions'!$M$3=1,'SETUP and Instructions'!$C$7,\"\")","v":""},null,null,null,"",{"$nulls":5},0,"","","","","",0,null,""]
[null,null,null,{"$f":"IF('SETUP and Instructions'!$M$3=1,'SETUP and Instructions'!$C$7,\"\")","v":""},null,null,null,"",{"$nulls":5},0,"","","","","",0,null,""]
[null,null,null,{"$f":"IF('SETUP and Instructions'!$M$3=1,'SETUP and Instructions'!$C$7,\"\")","v":""},null,null,null,"",{"$nulls":5},0,"","","","","",0,null,""]
[null,null,null,{"$f":"IF('SETUP and Instructions'!$M$3=1,'SETUP and Instructions'!$C$7,\"\")","v":""},null,null,null,"",{"$nulls":5},0,"","","","","",0,null,""]
[null,null,null,{"$f":"IF('SETUP and Instructions'!$M$3=1,'SETUP and Instructions'!$C$7,\"\")","v":""},null,null,null,"",{"$nulls":5},0,"","","","","",0,null,""]
[null,null,null,{"$f":"IF('SETUP and Instructions'!$M$3=1,'SETUP and Instructions'!$C$7,\"\")","v":""},null,null,null,"",{"$nulls":5},0,"","","","","",0,null,""]
[null,null,null,{"$f":"IF('SETUP and Instructions'!$M$3=1,'SETUP and Instructions'!$C$7,\"\")","v":""},null,null,null,"",{"$nulls":5},0,"","","","","",0,null,""]
[null,null,null,{"$f":"IF('SETUP and Instructions'!$M$3=1,'SETUP and Instructions'!$C$7,\"\")","v":""},null,null,null,"",{"$nulls":5},0,"","","","","",0,null,""]
[null,null,null,{"$f":"IF('SETUP and Instructions'!$M$3=1,'SETUP and Instructions'!$C$7,\"\")","v":""},null,null,null,"",{"$nulls":5},0,"","","","","",0,null,""]
[null,null,null,{"$f":"IF('SETUP and Instructions'!$M$3=1,'SETUP and Instructions'!$C$7,\"\")","v":""},null,null,null,"",{"$nulls":5},0,"","","","","",0,null,""]
[null,null,null,{"$f":"IF('SETUP and Instructions'!$M$3=1,'SETUP and Instructions'!$C$7,\"\")","v":""},null,null,null,"",{"$nulls":5},0,"","","","","",0,null,""]
[null,null,null,{"$f":"IF('SETUP and Instructions'!$M$3=1,'SETUP and Instructions'!$C$7,\"\")","v":""},null,null,null,"",{"$nulls":5},0,"","","","","",0,null,""]
[null,null,null,{"$f":"IF('SETUP and Instructions'!$M$3=1,'SETUP and Instructions'!$C$7,\"\")","v":""},null,null,null,"",{"$nulls":5},0,"","","","","",0,null,"",{"$nulls":13},0,0,0,0,0]
[null,null,null,{"$f":"IF('SETUP and Instructions'!$M$3=1,'SETUP and Instructions'!$C$7,\"\")","v":""},null,null,null,"",{"$nulls":5},0,"","","","","",0,null,"",{"$nulls":13},0,0,0,0,0]
[null,null,null,{"$f":"IF('SETUP and Instructions'!$M$3=1,'SETUP and Instructions'!$C$7,\"\")","v":""},null,null,null,"",{"$nulls":5},0,"","","","","",0,null,"",{"$nulls":13},0,0,0,0,0]
[null,null,null,{"$f":"IF('SETUP and Instructions'!$M$3=1,'SETUP and Instructions'!$C$7,\"\")","v":""},null,null,null,"",{"$nulls":5},0,"","","","","",0,null,"",{"$nulls":13},0,0,0,0,0]
[null,null,null,{"$f":"IF('SETUP and Instructions'!$M$3=1,'SETUP and Instructions'!$C$7,\"\")","v":""},null,null,null,"",{"$nulls":5},0,"","","","","",0,null,"",{"$nulls":13},0,0,0,0,0]
[null,null,null,{"$f":"IF('SETUP and Instructions'!$M$3=1,'SETUP and Instructions'!$C$7,\"\")","v":""},null,null,null,"",{"$nulls":5},0,"","","","","",0,null,"",{"$nulls":13},0,0,0,0,0]
[null,null,null,{"$f":"IF('SETUP and Instructions'!$M$3=1,'SETUP and Instructions'!$C$7,\"\")","v":""},null,null,null,"",{"$nulls":5},0,"","","","","",0,null,"",{"$nulls":13},0,0,0,0,0]
[null,null,null,{"$f":"IF('SETUP and Instructions'!$M$3=1,'SETUP and Instructions'!$C$7,\"\")","v":""},null,null,null,"",{"$nulls":5},0,"","","","","",0,null,"",{"$nulls":13},0,0,0,0,0]
[null,null,null,{"$f":"IF('SETUP and Instructions'!$M$3=1,'SETUP and Instructions'!$C$7,\"\")","v":""},null,null,null,"",{"$nulls":5},0,"","","","","",0,null,"",{"$nulls":13},0,0,0,0,0]
[null,null,null,{"$f":"IF('SETUP and Instructions'!$M$3=1,'SETUP and Instructions'!$C$7,\"\")","v":""},null,null,null,"",{"$nulls":5},0,"","","","","",0,null,"",{"$nulls":13},0,0,0,0,0]
[null,null,null,{"$f":"IF('SETUP and Instructions'!$M$3=1,'SETUP and Instructions'!$C$7,\"\")","v":""},null,null,null,"",{"$nulls":5},0,"","","","","",0,null,"",{"$nulls":13},0,0,0,0,0]
[null,null,null,{"$f":"IF('SETUP and Instructions'!$M$3=1,'SETUP and Instructions'!$C$7,\"\")","v":""},null,null,null,"",{"$nulls":5},0,"","","","","",0,null,"",{"$nulls":13},0,0,0,0,0]
[null,null,null,{"$f":"IF('SETUP and Instructions'!$M$3=1,'SETUP and Instructions'!$C$7,\"\")","v":""},null,null,null,"",{"$nulls":5},0,"","","","","",0,null,"",{"$nulls":13},0,0,0,0,0]
[null,null,null,{"$f":"IF('SETUP and Instructions'!$M$3=1,'SETUP and Instructions'!$C$7,\"\")","v":""},null,null,null,"",{"$nulls":5},0,"","","","","",0,null,"",{"$nulls":13},0,0,0,0,0]
[null,null,null,{"$f":"IF('SETUP and Instructions'!$M$3=1,'SETUP and Instructions'!$C$7,\"\")","v":""},null,null,null,"",{"$nulls":5},0,"","","","","",0,null,"",{"$nulls":13},0,0,0,0,0]
[null,null,null,{"$f":"IF('SETUP and Instructions'!$M$3=1,'SETUP and Instructions'!$C$7,\"\")","v":""},null,null,null,"",{"$nulls":5},0,"","","","","",0,null,"",{"$nulls":13},0,0,0,0,0]
[null,null,null,{"$f":"IF('SETUP and Instructions'!$M$3=1,'SETUP and Instructions'!$C$7,\"\")","v":""},null,null,null,"",{"$nulls":5},0,"","","","","",0,null,"",{"$nulls":13},0,0,0,0,0]
[null,null,null,{"$f":"IF('SETUP and Instructions'!$M$3=1,'SETUP and Instructions'!$C$7,\"\")","v":""},null,null,null,"",{"$nulls":5},0,"","","","","",0,null,"",{"$nulls":13},0,0,0,0,0]
[null,null,null,{"$f":"IF('SETUP and Instructions'!$M$3=1,'SETUP and Instructions'!$C$7,\"\")","v":""},null,null,null,"",{"$nulls":5},0,"","","","","",0,null,"",{"$nulls":13},0,0,0,0,0]
[null,null,null,{"$f":"IF('SETUP and Instructions'!$M$3=1,'SETUP and Instructions'!$C$7,\"\")","v":""},null,null,null,"",{"$nulls":5},0,"","","","","",0,null,"",{"$nulls":13},0,0,0,0,0]
[null,null,null,{"$f":"IF('SETUP and Instructions'!$M$3=1,'SETUP and Instructions'!$C$7,\"\")","v":""},null,null,null,"",{"$nulls":5},0,"","","","","",0,null,"",{"$nulls":13},0,0,0,0,0]
[null,null,null,{"$f":"IF('SETUP and Instructions'!$M$3=1,'SETUP and Instructions'!$C$7,\"\")","v":""},null,null,null,"",{"$nulls":5},0,"","","","","",0,null,"",{"$nulls":13},0,0,0,0,0]
[null,null,null,{"$f":"IF('SETUP and Instructions'!$M$3=1,'SETUP and Instructions'!$C$7,\"\")","v":""},null,null,null,"",{"$nulls":5},0,"","","","","",0,null,"",{"$nulls":13},0,0,0,0,0]
[null,null,null,{"$f":"IF('SETUP and Instructions'!$M$3=1,'SETUP and Instructions'!$C$7,\"\")","v":""},null,null,null,"",{"$nulls":5},0,"","","","","",0,null,"",{"$nulls":13},0,0,0,0,0]
[null,null,null,{"$f":"IF('SETUP and Instructions'!$M$3=1,'SETUP and Instructions'!$C$7,\"\")","v":""},null,null,null,"",{"$nulls":5},0,"","","","","",0,null,"",{"$nulls":13},0,0,0,0,0]
[null,null,null,{"$f":"IF('SETUP and Instructions'!$M$3=1,'SETUP and Instructions'!$C$7,\"\")","v":""},null,null,null,"",{"$nulls":5},0,"","","","","",0,null,"",{"$nulls":13},0,0,0,0,0]
[null,null,null,{"$f":"IF('SETUP and Instructions'!$M$3=1,'SETUP and Instructions'!$C$7,\"\")","v":""},null,null,null,"",{"$nulls":5},0,"","","","","",0,null,"",{"$nulls":13},0,0,0,0,0]
[null,null,null,{"$f":"IF('SETUP and Instructions'!$M$3=1,'SETUP and Instructions'!$C$7,\"\")","v":""},null,null,null,"",{"$nulls":5},0,"","","","","",0,null,"",{"$nulls":13},0,0,0,0,0]
[null,null,null,{"$f":"IF('SETUP and Instructions'!$M$3=1,'SETUP and Instructions'!$C$7,\"\")","v":""},null,null,null,"",{"$nulls":5},0,"","","","","",0,null,"",{"$nulls":13},0,0,0,0,0]
[null,null,null,{"$f":"IF('SETUP and Instructions'!$M$3=1,'SETUP and Instructions'!$C$7,\"\")","v":""},null,null,null,"",{"$nulls":5},0,"","","","","",0,null,"",{"$nulls":13},0,0,0,0,0]
[null,null,null,{"$f":"IF('SETUP and Instructions'!$M$3=1,'SETUP and Instructions'!$C$7,\"\")","v":""},null,null,null,"",{"$nulls":5},0,"","","","","",0,null,"",{"$nulls":13},0,0,0,0,0]
[null,null,null,{"$f":"IF('SETUP and Instructions'!$M$3=1,'SETUP and Instructions'!$C$7,\"\")","v":""},null,null,null,"",{"$nulls":5},0,"","","","","",0,null,"",{"$nulls":13},0,0,0,0,0]
[null,null,null,{"$f":"IF('SETUP and Instructions'!$M$3=1,'SETUP and Instructions'!$C$7,\"\")","v":""},null,null,null,{"$f":"IF(ISBLANK(G153)=TRUE,\"\",IF(F153=$C$2,G153/$C$3,G153))","v":""},{"$nulls":5},{"$f":"SUM(I153+J153+K153+L153+M153)","v":0},{"$f":"IF(ISNUMBER($H153*I153)=TRUE,$H153*I153,\"\")","v":""},{"$f":"IF(ISNUMBER($H153*J153)=TRUE,$H153*J153,\"\")","v":""},{"$f":"IF(ISNUMBER($H153*K153)=TRUE,$H153*K153,\"\")","v":""},{"$f":"IF(ISNUMBER($H153*L153)=TRUE,$H153*L153,\"\")","v":""},{"$f":"IF(ISNUMBER($H153*M153)=TRUE,$H153*M153,\"\")","v":""},{"$f":"SUM(O153:S153)","v":0},null,{"$f":"IF(ISNUMBER(U153*H153)=TRUE,U153*H153,\"\")","v":""},{"$nulls":13},0,0,0,0,0]
[null,null,null,{"$f":"IF('SETUP and Instructions'!$M$3=1,'SETUP and Instructions'!$C$7,\"\")","v":""},null,null,null,"",{"$nulls":5},0,"","","","","",0,null,"",{"$nulls":13},0,0,0,0,0]
[null,"Total->",{"$nulls":12},{"$f":"SUM(O8:O154)","v":0},{"$f":"SUM(P8:P154)","v":0},0,0,0,0,null,{"$f":"SUM(V8:V154)","v":0}]

{"sheet":"Annex A - COVID-19 Diagc Tests","index":2,"n_rows":148,"n_cols":49,"rows_kept":148,"cut":false,"hidden":false,"merged":[[119,18,119,19],[120,18,120,19],[121,18,121,19],[122,18,122,19],[140,18,140,19],[141,15,141,16],[141,19,141,20],[28,18,28,19],[136,18,136,19],[137,18,137,19],[138,18,138,19],[126,18,126,19],[127,18,127,19],[133,18,133,19],[134,18,134,19],[59,18,59,19],[60,18,60,19],[61,18,61,19],[62,18,62,19],[63,18,63,19],[64,18,64,19],[65,18,65,19],[66,18,66,19],[67,18,67,19],[57,36,57,39],[57,42,57,44],[57,47,57,48],[55,1,55,12],[50,15,50,16],[50,19,50,20],[50,1,50,3],[57,22,58,22],[57,18,58,19],[57,7,57,13],[57,14,58,14],[57,15,58,15],[57,16,58,16],[57,17,58,17],[57,20,57,21],[53,1,53,3],[57,1,58,1],[57,2,58,3],[57,4,58,4],[57,5,58,5],[57,6,58,6],[12,36,12,39],[12,47,12,48],[32,36,32,39],[32,42,32,44],[32,47,32,48],[15,39,20,39],[21,39,22,39],[23,39,24,39],[15,41,20,41],[21,41,22,41],[23,41,24,41],[12,42,12,44],[15,42,20,42],[15,44,20,44],[21,42,22,42],[21,44,22,44],[23,42,24,42],[23,44,24,44],[15,36,20,36],[15,37,20,37],[15,38,20,38],[21,36,22,36],[21,37,22,37],[21,38,22,38],[48,18,48,19],[15,29,20,29],[21,29,22,29],[23,29,24,29],[15,27,20,27],[34,18,34,19],[35,18,35,19],[36,18,36,19],[37,18,37,19],[38,18,38,19],[39,18,39,19],[40,18,40,19],[41,18,41,19],[32,20,32,21],[21,27,22,27],[23,27,24,27],[32,22,33,22],[32,18,33,19],[12,18,13,18],[12,19,12,20],[15,19,20,19],[15,20,20,20],[21,19,22,19],[21,20,22,20],[23,19,24,19],[23,20,24,20],[23,1,24,1],[23,2,24,2],[21,14,22,14],[23,14,24,14],[23,6,24,6],[23,7,24,7],[21,5,22,5],[21,6,22,6],[21,7,22,7],[12,1,13,1],[12,2,13,2],[12,3,13,3],[12,4,13,4],[12,5,13,5],[12,6,13,6],[12,7,13,7],[15,48,20,48],[21,48,22,48],[23,48,24,48],[141,1,141,3],[15,16,20,17],[21,16,22,17],[23,16,24,17],[25,16,25,17],[26,16,26,17],[15,15,20,15],[21,15,22,15],[23,15,24,15],[15,11,20,11],[21,11,22,11],[54,1,54,12],[15,13,20,13],[23,13,24,13],[21,13,22,13],[31,1,31,17],[21,10,22,10],[15,7,20,7],[15,5,20,5],[23,8,24,8],[23,9,24,9],[77,2,77,3],[78,2,78,3],[79,2,79,3],[80,2,80,3],[15,43,20,43],[21,43,22,43],[23,43,24,43],[42,18,42,19],[43,18,43,19],[44,18,44,19],[45,18,45,19],[46,18,46,19],[47,18,47,19],[68,2,68,3],[69,2,69,3],[70,2,70,3],[71,2,71,3],[72,2,72,3],[73,2,73,3],[74,2,74,3],[75,2,75,3],[76,2,76,3],[21,8,22,8],[21,9,22,9],[15,47,20,47],[21,47,22,47],[23,47,24,47],[15,2,20,2],[21,2,22,2],[15,30,20,30],[21,30,22,30],[23,30,24,30],[15,31,20,31],[21,31,22,31],[23,31,24,31],[23,10,24,10],[15,18,20,18],[21,18,22,18],[23,18,24,18],[23,36,24,36],[23,37,24,37],[23,38,24,38],[12,0,13,0],[15,0,20,0],[21,0,22,0],[23,0,24,0],[28,0,28,3],[32,0,33,0],[136,2,136,3],[137,2,137,3],[140,2,140,3],[60,2,60,3],[59,2,59,3],[139,2,139,3],[106,2,106,3],[105,2,105,3],[138,2,138,3],[101,2,101,3],[100,2,100,3],[99,2,99,3],[67,2,67,3],[66,2,66,3],[65,2,65,3],[104,2,104,3],[103,2,103,3],[102,2,102,3],[57,0,58,0],[15,26,20,26],[21,26,22,26],[23,26,24,26],[23,11,24,11],[15,8,20,8],[15,9,20,9],[23,5,24,5],[15,10,20,10],[32,3,33,3],[32,4,33,4],[49,1,49,3],[15,1,20,1],[21,1,22,1],[15,6,20,6],[21,12,22,12],[27,1,27,3],[27,16,27,17],[32,1,33,1],[32,2,33,2],[23,12,24,12],[32,7,32,13],[32,14,33,14],[15,12,20,12],[12,8,12,14],[12,15,13,15],[0,12,0,14],[1,12,1,14],[2,12,2,14],[0,15,0,17],[1,15,1,17],[2,15,2,17],[64,2,64,3],[63,2,63,3],[62,2,62,3],[61,2,61,3],[12,16,13,17],[14,16,14,17],[15,14,20,14],[32,5,33,5],[32,6,33,6],[7,1,7,17],[32,15,33,15],[32,16,33,16],[32,17,33,17],[2,1,4,4],[81,2,81,3],[82,2,82,3],[83,2,83,3],[84,2,84,3],[85,2,85,3],[86,2,86,3],[87,2,87,3],[88,2,88,3],[89,2,89,3],[127,2,127,3],[110,2,110,3],[111,2,111,3],[112,2,112,3],[113,2,113,3],[114,2,114,3],[115,2,115,3],[116,2,116,3],[117,2,117,3],[118,2,118,3],[86,18,86,19],[119,2,119,3],[120,2,120,3],[121,2,121,3],[122,2,122,3],[123,2,123,3],[124,2,124,3],[125,2,125,3],[126,2,126,3],[90,2,90,3],[91,2,91,3],[92,2,92,3],[93,2,93,3],[94,2,94,3],[95,2,95,3],[96,2,96,3],[97,2,97,3],[98,2,98,3],[107,2,107,3],[108,2,108,3],[109,2,109,3],[99,18,99,19],[100,18,100,19],[101,18,101,19],[77,18,77,19],[78,18,78,19],[79,18,79,19],[80,18,80,19],[81,18,81,19],[82,18,82,19],[83,18,83,19],[84,18,84,19],[85,18,85,19],[68,18,68,19],[69,18,69,19],[70,18,70,19],[71,18,71,19],[72,18,72,19],[73,18,73,19],[74,18,74,19],[75,18,75,19],[76,18,76,19],[139,18,139,19],[96,18,96,19],[97,18,97,19],[98,18,98,19],[110,18,110,19],[111,18,111,19],[112,18,112,19],[113,18,113,19],[114,18,114,19],[115,18,115,19],[102,18,102,19],[103,18,103,19],[104,18,104,19],[105,18,105,19],[106,18,106,19],[107,18,107,19],[123,18,123,19],[124,18,124,19],[125,18,125,19],[108,18,108,19],[109,18,109,19],[116,18,116,19],[117,18,117,19],[118,18,118,19],[128,18,128,19],[129,18,129,19],[130,18,130,19],[131,18,131,19],[132,18,132,19],[135,18,135,19],[135,2,135,3],[134,2,134,3],[133,2,133,3],[132,2,132,3],[128,2,128,3],[129,2,129,3],[130,2,130,3],[131,2,131,3],[87,18,87,19],[88,18,88,19],[89,18,89,19],[90,18,90,19],[91,18,91,19],[92,18,92,19],[93,18,93,19],[94,18,94,19],[95,18,95,19]]}
[null,"Annex A: Diagnostic Products",{"$nulls":10},"Grant Currency:",null,null,{"$f":"'C19RM Budget'!C1","v":"No grant currency is selected on Setup Tab"},{"$nulls":13},"Service column","Service column","Service column","Service column","Service column","Service column","Service column"]
[{"$nulls":12},"Local Currency",null,null,{"$f":"'C19RM Budget'!C2","v":"No local currency is selected on Setup Tab"},{"$nulls":13},{"$f":"'C19RM Budget'!C1","v":"No grant currency is selected on Setup Tab"}]
[null,"1. Please fill up the table with required full specifications (e.g. technical specifications) and references (e.g. WHO technical documents), as applicable\n2. Please provide unit price in local currency for items proposed to be locally and paid in local currency, and USD for all proposed international procurements; citing standard (or available) reference prices. \n3. Please enter additional rows if you have more items, but make sure the grand total is adding up correctly. ",{"$nulls":10},{"$f":"'C19RM Budget'!B3","v":"Fx rate to grant currency"},null,null,{"$f":"'C19RM Budget'!C3","v":1},{"$nulls":13},{"$f":"'C19RM Budget'!C2","v":"No local currency is selected on Setup Tab"}]
[]
[]
[]
[null,"PART 1: Covid-19 diagnostic tests (6 types) included in the WHO Diagnostics Consortium allocation model. "]
[null,"Note: (a) Please ensure the requested quantities for the 6 type of tests are within the WHO allocated test numbers for the requesting country, in coordination with the WHO Country Office. (b) The cells in green request for information if available in-country."]
[null,"Unit costs for the six diagnostic tests presented under Part A are pre-populated in line with the prices negotiated by the WHO procurement consortia. Prices are shown in GRANT CURRENCY (EUR or USD) and include estimated cost of delivery to the country"]
[null,"The CCM/PR may change the pre-populated unit cost. However, a justification shall be provided to justify the changes"]
[null,"All products presented in this table (Part 1) will be included under the \"Reinforcing national COVID-19 response\""]
[]
["Sn","Manufacturer / Type","COVID-19 test kit","Required Instrument Model","Number of instruments available for COVID-19 testing in Country",{"$f":"IF(P1=\"EUR\",\"Indicative Cost per Test, Incl. PSM costs (EUR)\", \"Indicative Cost per Test, Incl. PSM costs (USD)\")","v":"Indicative Cost per Test, Incl. PSM costs (USD)"},"Number of tests planned on an indicated platform","Number of tests already committed/available (including from other sources)"," Delivery Schedule for items requested under the  PRIORITY 1",{"$nulls":6},"Total  Cost of Requested Tests ","Reference for Activity/Product and unit cost (e.g. National Response Plan, WHO PQ/EUL, SRA EUL, national standards, wambo/WHO/UNICEF price references)",null,"Procurement arrangement","Priority 2",{"$nulls":16},"Q-ty",{"$nulls":5},"Cost",{"$nulls":4},"P2"]
[{"$nulls":8},"Qty to be delivered June 2020","Qty to be delivered in July 2020","Qty to be delivered in August 2020","Qty to be delivered in Sept 2020","Qty to be delivered in October -Dec 2020","Qty to be delivered in Jan-June 2021","Total Quantity of tests under Priority 1",{"$nulls":4},"Number of Tests Requested under Priority 2","Total  Cost of Requested Tests under the priority 2",{"$nulls":8},"Total","Unit cost USD","Unit cost EUR",{"$nulls":4},"Q-ty Q3","Q-ty Q4","Q5/6","T",null,"Unit Cost","Q-ty Q3","Q-ty Q4","Q5/6",null,null,"Q","Cost"]
[1,"Abbott Molecular Diagnostics","Abbott RealTime SARS-CoV-2 assay","Abbott m2000 System (Abbott m2000sp and m2000rt)",null,{"$f":"IF(P1=\"EUR\",AF15,AE15)","v":21.85},{"$nulls":8},{"$f":"SUM(I15:N15)","v":0},{"$f":"O15*F15","v":0},{"$nulls":4},{"$f":"T15*F15","v":0},{"$nulls":5},21.85,{"$f":"AA15*0.90665","v":19.810302499999999},null,0,21.85,{"$f":"AE15*0.90665","v":19.810302499999999},{"$nulls":4},{"$f":"I15+J15+K15+L15","v":0},{"$f":"M15","v":0},{"$f":"N15","v":0},{"$f":"AK15+AL15+AM15","v":0},null,{"$f":"F15","v":21.85},{"$f":"AP15*AK15","v":0},{"$f":"AP15*AL15","v":0},{"$f":"AM15*AP15","v":0},null,null,{"$f":"T15","v":0},{"$f":"AV15*AP15","v":0}]
[2,"Cepheid","Xpert Xpress SARS-CoV-2 kit","GeneXpert GX-I, 1-module instr.",null,{"$f":"IF(P1=\"EUR\",AF16,AE16)","v":22.8},{"$nulls":8},{"$f":"SUM(I16:N21)","v":0},{"$f":"O16*F16","v":0},{"$nulls":4},{"$f":"T16*F16","v":0},{"$nulls":5},22.8,{"$f":"AA16*0.90665","v":20.671620000000001},null,0,22.8,{"$f":"AE16*0.90665","v":20.671620000000001},{"$nulls":4},{"$f":"I16+J16+K16+L16","v":0},{"$f":"M16","v":0},{"$f":"N16","v":0},{"$f":"AM16+AL16+AK16","v":0},null,{"$f":"F16","v":22.8},{"$f":"AP16*AK16","v":0},{"$f":"AL16*AP16","v":0},{"$f":"AP16*AM16","v":0},null,null,{"$f":"T16","v":0},{"$f":"AV16*AP16","v":0}]
[null,null,null,"GeneXpert GX-II, 2-module instr.",{"$nulls":25},0]
[null,null,null,"GeneXpert GX-IV, 4-module instr.",{"$nulls":25},0]
[null,null,null,"GeneXpert GX-XVI, 16-module instr.",{"$nulls":25},0]
[null,null,null,"GeneXpert Infinity 48s",{"$nulls":25},0]
[null,null,null,"GeneXpert Infinity 80",{"$nulls":25},0]
[3,"Roche/Cobas","Cobas® SARS-CoV-2 Test","Cobas® 6800 System",null,{"$f":"IF(P1=\"EUR\",AF22,AE22)","v":18.399999999999999},{"$nulls":8},{"$f":"SUM(I22:N23)","v":0},{"$f":"O22*F22","v":0},{"$nulls":4},{"$f":"T22*F22","v":0},{"$nulls":5},18.399999999999999,{"$f":"AA22*0.90665","v":16.682359999999999},null,0,18.399999999999999,{"$f":"AE22*0.90665","v":16.682359999999999},{"$nulls":4},{"$f":"I22+J22+K22+L22","v":0},{"$f":"M22","v":0},{"$f":"N22","v":0},{"$f":"AM22+AL22+AK22","v":0},null,{"$f":"F22","v":18.399999999999999},{"$f":"AP22*AK22","v":0},{"$f":"AP22*AL22","v":0},{"$f":"AP22*AM22","v":0},null,null,{"$f":"T22","v":0},{"$f":"AV22*AP22","v":0}]
[null,null,null,"Cobas® 8800 System",{"$nulls":25},0]
[4,"ThermoFisher Scientific ","TaqPath™ COVID-19 Combo Kit","Applied Biosystems (AB) 7500 Fast Dx Real‑Time PCR Instrument or AB 7500 Fast Real‑Time PCR Instrument or AB 7500 Real‑Time PCR Instrument or AB QuantStudio 5 or AB QuantStudio 7flex\n\n",null,{"$f":"IF(P1=\"EUR\",AF24,AE24)","v":17.25},{"$nulls":8},{"$f":"SUM(I24:N25)","v":0},{"$f":"O24*F24","v":0},{"$nulls":4},{"$f":"T24*F24","v":0},{"$nulls":5},17.25,{"$f":"AA24*0.90665","v":15.6397125},null,0,17.25,{"$f":"AE24*0.90665","v":15.6397125},{"$nulls":4},{"$f":"I24+J24+K24+L24","v":0},{"$f":"M24","v":0},{"$f":"N24","v":0},{"$f":"AK24+AL24+AM24","v":0},null,{"$f":"F24","v":17.25},{"$f":"AP24*AK24","v":0},{"$f":"AP24*AL24","v":0},{"$f":"AP24*AM24","v":0},null,null,{"$f":"T24","v":0},{"$f":"AV24*AP24","v":0}]
[null,null,null,"KingFisher™ Flex Magnetic Particle Processor with 96 DeepWell Head",{"$nulls":25},0]
[5,"Manual test - BGI (incl. sample collection)","Real-time fluorescent RT-PCR kit for detecting 2019-nCoV","Applied Biosystems™ Real time PCR system 7500/7500 Fast; or \nApplied Biosystems QuantStudio 5 Real-Time PCR Systems, or\nSLAN-96P PCR system; or \nLightCycler® 480 System.",null,{"$f":"IF(P1=\"EUR\",AF26,AE26)","v":15.299999999999999},{"$nulls":8},{"$f":"SUM(I26:N26)","v":0},{"$f":"O26*F26","v":0},{"$nulls":4},{"$f":"T26*F26","v":0},{"$nulls":5},15.299999999999999,{"$f":"AA26*0.90665","v":13.871744999999999},null,0,15.299999999999999,{"$f":"AE26*0.90665","v":13.871744999999999},{"$nulls":4},{"$f":"I26+J26+K26+L26","v":0},{"$f":"M26","v":0},{"$f":"N26","v":0},{"$f":"AK26+AL26+AM26","v":0},null,{"$f":"F26","v":15.299999999999999},{"$f":"AP26*AK26","v":0},{"$f":"AP26*AL26","v":0},{"$f":"AM26*AP26","v":0},null,null,{"$f":"T26","v":0},{"$f":"AV26*AP26","v":0}]
[6,"Manual test - Thermofisher ","TaqPath™ COVID-19 Combo Kit","Applied Biosystems (AB) 7500 Fast Dx Real‑Time PCR Instrument or AB 7500 Fast Real‑Time PCR Instrument or AB 7500 Real‑Time PCR Instrument or AB QuantStudio 5 or AB QuantStudio 7flex\n",null,{"$f":"IF(P1=\"EUR\",AF27,AE27)","v":17.25},{"$nulls":8},{"$f":"SUM(I27:N27)","v":0},{"$f":"O27*F27","v":0},{"$nulls":4},{"$f":"T27*F27","v":0},{"$nulls":5},17.25,{"$f":"AA27*0.90665","v":15.6397125},null,0,17.25,{"$f":"AE27*0.90665","v":15.6397125},{"$nulls":4},{"$f":"I27+J27+K27+L27","v":0},0,0,{"$f":"AK27+AL27+AM27","v":0},null,{"$f":"F27","v":17.25},0,0,0,null,null,0,0]
[7,"Generic Sample collection kit (if you have specific requirements, please indicate them under column \"p\")",null,null,"N/A",{"$f":"IF(P1=\"EUR\",AF28,AE28)","v":2},{"$nulls":8},{"$f":"SUM(I28:N28)","v":0},{"$f":"F28*O28","v":0},{"$nulls":4},{"$f":"T28*F28","v":0},{"$nulls":5},2,{"$f":"AA28*0.90665","v":1.8132999999999999},null,0,2,{"$f":"AE28*0.90665","v":1.8132999999999999},{"$nulls":4},{"$f":"I28+J28+K28+L28","v":0},0,0,{"$f":"AK28+AL28+AM28","v":0},null,{"$f":"F28","v":2},0,0,0,null,null,0,0]
["Total cost of diagnostic test kits, including delivery to the country",{"$nulls":11},"Sub-Total Priority 1",null,null,{"$f":"SUM(P15:P28)","v":0},null,null,"Sub-Total Priority 2",null,{"$f":"SUM(U15:U28)","v":0},{"$nulls":21},{"$f":"SUM(AQ15:AQ28)","v":0},{"$f":"SUM(AR15:AR28)","v":0},{"$f":"SUM(AS15:AS28)","v":0},null,null,null,{"$f":"SUM(AW15:AW28)","v":0}]
[]
[null,"PART 2: Other Covid-19 diagnostic tests from the Global Fund Covid-19 QA Product List "]
[null,"Note: Please detail out below any needs for additional platforms beyond what is existing in your country that may be required to deliver your COVID-19 testing strategy. For Global Fund funding, beyond the tests from the WHO Consortium, please refer to the Global Fund QA-approved list. \"List of SARS-CoV-2 Diagnostic test kits and equipment eligible for procurement according to Board Decision on Additional Support for Country Responses to COVID-19 (GF/B42/EDP11)\" is available at this link: https://www.theglobalfund.org/media/9629/covid19_diagnosticproducts_list_en.pdf?u=637249766600000000\nPlease indicate only COVID-19 diagnostic test kits under this table (Part B). Any other laboratory equipment and consumables shall be  presented in the Part C\nPSM costs: Please indicate an estimated cost of delivery of products from a manufacturer to the country (first port of entry) as a percentage of the value of the goods (in the cell P:50)\nAll products presented in this table (part 2) will be included under the \"Reinforcing national COVID-19 response\""]
["SN","Manufacturer","COVID-19 test kit and a product code ","Instrument model used for testing (if you plan to purchase an instrument, please insert it in Table 3)","Unit of measure (test/kit..)","total quantity required","Number of tests already committed/available (including from other sources)"," Delivery Schedule for items requested under the  PRIORITY 1",{"$nulls":6},"Payment currency","Unit cost (Payment currency)",{"$f":"IF('SETUP and Instructions'!G4=\"Please select\",\"Unit Price - grant currency\",\"Unit Price (\"&P1&\")\")","v":"Unit Price - grant currency"},{"$f":"IF('SETUP and Instructions'!G4=\"Please select\",\"Total cost - grant currency\",\"Total cost (\"&P1&\")\")","v":"Total cost - grant currency"},"Procurement arrangement",null,"Priority 2",null,"Reference for Activity/Product and unit cost (e.g. National Response Plan, WHO PQ/EUL, SRA EUL, national standards, wambo/WHO/UNICEF price references)",{"$nulls":13},"Q-ty",{"$nulls":5},"Cost",{"$nulls":4},"P2"]
[{"$nulls":7},"Qty to be delivered June 2020","Qty to be delivered in July 2020","Qty to be delivered in August 2020","Qty to be delivered in Sept 2020","Qty to be delivered in October -Dec 2020","Qty to be delivered in Jan-June 2021","Number of Tests Requested under Priority 1",{"$nulls":6},"Number of Tests Requested under Priority 2","Total  Cost of Requested Tests under the priority 2",{"$nulls":14},"Q-ty Q3","Q-ty Q4","Q5/6","T",null,"Unit Cost","Q-ty Q3","Q-ty Q4","Q5/6",null,null,"Q","Cost"]
[1,{"$nulls":12},{"$f":"SUM(H35:M35)","v":0},null,null,{"$f":"IF(ISBLANK(P35)=TRUE,0,IF(O35=$P$2,P35/$P$3,P35))","v":0},{"$f":"IF(Q35*N35<0,0,Q35*N35)","v":0},null,null,null,{"$f":"U35*Q35","v":0},{"$nulls":14},{"$f":"I35+J35+K35+H35","v":0},{"$f":"L35","v":0},{"$f":"M35","v":0},{"$f":"AK35+AL35+AM35","v":0},null,{"$f":"Q35*(1+$P$50)","v":0},{"$f":"AP35*AK35","v":0},{"$f":"AP35*AL35","v":0},{"$f":"AM35*AP35","v":0},null,null,{"$f":"U35","v":0},{"$f":"AV35*AP35","v":0}]
[2,{"$nulls":12},{"$f":"SUM(H36:M36)","v":0},null,null,{"$f":"IF(ISBLANK(P36)=TRUE,0,IF(O36=$P$2,P36/$P$3,P36))","v":0},0,null,null,null,0,{"$nulls":14},{"$f":"I36+J36+K36+H36","v":0},{"$f":"L36","v":0},{"$f":"M36","v":0},{"$f":"AK36+AL36+AM36","v":0},null,{"$f":"Q36*(1+$P$50)","v":0},{"$f":"AP36*AK36","v":0},{"$f":"AP36*AL36","v":0},{"$f":"AM36*AP36","v":0},null,null,{"$f":"U36","v":0},{"$f":"AV36*AP36","v":0}]
[3,{"$nulls":12},0,null,null,0,0,null,null,null,0,{"$nulls":14},0,0,0,0,null,0,0,0,0,null,null,0,0]
[4,{"$nulls":12},0,null,null,0,0,null,null,null,0,{"$nulls":14},0,0,0,0,null,0,0,0,0,null,null,0,0]
[5,{"$nulls":12},0,null,null,0,0,null,null,null,0,{"$nulls":14},0,0,0,0,null,0,0,0,0,null,null,0,0]
[6,{"$nulls":12},0,null,null,0,0,null,null,null,0,{"$nulls":14},0,0,0,0,null,0,0,0,0,null,null,0,0]
[7,{"$nulls":12},0,null,null,0,0,null,null,null,0,{"$nulls":14},0,0,0,0,null,0,0,0,0,null,null,0,0]
[8,{"$nulls":12},0,null,null,0,0,null,null,null,0,{"$nulls":14},0,0,0,0,null,0,0,0,0,null,null,0,0]
[9,{"$nulls":12},0,null,null,0,0,null,null,null,0,{"$nulls":14},0,0,0,0,null,0,0,0,0,null,null,0,0]
[10,{"$nulls":12},0,null,null,0,0,null,null,null,0,{"$nulls":14},0,0,0,0,null,0,0,0,0,null,null,0,0]
[11,{"$nulls":12},0,null,null,0,0,null,null,null,0,{"$nulls":14},0,0,0,0,null,0,0,0,0,null,null,0,0]
[12,{"$nulls":12},0,null,null,0,0,null,null,null,0,{"$nulls":14},0,0,0,0,null,0,0,0,0,null,null,0,0]
[13,{"$nulls":12},0,null,null,0,0,null,null,null,0,{"$nulls":14},0,0,0,0,null,0,0,0,0,null,null,0,0]
[14,{"$nulls":12},0,null,null,0,0,null,null,null,0,{"$nulls":14},0,0,0,0,null,0,0,0,0,null,null,0,0]
[15,{"$nulls":12},0,null,null,0,0,null,null,null,0,{"$nulls":14},0,0,0,0,null,0,0,0,0,null,null,0,0]
[16,"Estimated logistics costs (from a manufacturer to the country) - %",{"$nulls":13},0.02,{"$f":"P50","v":0.02},{"$f":"SUM(R35:R49)*P50","v":0},null,null,null,{"$f":"SUM(V35:V49)*P50","v":0},{"$nulls":19},"Total->",{"$f":"SUM(AQ35:AQ49)","v":0},{"$f":"SUM(AR35:AR49)","v":0},{"$f":"SUM(AS35:AS49)","v":0},null,null,null,{"$f":"SUM(AW35:AW49)","v":0}]
[null,"Total cost of diagnostic test kits, including delivery to the country",{"$nulls":13},"Sub-Total Priority 1",null,{"$f":"SUM(R35:R50)","v":0},null,"Sub-Total Priority 2",null,{"$f":"SUM(V35:V50)","v":0},{"$nulls":20},"Q-ty Q3","Q-ty Q4","Q5/6",null,null,null,"Cost"]
[]
[]
[null,"PART 3: All other diagnostic equipment and consumables not listed in Part A and Part B tables above."]
[null,"Note: All  laboratory/diagnostic products, except of reagent kits presented in Parts A and B, shall be included in the table below (some examples include; BSC cabinet, centrifuges, pipette tips, ethanol, etc.)\nPSM costs: Please indicate an estimated cost of delivery of products from a manufacturer to the country (first port of entry) as a percentage of the value of the goods (in the cell O:141)"]
[null,"Unless otherwise specified under the column \"Category\" (column \"B\") all products included in this table by default will be budgeted under the category \"Reinforcing national COVID-19 response\""]
[]
["SN","Category","Item Description",null,"Unit of measurement","Total Qty required","Qty already available/ committed  (including from other sources)"," Delivery Schedule for items requested under the  PRIORITY 1",{"$nulls":6},"Payment currency","Unit cost (Payment currency)",{"$f":"IF('SETUP and Instructions'!G4=\"Please select\",\"Unit Price - grant currency\",\"Unit Price (\"&P1&\")\")","v":"Unit Price - grant currency"},{"$f":"IF('SETUP and Instructions'!G4=\"Please select\",\"Total cost - grant currency\",\"Total cost (\"&P1&\")\")","v":"Total cost - grant currency"},"Procurement arrangement",null,"Priority 2",null,"Reference for Activity/Product and unit cost (e.g. National Response Plan, WHO PQ/EUL, SRA EUL, national standards, wambo/WHO/UNICEF price references)",{"$nulls":13},"Q-ty",{"$nulls":5},"Cost",{"$nulls":4},"P2"]
[{"$nulls":7},"Qty to be delivered June 2020","Qty to be delivered in July 2020","Qty to be delivered in August 2020","Qty to be delivered in Sept 2020","Qty to be delivered in October -Dec 2020","Qty to be delivered in Jan-June 2021","Quantity Requested under Priority 1",{"$nulls":6},"Quantity requested under Priority 2","Total  Cost  Requested  under the priority 2",{"$nulls":11},"Cat Yes/No","unit or Q y/n",null,"Q-ty Q3","Q-ty Q4","Q5/6","T",null,"Unit Cost","Q-ty Q3","Q-ty Q4","Q5/6",null,null,"Q","Cost"]
[1,{"$nulls":12},{"$f":"SUM(H60:M60)","v":0},null,null,{"$f":"IF(ISBLANK(P60)=TRUE,0,IF(O60=$P$2,P60/$P$3,P60))","v":0},{"$f":"IF(Q60*N60<0,0,Q60*N60)","v":0},null,null,null,{"$f":"U60*Q60","v":0},{"$nulls":11},{"$f":"IF(B60=$AN$142,1,IF(B60=$AN$143,1,IF(B60=$AN$144,1,0)))","v":0},{"$f":"IF(N60<>0,1,IF(P60<>0,1,IF(U60<>0,1,0)))","v":0},{"$f":"IF(AI60=0,0,IF(AH60=0,\"E\",1))","v":0},{"$f":"H60+I60+J60+K60","v":0},{"$f":"L60","v":0},{"$f":"M60","v":0},{"$f":"AK60+AL60+AM60","v":0},null,{"$f":"Q60*(1+$P$141)","v":0},{"$f":"AP60*AK60","v":0},{"$f":"AP60*AL60","v":0},{"$f":"AM60*AP60","v":0},null,null,{"$f":"U60","v":0},{"$f":"AV60*AP60","v":0}]
[2,{"$nulls":12},{"$f":"SUM(H61:M61)","v":0},null,null,{"$f":"IF(ISBLANK(P61)=TRUE,0,IF(O61=$P$2,P61/$P$3,P61))","v":0},{"$f":"IF(Q61*N61<0,0,Q61*N61)","v":0},null,null,null,{"$f":"U61*Q61","v":0},{"$nulls":11},{"$f":"IF(B61=$AN$142,1,IF(B61=$AN$143,1,IF(B61=$AN$144,1,0)))","v":0},{"$f":"IF(N61<>0,1,IF(P61<>0,1,IF(U61<>0,1,0)))","v":0},{"$f":"IF(AI61=0,0,IF(AH61=0,\"E\",1))","v":0},{"$f":"H61+I61+J61+K61","v":0},{"$f":"L61","v":0},{"$f":"M61","v":0},{"$f":"AK61+AL61+AM61","v":0},null,{"$f":"Q61*(1+$P$141)","v":0},{"$f":"AP61*AK61","v":0},{"$f":"AP61*AL61","v":0},{"$f":"AM61*AP61","v":0},null,null,{"$f":"U61","v":0},{"$f":"AV61*AP61","v":0}]
[3,{"$nulls":12},0,null,null,0,0,null,null,null,0,{"$nulls":11},0,0,0,0,0,0,0,null,0,0,0,0,null,null,0,0]
[4,{"$nulls":12},0,null,null,0,0,null,null,null,0,{"$nulls":11},0,0,0,0,0,0,0,null,0,0,0,0,null,null,0,0]
[5,{"$nulls":12},0,null,null,0,0,null,null,null,0,{"$nulls":11},0,0,0,0,0,0,0,null,0,0,0,0,null,null,0,0]
[6,{"$nulls":12},0,null,null,0,0,null,null,null,0,{"$nulls":11},0,0,0,0,0,0,0,null,0,0,0,0,null,null,0,0]
[7,{"$nulls":12},0,null,null,0,0,null,null,null,0,{"$nulls":11},0,0,0,0,0,0,0,null,0,0,0,0,null,null,0,0]
[8,{"$nulls":12},0,null,null,0,0,null,null,null,0,{"$nulls":11},0,0,0,0,0,0,0,null,0,0,0,0,null,null,0,0]
[9,{"$nulls":12},0,null,null,0,0,null,null,null,0,{"$nulls":11},0,0,0,0,0,0,0,null,0,0,0,0,null,null,0,0]
[10,{"$nulls":12},0,null,null,0,0,null,null,null,0,{"$nulls":11},0,0,0,0,0,0,0,null,0,0,0,0,null,null,0,0]
[11,{"$nulls":12},0,null,null,0,0,null,null,null,0,{"$nulls":11},0,0,0,0,0,0,0,null,0,0,0,0,null,null,0,0]
[12,{"$nulls":12},0,null,null,0,0,null,null,null,0,{"$nulls":11},0,0,0,0,0,0,0,null,0,0,0,0,null,null,0,0]
[13,{"$nulls":12},0,null,null,0,0,null,null,null,0,{"$nulls":11},0,0,0,0,0,0,0,null,0,0,0,0,null,null,0,0]
[14,{"$nulls":12},0,null,null,0,0,null,null,null,0,{"$nulls":11},0,0,0,0,0,0,0,null,0,0,0,0,null,null,0,0]
[15,{"$nulls":12},0,null,null,0,0,null,null,null,0,{"$nulls":11},0,0,0,0,0,0,0,null,0,0,0,0,null,null,0,0]
[16,{"$nulls":12},0,null,null,0,0,null,null,null,0,{"$nulls":11},0,0,0,0,0,0,0,null,0,0,0,0,null,null,0,0]
[17,{"$nulls":12},0,null,null,0,0,null,null,null,0,{"$nulls":11},0,0,0,0,0,0,0,null,0,0,0,0,null,null,0,0]
[18,{"$nulls":12},0,null,null,0,0,null,null,null,0,{"$nulls":11},0,0,0,0,0,0,0,null,0,0,0,0,null,null,0,0]
[19,{"$nulls":12},0,null,null,0,0,null,null,null,0,{"$nulls":11},0,0,0,0,0,0,0,null,0,0,0,0,null,null,0,0]
[20,{"$nulls":12},0,null,null,0,0,null,null,null,0,{"$nulls":11},0,0,0,0,0,0,0,null,0,0,0,0,null,null,0,0]
[21,{"$nulls":12},0,null,null,0,0,null,null,null,0,{"$nulls":11},0,0,0,0,0,0,0,null,0,0,0,0,null,null,0,0]
[22,{"$nulls":12},0,null,null,0,0,null,null,null,0,{"$nulls":11},0,0,0,0,0,0,0,null,0,0,0,0,null,null,0,0]
[23,{"$nulls":12},0,null,null,0,0,null,null,null,0,{"$nulls":11},0,0,0,0,0,0,0,null,0,0,0,0,null,null,0,0]
[24,{"$nulls":12},0,null,null,0,0,null,null,null,0,{"$nulls":11},0,0,0,0,0,0,0,null,0,0,0,0,null,null,0,0]
[25,{"$nulls":12},0,null,null,0,0,null,null,null,0,{"$nulls":11},0,0,0,0,0,0,0,null,0,0,0,0,null,null,0,0]
[26,{"$nulls":12},0,null,null,0,0,null,null,null,0,{"$nulls":11},0,0,0,0,0,0,0,null,0,0,0,0,null,null,0,0]
[27,{"$nulls":12},0,null,null,0,0,null,null,null,0,{"$nulls":11},0,0,0,0,0,0,0,null,0,0,0,0,null,null,0,0]
[28,{"$nulls":12},0,null,null,0,0,null,null,null,0,{"$nulls":11},0,0,0,0,0,0,0,null,0,0,0,0,null,null,0,0]
[29,{"$nulls":12},0,null,null,0,0,null,null,null,0,{"$nulls":11},0,0,0,0,0,0,0,null,0,0,0,0,null,null,0,0]
[30,{"$nulls":12},0,null,null,0,0,null,null,null,0,{"$nulls":11},0,0,0,0,0,0,0,null,0,0,0,0,null,null,0,0]
[31,{"$nulls":12},0,null,null,0,0,null,null,null,0,{"$nulls":11},0,0,0,0,0,0,0,null,0,0,0,0,null,null,0,0]
[32,{"$nulls":12},0,null,null,0,0,null,null,null,0,{"$nulls":11},0,0,0,0,0,0,0,null,0,0,0,0,null,null,0,0]
[33,{"$nulls":12},0,null,null,0,0,null,null,null,0,{"$nulls":11},0,0,0,0,0,0,0,null,0,0,0,0,null,null,0,0]
[34,{"$nulls":12},0,null,null,0,0,null,null,null,0,{"$nulls":11},0,0,0,0,0,0,0,null,0,0,0,0,null,null,0,0]
[35,{"$nulls":12},0,null,null,0,0,null,null,null,0,{"$nulls":11},0,0,0,0,0,0,0,null,0,0,0,0,null,null,0,0]
[36,{"$nulls":12},0,null,null,0,0,null,null,null,0,{"$nulls":11},0,0,0,0,0,0,0,null,0,0,0,0,null,null,0,0]
[37,{"$nulls":12},0,null,null,0,0,null,null,null,0,{"$nulls":11},0,0,0,0,0,0,0,null,0,0,0,0,null,null,0,0]
[38,{"$nulls":12},0,null,null,0,0,null,null,null,0,{"$nulls":11},0,0,0,0,0,0,0,null,0,0,0,0,null,null,0,0]
[39,{"$nulls":12},0,null,null,0,0,null,null,null,0,{"$nulls":11},0,0,0,0,0,0,0,null,0,0,0,0,null,null,0,0]
[40,{"$nulls":12},0,null,null,0,0,null,null,null,0,{"$nulls":11},0,0,0,0,0,0,0,null,0,0,0,0,null,null,0,0]
[41,{"$nulls":12},0,null,null,0,0,null,null,null,0,{"$nulls":11},0,0,0,0,0,0,0,null,0,0,0,0,null,null,0,0]
[42,{"$nulls":12},0,null,null,0,0,null,null,null,0,{"$nulls":11},0,0,0,0,0,0,0,null,0,0,0,0,null,null,0,0]
[43,{"$nulls":12},0,null,null,0,0,null,null,null,0,{"$nulls":11},0,0,0,0,0,0,0,null,0,0,0,0,null,null,0,0]
[44,{"$nulls":12},0,null,null,0,0,null,null,null,0,{"$nulls":11},0,0,0,0,0,0,0,null,0,0,0,0,null,null,0,0]
[45,{"$nulls":12},0,null,null,0,0,null,null,null,0,{"$nulls":11},0,0,0,0,0,0,0,null,0,0,0,0,null,null,0,0]
[46,{"$nulls":12},0,null,null,0,0,null,null,null,0,{"$nulls":11},0,0,0,0,0,0,0,null,0,0,0,0,null,null,0,0]
[47,{"$nulls":12},0,null,null,0,0,null,null,null,0,{"$nulls":11},0,0,0,0,0,0,0,null,0,0,0,0,null,null,0,0]
[48,{"$nulls":12},0,null,null,0,0,null,null,null,0,{"$nulls":11},0,0,0,0,0,0,0,null,0,0,0,0,null,null,0,0]
[49,{"$nulls":12},0,null,null,0,0,null,null,null,0,{"$nulls":11},0,0,0,0,0,0,0,null,0,0,0,0,null,null,0,0]
[50,{"$nulls":12},0,null,null,0,0,null,null,null,0,{"$nulls":11},0,0,0,0,0,0,0,null,0,0,0,0,null,null,0,0]
[51,{"$nulls":12},0,null,null,0,0,null,null,null,0,{"$nulls":11},0,0,0,0,0,0,0,null,0,0,0,0,null,null,0,0]
[52,{"$nulls":12},0,null,null,0,0,null,null,null,0,{"$nulls":11},0,0,0,0,0,0,0,null,0,0,0,0,null,null,0,0]
[53,{"$nulls":12},0,null,null,0,0,null,null,null,0,{"$nulls":11},0,0,0,0,0,0,0,null,0,0,0,0,null,null,0,0]
[54,{"$nulls":12},0,null,null,0,0,null,null,null,0,{"$nulls":11},0,0,0,0,0,0,0,null,0,0,0,0,null,null,0,0]
[55,{"$nulls":12},0,null,null,0,0,null,null,null,0,{"$nulls":11},0,0,0,0,0,0,0,null,0,0,0,0,null,null,0,0]
[56,{"$nulls":12},0,null,null,0,0,null,null,null,0,{"$nulls":11},0,0,0,0,0,0,0,null,0,0,0,0,null,null,0,0]
[57,{"$nulls":12},0,null,null,0,0,null,null,null,0,{"$nulls":11},0,0,0,0,0,0,0,null,0,0,0,0,null,null,0,0]
[58,{"$nulls":12},0,null,null,0,0,null,null,null,0,{"$nulls":11},0,0,0,0,0,0,0,null,0,0,0,0,null,null,0,0]
[59,{"$nulls":12},0,null,null,0,0,null,null,null,0,{"$nulls":11},0,0,0,0,0,0,0,null,0,0,0,0,null,null,0,0]
[60,{"$nulls":12},0,null,null,0,0,null,null,null,0,{"$nulls":11},0,0,0,0,0,0,0,null,0,0,0,0,null,null,0,0]
[61,{"$nulls":12},0,null,null,0,0,null,null,null,0,{"$nulls":11},0,0,0,0,0,0,0,null,0,0,0,0,null,null,0,0]
[62,{"$nulls":12},0,null,null,0,0,null,null,null,0,{"$nulls":11},0,0,0,0,0,0,0,null,0,0,0,0,null,null,0,0]
[63,{"$nulls":12},0,null,null,0,0,null,null,null,0,{"$nulls":11},0,0,0,0,0,0,0,null,0,0,0,0,null,null,0,0]
[64,{"$nulls":12},0,null,null,0,0,null,null,null,0,{"$nulls":11},0,0,0,0,0,0,0,null,0,0,0,0,null,null,0,0]
[65,{"$nulls":12},0,null,null,0,0,null,null,null,0,{"$nulls":11},0,0,0,0,0,0,0,null,0,0,0,0,null,null,0,0]
[66,{"$nulls":12},{"$f":"SUM(H125:M125)","v":0},null,null,{"$f":"IF(ISBLANK(P125)=TRUE,0,IF(O125=$P$2,P125/$P$3,P125))","v":0},{"$f":"IF(Q125*N125<0,0,Q125*N125)","v":0},null,null,null,{"$f":"U125*Q125","v":0},{"$nulls":11},{"$f":"IF(B125=$AN$142,1,IF(B125=$AN$143,1,IF(B125=$AN$144,1,0)))","v":0},{"$f":"IF(N125<>0,1,IF(P125<>0,1,IF(U125<>0,1,0)))","v":0},{"$f":"IF(AI125=0,0,IF(AH125=0,\"E\",1))","v":0},{"$f":"H125+I125+J125+K125","v":0},{"$f":"L125","v":0},{"$f":"M125","v":0},{"$f":"AK125+AL125+AM125","v":0},null,{"$f":"Q125*(1+$P$141)","v":0},{"$f":"AP125*AK125","v":0},{"$f":"AP125*AL125","v":0},{"$f":"AM125*AP125","v":0},null,null,{"$f":"U125","v":0},{"$f":"AV125*AP125","v":0}]
[67,{"$nulls":12},0,null,null,0,0,null,null,null,0,{"$nulls":11},0,0,0,0,0,0,0,null,0,0,0,0,null,null,0,0]
[68,{"$nulls":12},0,null,null,0,0,null,null,null,0,{"$nulls":11},0,0,0,0,0,0,0,null,0,0,0,0,null,null,0,0]
[69,{"$nulls":12},0,null,null,0,0,null,null,null,0,{"$nulls":11},0,0,0,0,0,0,0,null,0,0,0,0,null,null,0,0]
[70,{"$nulls":12},0,null,null,0,0,null,null,null,0,{"$nulls":11},0,0,0,0,0,0,0,null,0,0,0,0,null,null,0,0]
[71,{"$nulls":12},0,null,null,0,0,null,null,null,0,{"$nulls":11},0,0,0,0,0,0,0,null,0,0,0,0,null,null,0,0]
[72,{"$nulls":12},0,null,null,0,0,null,null,null,0,{"$nulls":11},0,0,0,0,0,0,0,null,0,0,0,0,null,null,0,0]
[73,{"$nulls":12},0,null,null,0,0,null,null,null,0,{"$nulls":11},0,0,0,0,0,0,0,null,0,0,0,0,null,null,0,0]
[74,{"$nulls":12},0,null,null,0,0,null,null,null,0,{"$nulls":11},0,0,0,0,0,0,0,null,0,0,0,0,null,null,0,0]
[75,{"$nulls":12},0,null,null,0,0,null,null,null,0,{"$nulls":11},0,0,0,0,0,0,0,null,0,0,0,0,null,null,0,0]
[76,{"$nulls":12},0,null,null,0,0,null,null,null,0,{"$nulls":11},0,0,0,0,0,0,0,null,0,0,0,0,null,null,0,0]
[77,{"$nulls":12},0,null,null,0,0,null,null,null,0,{"$nulls":11},0,0,0,0,0,0,0,null,0,0,0,0,null,null,0,0]
[78,{"$nulls":12},0,null,null,0,0,null,null,null,0,{"$nulls":11},0,0,0,0,0,0,0,null,0,0,0,0,null,null,0,0]
[79,{"$nulls":12},0,null,null,0,0,null,null,null,0,{"$nulls":11},0,0,0,0,0,0,0,null,0,0,0,0,null,null,0,0]
[80,{"$nulls":12},0,null,null,0,0,null,null,null,0,{"$nulls":11},0,0,0,0,0,0,0,null,0,0,0,0,null,null,0,0]
[81,{"$nulls":12},0,null,null,0,0,null,null,null,{"$f":"U140*Q140","v":0},{"$nulls":11},0,0,0,0,0,0,0,null,0,0,0,0,null,null,0,0]
[null,"Please do not add rows below this lien","PSM costs (%)",null,"%",{"$nulls":9},0.02,{"$f":"O141","v":0.02},null,{"$f":"SUM(R60:R140)*O141","v":0},null,null,null,{"$f":"SUM(V60:V140)*O141","v":0},{"$nulls":18},"Total",null,{"$f":"SUM(AQ60:AQ140)","v":0},{"$f":"SUM(AR60:AR140)","v":0},{"$f":"SUM(AS60:AS140)","v":0},null,{"$f":"AO141","v":"Total"},null,{"$f":"SUM(AW60:AW140)","v":0}]
[null,"Total cost of diagnostic test kits, including delivery to the country",{"$nulls":13},"Sub-Total Priority 1",null,{"$f":"SUM(R60:R141)","v":0},null,"Sub-Total Priority 2",null,{"$f":"SUM(V60:V141)","v":0},{"$nulls":17},{"$f":"ctlgs!G7","v":"Mitigating impact of Covid-19"},null,null,{"$f":"SUMIF(B60:B140,$AN142,AQ60:AQ140)","v":0},{"$f":"SUMIF(B60:B140,$AN142,AR60:AR140)","v":0},{"$f":"SUMIF(B60:B140,$AN142,AS60:AS140)","v":0},null,null,null,{"$f":"SUMIF(B60:B140,$AN142,AW60:AW140)","v":0}]
[{"$nulls":39},{"$f":"ctlgs!G8","v":"Reinforcing national response"},null,null,{"$f":"AQ141-AQ142-AQ144","v":0},{"$f":"AR141-AR142-AR144","v":0},{"$f":"AS141-AS142-AS144","v":0},null,null,null,{"$f":"AW141-AW142-AW144","v":0}]
[{"$nulls":39},{"$f":"ctlgs!G9","v":"Improvements in health and comm. Syst"},null,null,{"$f":"SUMIF(B60:B140,$AN144,AQ60:AQ140)","v":0},{"$f":"SUMIF(B60:B140,$AN144,AR60:AR140)","v":0},{"$f":"SUMIF(B61:B141,$AN144,AS60:AS140)","v":0},null,null,null,{"$f":"SUMIF(B60:B140,$AN144,AW60:AW140)","v":0}]
[]
[]
[]
[{"$nulls":38},"Total for",{"$f":"ctlgs!G13","v":0},null,null,{"$f":"AQ143+AQ50+AQ29","v":0},{"$f":"AR143+AR50+AR29","v":0},{"$f":"AS143+AS50+AS29","v":0},null,null,null,{"$f":"AW143+AW50+AW29","v":0}]

{"sheet":"Annex B - PPE and other HP","index":3,"n_rows":150,"n_cols":55,"rows_kept":150,"cut":false,"hidden":false,"merged":[[137,0,137,3],[2,11,2,12],[10,0,11,0],[2,1,2,9],[3,1,4,9],[53,0,54,0],[53,1,54,1],[53,2,54,2],[53,7,54,7],[53,6,54,6],[10,1,11,3],[26,0,26,3],[25,0,25,3],[24,0,24,3],[10,4,11,4],[10,5,11,5],[10,6,11,6],[10,7,10,13],[53,13,54,13],[53,5,54,5],[58,3,58,4],[59,3,59,4],[61,3,61,4],[62,3,62,4],[53,14,54,14],[53,15,54,15],[53,16,54,16],[53,17,54,17],[53,18,54,18],[53,19,54,19],[25,13,25,16],[50,1,50,10],[7,1,7,5],[8,1,8,5],[53,3,54,4],[100,3,100,4],[89,3,89,4],[90,3,90,4],[91,3,91,4],[92,3,92,4],[93,3,93,4],[94,3,94,4],[101,3,101,4],[55,3,55,4],[56,3,56,4],[57,3,57,4],[68,3,68,4],[69,3,69,4],[70,3,70,4],[60,3,60,4],[71,3,71,4],[72,3,72,4],[63,3,63,4],[64,3,64,4],[65,3,65,4],[66,3,66,4],[67,3,67,4],[102,3,102,4],[103,3,103,4],[73,3,73,4],[95,3,95,4],[96,3,96,4],[97,3,97,4],[98,3,98,4],[109,3,109,4],[74,3,74,4],[75,3,75,4],[76,3,76,4],[77,3,77,4],[78,3,78,4],[79,3,79,4],[80,3,80,4],[81,3,81,4],[82,3,82,4],[83,3,83,4],[84,3,84,4],[85,3,85,4],[86,3,86,4],[87,3,87,4],[88,3,88,4],[99,3,99,4],[110,3,110,4],[111,3,111,4],[112,3,112,4],[113,3,113,4],[104,3,104,4],[105,3,105,4],[106,3,106,4],[107,3,107,4],[108,3,108,4],[119,3,119,4],[120,3,120,4],[121,3,121,4],[122,3,122,4],[123,3,123,4],[114,3,114,4],[115,3,115,4],[116,3,116,4],[117,3,117,4],[118,3,118,4],[134,3,134,4],[135,3,135,4],[129,3,129,4],[130,3,130,4],[131,3,131,4],[132,3,132,4],[133,3,133,4],[124,3,124,4],[125,3,125,4],[126,3,126,4],[127,3,127,4],[128,3,128,4],[9,53,9,54],[9,45,9,51],[10,45,10,47],[10,49,10,51],[0,11,0,12],[1,11,1,12],[0,13,0,16],[1,13,1,16],[2,13,2,16],[10,22,10,23],[10,20,10,21],[10,19,11,19],[10,18,11,18],[10,14,11,14],[10,15,11,15],[10,16,11,16],[10,17,11,17],[53,42,53,44],[53,53,53,54],[32,49,32,51],[43,0,43,3],[44,0,44,3],[44,13,44,16],[45,0,45,3],[32,41,32,43],[32,18,33,18],[32,19,33,19],[32,20,32,21],[32,45,32,47],[32,7,32,13],[32,14,33,14],[32,15,33,15],[32,16,33,16],[32,17,33,17],[32,0,33,0],[32,1,33,3],[32,4,33,4],[32,5,33,5],[32,6,33,6],[53,21,53,22],[53,20,54,20]]}
[null,"Annex B: Personal Protective Equipment (PPE) and other health products",{"$nulls":9},{"$f":"'C19RM Budget'!B1","v":"Grant Currency:"},null,{"$f":"'C19RM Budget'!C1","v":"No grant currency is selected on Setup Tab"},{"$nulls":26},"Service column","Service column","Service column","Service column","Service column","Service column","Service column","Service column","Service column","Service column","Service column","Service column","Service column","Service column","Service column"]
[{"$nulls":11},{"$f":"'C19RM Budget'!B2","v":"Local Currency"},null,{"$f":"'C19RM Budget'!C2","v":"No local currency is selected on Setup Tab"},{"$nulls":26},{"$f":"'C19RM Budget'!C1","v":"No grant currency is selected on Setup Tab"}]
[null,"Please submit quantification/forecast of health products included in the request (showing assumptions and calculations used for estimation of health products needs)",{"$nulls":9},{"$f":"'C19RM Budget'!B3","v":"Fx rate to grant currency"},null,{"$f":"'C19RM Budget'!C3","v":1},{"$nulls":26},{"$f":"'C19RM Budget'!C2","v":"No local currency is selected on Setup Tab"}]
[null,"The quantification, ideally, should be prepared as per the WHO Covid-19 Essential Supplies Forecasting Tool (COVID-ESFT) v2.0: https://www.who.int/who-documents-detail/covid-19-essential-supplies-forecasting-tool       "]
[]
[]
["Part 1","Infection control / Health worker protection/PPE"]
[null,"By default PPE is budgeted under the \" Actions to reinforce the response to COVID-19\" category. However,  PPE can also be included under the \"interventions to mitigate the impact of COVID-19 on HIV, TB and malaria disease programs\" category. The split of PPE between the two categories can be specified under columns \"W\" and \"X\""]
[null,"PSM costs: Please indicate an estimated cost of delivery of products from a manufacturer to the country (first port of entry) as a percentage of the value of the goods (in the cell P:25)"]
[{"$nulls":45},"Budget P1",{"$nulls":7},"Budget P2"]
["SN","Item Description",null,null,"Unit of measurement","Total Qty required","Qty already available/ committed  (incl from other sources)","Quantity of products requested under the  Priority 1 request and the delivery schedule ",{"$nulls":6},"Payment currency","Unit cost (Payment currency)",{"$f":"IF('SETUP and Instructions'!G4=\"Please select\",\"Unit cost - grant currency\",\"unit cost (\"&N1&\")\")","v":"Unit cost - grant currency"},{"$f":"IF('SETUP and Instructions'!G4=\"Please select\",\"Total cost - grant currency\",\"Total cost (\"&N1&\")\")","v":"Total cost - grant currency"},"Procurement arrangement","Reference for Activity/Product and unit cost (e.g. National Response Plan, WHO PQ/EUL, SRA EUL, national standards, wambo/WHO/UNICEF price references)","Priority 2",null,"Categorization of PPE (percentage)",{"$nulls":22},{"$f":"W12","v":" Actions to reinforce the response to COVID-19"},null,null,null,{"$f":"X12","v":"interventions to mitigate the impact of COVID-19 on HIV, TB and malaria disease programs"},null,null,null,"Reinf","impact"]
[{"$nulls":7},"Qty to be delivered June 2020","Qty to be delivered in July 2020","Qty to be delivered in August 2020","Qty to be delivered in Sept 2020","Qty to be delivered in October -Dec 2020","Qty to be delivered in Jan-June 2021","Total quantity",{"$nulls":6},"Quantity requested  under Priority 2","Total  under the priority 2"," Actions to reinforce the response to COVID-19","interventions to mitigate the impact of COVID-19 on HIV, TB and malaria disease programs",{"$nulls":16},"Unit c w/PSM","Q-ty Q3","Q-ty Q4","Q5/6",null,"Q-ty Q3","Q-ty Q4","Q5/6",null,"Q-ty Q3","Q-ty Q4","Q5/6"]
[1,"Medical / surgical mask ",null,null,"1 piece",{"$nulls":8},{"$f":"SUM(H13:M13)","v":0},null,null,{"$f":"IF(ISBLANK(P13)=TRUE,0,IF(O13=$N$2,P13/$N$3,P13))","v":0},{"$f":"IF(Q13*N13<0,0,Q13*N13)","v":0},null,null,null,{"$f":"U13*Q13","v":0},1,{"$f":"1-W13","v":0},{"$nulls":16},{"$f":"Q13*(1+Q$25)","v":0},{"$f":"H13+I13+J13+K13","v":0},{"$f":"L13","v":0},{"$f":"M13","v":0},null,{"$f":"$AO13*AP13*$W13","v":0},{"$f":"$AO13*AQ13*$W13","v":0},{"$f":"$AO13*AR13*$W13","v":0},null,{"$f":"$AO13*AP13*$X13","v":0},{"$f":"$AO13*AQ13*$X13","v":0},{"$f":"$AO13*AR13*$X13","v":0},null,{"$f":"AO13*U13*W13","v":0},{"$f":"AO13*U13*X13","v":0}]
[2,"Respirator (FFP2 / N95) ",null,null,"1 piece",{"$nulls":8},{"$f":"SUM(H14:M14)","v":0},null,null,{"$f":"IF(ISBLANK(P14)=TRUE,0,IF(O14=$N$2,P14/$N$3,P14))","v":0},0,null,null,null,0,1,{"$f":"1-W14","v":0},{"$nulls":16},0,{"$f":"H14+I14+J14+K14","v":0},{"$f":"L14","v":0},{"$f":"M14","v":0},null,{"$f":"$AO14*AP14*$W14","v":0},{"$f":"$AO14*AQ14*$W14","v":0},{"$f":"$AO14*AR14*$W14","v":0},null,{"$f":"$AO14*AP14*$X14","v":0},{"$f":"$AO14*AQ14*$X14","v":0},{"$f":"$AO14*AR14*$X14","v":0},null,{"$f":"AO14*U14*W14","v":0},{"$f":"AO14*U14*X14","v":0}]
[3,"Face shield, single use",null,null,"1 piece",{"$nulls":8},0,null,null,0,0,null,null,null,0,1,0,{"$nulls":16},0,0,0,0,null,0,0,0,null,0,0,0,null,0,0]
[4,"Protective goggles, soft frame,",null,null,"1 piece",{"$nulls":8},0,null,null,0,0,null,null,null,0,1,0,{"$nulls":16},0,0,0,0,null,0,0,0,null,0,0,0,null,0,0]
[5,"Surgical gowns / isolation gowns, non-sterile ",null,null,"1 piece",{"$nulls":8},0,null,null,0,0,null,null,null,0,1,0,{"$nulls":16},0,0,0,0,null,0,0,0,null,0,0,0,null,0,0]
[6,"Apron, plastic, single use",null,null,"1 piece",{"$nulls":8},0,null,null,0,0,null,null,null,0,1,0,{"$nulls":16},0,0,0,0,null,0,0,0,null,0,0,0,null,0,0]
[7,"Gloves, examination (piece, not pair)",null,null,"1 piece",{"$nulls":8},0,null,null,0,0,null,null,null,0,1,0,{"$nulls":16},0,0,0,0,null,0,0,0,null,0,0,0,null,0,0]
[8,"Alcohol-based hand rub, bottle",null,null,"100 ml",{"$nulls":8},0,null,null,0,0,null,null,null,0,1,0,{"$nulls":16},0,0,0,0,null,0,0,0,null,0,0,0,null,0,0]
[9,"Alcohol-based hand rub, bottle",null,null,"500ml",{"$nulls":8},0,null,null,0,0,null,null,null,0,1,0,{"$nulls":16},0,0,0,0,null,0,0,0,null,0,0,0,null,0,0]
[10,"Biohazard bag",null,null,"1 piece",{"$nulls":8},0,null,null,0,0,null,null,null,0,1,0,{"$nulls":16},0,0,0,0,null,0,0,0,null,0,0,0,null,0,0]
[11,"Soap (liquid), bottle",null,null,"100 ml",{"$nulls":8},0,null,null,0,0,null,null,null,0,1,0,{"$nulls":16},0,0,0,0,null,0,0,0,null,0,0,0,null,0,0]
[12,"Safety box, 5L",null,null,"1 box",{"$nulls":8},0,null,null,0,0,null,null,null,0,1,0,{"$nulls":16},0,0,0,0,null,0,0,0,null,0,0,0,null,0,0]
["Estimated logistics costs (from a manufacturer to the country) - %",null,null,null,"%",{"$nulls":10},0.02,{"$f":"P25","v":0.02},{"$f":"SUM(R13:R24)*P25","v":0},null,null,null,{"$f":"SUM(V13:V24)*P25","v":0},{"$nulls":22},"Total->",{"$f":"SUM(AT13:AT24)","v":0},{"$f":"SUM(AU13:AU24)","v":0},{"$f":"SUM(AV13:AV24)","v":0},{"$f":"AT25+AU25+AV25","v":0},{"$f":"SUM(AX13:AX24)","v":0},{"$f":"SUM(AY13:AY24)","v":0},{"$f":"SUM(AZ13:AZ24)","v":0},{"$f":"AX25+AY25+AZ25","v":0},{"$f":"SUM(BB13:BB24)","v":0},{"$f":"SUM(BC13:BC24)","v":0}]
["SUB-TOTAL: Infection control / Health worker protection/PPE including PSM costs",{"$nulls":12},"Sub-Total Priority 1",null,null,null,{"$f":"SUM(R13:R25)","v":0},null,"Sub-Total Priority 2",null,{"$f":"SUM(V13:V25)","v":0}]
[{"$nulls":13},"Mitigating impact of Covid-19",null,null,null,{"$f":"AW25","v":0},null,"Mitigating impact of Covid-19",null,{"$f":"BB25","v":0}]
[{"$nulls":13},"Improvements in health and comm. Syst",null,null,null,{"$f":"BA25","v":0},null,"Improvements in health and comm. Syst",null,{"$f":"BC25","v":0}]
[]
["Part 2","Treatment (and life support), "]
[null,"Due to specific nature of the products preseneted in the table, budget for procurement of these items by default will be budgeted under the \" Actions to reinforce the response to COVID-19\" category"]
[null,"PSM costs: Please indicate an estimated cost of delivery of products from a manufacturer to the country (first port of entry) as a percentage of the value of the goods (in the cell P:44)"]
["SN","Item Description",null,null,"Unit of measurement","Total Qty required","Qty already available/ committed  (including from other sources)","Quantity of products requested under the  Priority 1 request and the delivery schedule ",{"$nulls":6},"Payment currency","Unit cost (Payment currency)",{"$f":"IF('SETUP and Instructions'!G4=\"Please select\",\"Unit cost - grant currency\",\"unit cost (\"&N1&\")\")","v":"Unit cost - grant currency"},{"$f":"IF('SETUP and Instructions'!G4=\"Please select\",\"Total cost - grant currency\",\"unit cost (\"&N1&\")\")","v":"Total cost - grant currency"},"Procurement arrangement","Reference for Activity/Product and unit cost (e.g. National Response Plan, WHO PQ/EUL, SRA EUL, national standards, wambo/WHO/UNICEF price references)","Priority 2",{"$nulls":20},"Q-ty Q3",null,null,null,{"$f":"W34","v":0}]
[{"$nulls":7},"Qty to be delivered June 2020","Qty to be delivered in July 2020","Qty to be delivered in August 2020","Qty to be delivered in Sept 2020","Qty to be delivered in October -Dec 2020","Qty to be delivered in Jan-June 2021","Total quantity",{"$nulls":6},"Quantity requested  under Priority 2","Total  under the priority 2",{"$nulls":18},"Unit c w/PSM","Q-ty Q3","Q-ty Q4","Q5/6",null,"Q-ty Q3","Q-ty Q4","Q5/6"]
[1,"Oxygen concentrator",null,null,"1 unit",{"$nulls":8},{"$f":"SUM(H35:M35)","v":0},null,null,{"$f":"IF(ISBLANK(P35)=TRUE,0,IF(O35=$N$2,P35/$N$3,P35))","v":0},{"$f":"IF(Q35*N35<0,0,Q35*N35)","v":0},null,null,null,{"$f":"U35*Q35","v":0},{"$nulls":18},{"$f":"Q35*(1+Q$44)","v":0},{"$f":"H35+I35+J35+K35","v":0},{"$f":"L35","v":0},{"$f":"M35","v":0},null,{"$f":"$AO35*AP35","v":0},{"$f":"$AO35*AQ35","v":0},0,{"$nulls":5},{"$f":"AO35*U35","v":0},{"$f":"AO35*U35","v":0}]
[2,"Patient monitor with EKG",null,null,"1 unit",{"$nulls":8},{"$f":"SUM(H36:M36)","v":0},null,null,{"$f":"IF(ISBLANK(P36)=TRUE,0,IF(O36=$N$2,P36/$N$3,P36))","v":0},0,null,null,null,0,{"$nulls":18},{"$f":"Q36*(1+Q$44)","v":0},0,0,0,null,{"$f":"$AO36*AP36","v":0},{"$f":"$AO36*AQ36","v":0},{"$f":"$AO36*AR36","v":0},{"$nulls":5},{"$f":"AO36*U36","v":0},{"$f":"AO36*U36","v":0}]
[3,"Patient monitor without EKG",null,null,"1 unit",{"$nulls":8},0,null,null,0,0,null,null,null,0,{"$nulls":18},0,0,0,0,null,0,0,0,{"$nulls":5},0,0]
[4,"Patient ventilator (invasive, portable)",null,null,"1 unit",{"$nulls":8},0,null,null,0,0,null,null,null,0,{"$nulls":18},0,0,0,0,null,0,0,0,{"$nulls":5},0,0]
[5,"Patient ventilator (invasive, intensive care)",null,null,"1 unit",{"$nulls":8},0,null,null,0,0,null,null,null,0,{"$nulls":18},0,0,0,0,null,0,0,0,{"$nulls":5},0,0]
[6,"Patient ventilator (non-invasive)",null,null,"1 unit",{"$nulls":8},0,null,null,0,0,null,null,null,0,{"$nulls":18},0,0,0,0,null,0,0,0,{"$nulls":5},0,0]
[7,"Pulse oximeter (bedside/portable)",null,null,"1 unit",{"$nulls":8},0,null,null,0,0,null,null,null,0,{"$nulls":18},0,0,0,0,null,0,0,0,{"$nulls":5},0,0]
[8,"Pulse oximeter (fingertip)",null,null,"1 unit",{"$nulls":8},0,null,null,0,0,null,null,null,0,{"$nulls":18},0,0,0,0,null,0,0,0,{"$nulls":5},0,0]
[9,"Infrared thermometer",null,null,"1 unit",{"$nulls":8},0,null,null,0,0,null,null,null,0,{"$nulls":18},0,0,0,0,null,0,0,0,{"$nulls":5},0,0]
["Estimated logistics costs (from a manufacturer to the country) - %",null,null,null,"%",{"$nulls":10},0.02,{"$f":"P44","v":0.02},{"$f":"SUM(R35:R43)*P44","v":0},null,null,null,{"$f":"SUM(V35:V43)*P44","v":0},{"$nulls":22},"Total->",{"$f":"SUM(AT35:AT43)","v":0},{"$f":"SUM(AU35:AU43)","v":0},{"$f":"SUM(AV35:AV43)","v":0},{"$f":"AT44+AU44+AV44","v":0},{"$nulls":4},{"$f":"SUM(BB35:BB43)","v":0},{"$f":"SUM(BC35:BC43)","v":0}]
["SUB-TOTAL: Infection control / Health worker protection/PPE including PSM costs",{"$nulls":12},"Sub-Total Priority 1",null,null,null,{"$f":"SUM(R35:R44)","v":0},null,"Sub-Total Priority 2",null,{"$f":"SUM(V35:V44)","v":0}]
[]
[]
[{"$nulls":39},{"$f":"ctlgs!G7","v":"Mitigating impact of Covid-19"}]
[{"$nulls":39},{"$f":"ctlgs!G8","v":"Reinforcing national response"}]
["Part 3","All other Health Products not listed above including pharmaceuticals equipment etc. (please do not list diagnostic equipment in this table, as all diagnostic products shall be included in Annex A)",{"$nulls":37},{"$f":"ctlgs!G9","v":"Improvements in health and comm. Syst"}]
[null,"Products from this table by default will be included under the \" Actions to reinforce the response to COVID-19\" category. However, if necessary, a category for each product can be indicated under the column \"B\" (Category). Please also indicate a \"product type\" (column \"C\") for each product. If no \"product type\" is selected for a product, then this product will automatically be included under \"All other health products\" type \nIf a cell under column \"B\" or \"C\" is highlighted in red, then a value for this cell shall be selected from a drop down list, or a cell value is erroneous and needs to replaced with a right value from a dropdown list;\nPSM costs: Please indicate an estimated cost of delivery of products from a manufacturer to the country (first port of entry) as a percentage of the value of the goods (in the cell P:137)"]
[]
[]
["SN","Category","Product type","Item name/Description",null,"Unit of measurement","Total Qty required","Qty already available/ committed  (including from other sources)"," Delivery Schedule for items requested under the  PRIORITY 1",{"$nulls":4},"Qty to be delivered in Jan-June 2021","Qty requested under C19RM","Payment currency","Unit cost (Payment currency)",{"$f":"IF('SETUP and Instructions'!G4=\"Please select\",\"Unit cost - grant currency\",\"unit cost (\"&N1&\")\")","v":"Unit cost - grant currency"},{"$f":"IF('SETUP and Instructions'!G4=\"Please select\",\"Total cost - grant currency\",\"unit cost (\"&N1&\")\")","v":"Total cost - grant currency"},"Reference for Activity/Product and unit cost (e.g. National Response Plan, WHO PQ/EUL, SRA EUL, national standards, wambo/WHO/UNICEF price references)","Procurement arrangement","Priority 2",{"$nulls":20},"Q-ty Q3",{"$nulls":10},"P2"]
[{"$nulls":8},"Qty to be delivered June 2020","Qty to be delivered in July 2020","Qty to be delivered in August 2020","Qty to be delivered in Sept 2020","Qty to be delivered in October -Dec 2020",{"$nulls":8},"Quantity requested  under Priority 2","Total  under the priority 2",{"$nulls":11},"Category check","ProdType check","If unit C or Q entered","IfCorQ and No Cat","if CorQno cat",null,"Unit cost with PSM","Q-ty Q3","Q-ty Q4","Q5/6",null,"Q-ty Q3","Q-ty Q4","Q5/6","Total"]
[1,{"$nulls":13},{"$f":"SUM(I56:N56)","v":0},null,null,{"$f":"IF(ISBLANK(Q56)=TRUE,0,IF(P56=$N$2,Q56/$N$3,Q56))","v":0},{"$f":"IF(R56*O56<0,0,R56*O56)","v":0},null,null,null,{"$f":"V56*R56","v":0},{"$nulls":11},{"$f":"IF(B56=$AN$48,1,IF(B56=$AN$49,1,IF(B56=$AN$50,1,0)))","v":0},{"$f":"IF(C56=$AN$56,1,IF(C56=$AN$57,1,IF(C56=$AN$58,1,0)))","v":0},{"$f":"IF(R56>0,1,IF(O56>0,1,IF(V56>0,1,0)))","v":0},{"$f":"IF(AK56=0,0,IF(AI56=0,\"E\",0))","v":0},{"$f":"IF(AK56=0,0,IF(AJ56=0,\"E\",0))","v":0},"PPE & Infection Control (products)",{"$f":"R56*(1+$Q$137)","v":0},{"$f":"I56+J56+K56+L56","v":0},{"$f":"M56","v":0},{"$f":"N56","v":0},null,{"$f":"$AO56*AP56","v":0},{"$f":"$AO56*AQ56","v":0},0,{"$f":"AV56+AU56+AT56","v":0},{"$nulls":4},{"$f":"AO56*V56","v":0}]
[2,{"$nulls":13},{"$f":"SUM(I57:N57)","v":0},null,null,{"$f":"IF(ISBLANK(Q57)=TRUE,0,IF(P57=$N$2,Q57/$N$3,Q57))","v":0},{"$f":"IF(R57*O57<0,0,R57*O57)","v":0},null,null,null,{"$f":"V57*R57","v":0},{"$nulls":11},{"$f":"IF(B57=$AN$48,1,IF(B57=$AN$49,1,IF(B57=$AN$50,1,0)))","v":0},{"$f":"IF(C57=$AN$56,1,IF(C57=$AN$57,1,IF(C57=$AN$58,1,0)))","v":0},{"$f":"IF(R57>0,1,IF(O57>0,1,IF(V57>0,1,0)))","v":0},{"$f":"IF(AK57=0,0,IF(AI57=0,\"E\",0))","v":0},{"$f":"IF(AK57=0,0,IF(AJ57=0,\"E\",0))","v":0},"Treatment, Life support products",0,{"$f":"I57+J57+K57+L57","v":0},{"$f":"M57","v":0},{"$f":"N57","v":0},null,{"$f":"$AO57*AP57","v":0},{"$f":"$AO57*AQ57","v":0},{"$f":"$AO57*AR57","v":0},{"$f":"AV57+AU57+AT57","v":0},{"$nulls":4},{"$f":"AO57*V57","v":0}]
[3,{"$nulls":13},0,null,null,0,0,null,null,null,0,{"$nulls":11},0,0,0,0,0,"All other Health Products",0,0,0,0,null,0,0,0,0,{"$nulls":4},0]
[4,{"$nulls":13},0,null,null,0,0,null,null,null,0,{"$nulls":11},0,0,0,0,0,null,0,0,0,0,null,0,0,0,0,{"$nulls":4},0]
[5,{"$nulls":13},0,null,null,0,0,null,null,null,0,{"$nulls":11},0,0,0,0,0,null,0,0,0,0,null,0,0,0,0,{"$nulls":4},0]
[6,{"$nulls":13},0,null,null,0,0,null,null,null,0,{"$nulls":11},0,0,0,0,0,null,0,0,0,0,null,0,0,0,0,{"$nulls":4},0]
[7,{"$nulls":13},0,null,null,0,0,null,null,null,0,{"$nulls":11},0,0,0,0,0,null,0,0,0,0,null,0,0,0,0,{"$nulls":4},0]
[8,{"$nulls":13},0,null,null,0,0,null,null,null,0,{"$nulls":11},0,0,0,0,0,null,0,0,0,0,null,0,0,0,0,{"$nulls":4},0]
[9,{"$nulls":13},0,null,null,0,0,null,null,null,0,{"$nulls":11},0,0,0,0,0,null,0,0,0,0,null,0,0,0,0,{"$nulls":4},0]
[10,{"$nulls":13},0,null,null,0,0,null,null,null,0,{"$nulls":11},0,0,0,0,0,null,0,0,0,0,null,0,0,0,0,{"$nulls":4},0]
[11,{"$nulls":13},0,null,null,0,0,null,null,null,0,{"$nulls":11},0,0,0,0,0,null,0,0,0,0,null,0,0,0,0,{"$nulls":4},0]
[12,{"$nulls":13},0,null,null,0,0,null,null,null,0,{"$nulls":11},0,0,0,0,0,null,0,0,0,0,null,0,0,0,0,{"$nulls":4},0]
[13,{"$nulls":13},0,null,null,0,0,null,null,null,0,{"$nulls":11},0,0,0,0,0,null,0,0,0,0,null,0,0,0,0,{"$nulls":4},0]
[14,{"$nulls":13},0,null,null,0,0,null,null,null,0,{"$nulls":11},0,0,0,0,0,null,0,0,0,0,null,0,0,0,0,{"$nulls":4},0]
[15,{"$nulls":13},0,null,null,0,0,null,null,null,0,{"$nulls":11},0,0,0,0,0,null,0,0,0,0,null,0,0,0,0,{"$nulls":4},0]
[16,{"$nulls":13},0,null,null,0,0,null,null,null,0,{"$nulls":11},0,0,0,0,0,null,0,0,0,0,null,0,0,0,0,{"$nulls":4},0]
[17,{"$nulls":13},0,null,null,0,0,null,null,null,0,{"$nulls":11},0,0,0,0,0,null,0,0,0,0,null,0,0,0,0,{"$nulls":4},0]
[18,{"$nulls":13},0,null,null,0,0,null,null,null,0,{"$nulls":11},0,0,0,0,0,null,0,0,0,0,null,0,0,0,0,{"$nulls":4},0]
[19,{"$nulls":13},0,null,null,0,0,null,null,null,0,{"$nulls":11},0,0,0,0,0,null,0,0,0,0,null,0,0,0,0,{"$nulls":4},0]
[20,{"$nulls":13},0,null,null,0,0,null,null,null,0,{"$nulls":11},0,0,0,0,0,null,0,0,0,0,null,0,0,0,0,{"$nulls":4},0]
[21,{"$nulls":13},0,null,null,0,0,null,null,null,0,{"$nulls":11},0,0,0,0,0,null,0,0,0,0,null,0,0,0,0,{"$nulls":4},0]
[22,{"$nulls":13},0,null,null,0,0,null,null,null,0,{"$nulls":11},0,0,0,0,0,null,0,0,0,0,null,0,0,0,0,{"$nulls":4},0]
[23,{"$nulls":13},0,null,null,0,0,null,null,null,0,{"$nulls":11},0,0,0,0,0,null,0,0,0,0,null,0,0,0,0,{"$nulls":4},0]
[24,{"$nulls":13},0,null,null,0,0,null,null,null,0,{"$nulls":11},0,0,0,0,0,null,0,0,0,0,null,0,0,0,0,{"$nulls":4},0]
[25,{"$nulls":13},0,null,null,0,0,null,null,null,0,{"$nulls":11},0,0,0,0,0,null,0,0,0,0,null,0,0,0,0,{"$nulls":4},0]
[26,{"$nulls":13},0,null,null,0,0,null,null,null,0,{"$nulls":11},0,0,0,0,0,null,0,0,0,0,null,0,0,0,0,{"$nulls":4},0]
[27,{"$nulls":13},0,null,null,0,0,null,null,null,0,{"$nulls":11},0,0,0,0,0,null,0,0,0,0,null,0,0,0,0,{"$nulls":4},0]
[28,{"$nulls":13},0,null,null,0,0,null,null,null,0,{"$nulls":11},0,0,0,0,0,null,0,0,0,0,null,0,0,0,0,{"$nulls":4},0]
[29,{"$nulls":13},0,null,null,0,0,null,null,null,0,{"$nulls":11},0,0,0,0,0,null,0,0,0,0,null,0,0,0,0,{"$nulls":4},0]
[30,{"$nulls":13},0,null,null,0,0,null,null,null,0,{"$nulls":11},0,0,0,0,0,null,0,0,0,0,null,0,0,0,0,{"$nulls":4},0]
[31,{"$nulls":13},0,null,null,0,0,null,null,null,0,{"$nulls":11},0,0,0,0,0,null,0,0,0,0,null,0,0,0,0,{"$nulls":4},0]
[32,{"$nulls":13},0,null,null,0,0,null,null,null,0,{"$nulls":11},0,0,0,0,0,null,0,0,0,0,null,0,0,0,0,{"$nulls":4},0]
[33,{"$nulls":13},0,null,null,0,0,null,null,null,0,{"$nulls":11},0,0,0,0,0,null,0,0,0,0,null,0,0,0,0,{"$nulls":4},0]
[34,{"$nulls":13},0,null,null,0,0,null,null,null,0,{"$nulls":11},0,0,0,0,0,null,0,0,0,0,null,0,0,0,0,{"$nulls":4},0]
[35,{"$nulls":13},0,null,null,0,0,null,null,null,0,{"$nulls":11},0,0,0,0,0,null,0,0,0,0,null,0,0,0,0,{"$nulls":4},0]
[36,{"$nulls":13},0,null,null,0,0,null,null,null,0,{"$nulls":11},0,0,0,0,0,null,0,0,0,0,null,0,0,0,0,{"$nulls":4},0]
[37,{"$nulls":13},0,null,null,0,0,null,null,null,0,{"$nulls":11},0,0,0,0,0,null,0,0,0,0,null,0,0,0,0,{"$nulls":4},0]
[38,{"$nulls":13},0,null,null,0,0,null,null,null,0,{"$nulls":11},0,0,0,0,0,null,0,0,0,0,null,0,0,0,0,{"$nulls":4},0]
[39,{"$nulls":13},0,null,null,0,0,null,null,null,0,{"$nulls":11},0,0,0,0,0,null,0,0,0,0,null,0,0,0,0,{"$nulls":4},0]
[40,{"$nulls":13},0,null,null,0,0,null,null,null,0,{"$nulls":11},0,0,0,0,0,null,0,0,0,0,null,0,0,0,0,{"$nulls":4},0]
[41,{"$nulls":13},0,null,null,0,0,null,null,null,0,{"$nulls":11},0,0,0,0,0,null,0,0,0,0,null,0,0,0,0,{"$nulls":4},0]
[42,{"$nulls":13},0,null,null,0,0,null,null,null,0,{"$nulls":11},0,0,0,0,0,null,0,0,0,0,null,0,0,0,0,{"$nulls":4},0]
[43,{"$nulls":13},0,null,null,0,0,null,null,null,0,{"$nulls":11},0,0,0,0,0,null,{"$f":"R98*(1+$Q$137)","v":0},0,0,0,null,0,0,0,0,{"$nulls":4},0]
[44,{"$nulls":13},0,null,null,0,0,null,null,null,0,{"$nulls":11},0,0,0,0,0,null,0,0,0,0,null,0,0,0,0,{"$nulls":4},0]
[45,{"$nulls":13},0,null,null,0,0,null,null,null,0,{"$nulls":11},0,0,0,0,0,null,0,0,0,0,null,0,0,0,0,{"$nulls":4},0]
[46,{"$nulls":13},0,null,null,0,0,null,null,null,0,{"$nulls":11},0,0,0,0,0,null,0,0,0,0,null,0,0,0,0,{"$nulls":4},0]
[47,{"$nulls":13},0,null,null,0,0,null,null,null,0,{"$nulls":11},0,0,0,0,0,null,0,0,0,0,null,0,0,0,0,{"$nulls":4},0]
[48,{"$nulls":13},0,null,null,0,0,null,null,null,0,{"$nulls":11},0,0,0,0,0,null,0,0,0,0,null,0,0,0,0,{"$nulls":4},0]
[49,{"$nulls":13},0,null,null,0,0,null,null,null,0,{"$nulls":11},0,0,0,0,0,null,0,0,0,0,null,0,0,0,0,{"$nulls":4},0]
[50,{"$nulls":13},0,null,null,0,0,null,null,null,0,{"$nulls":11},0,0,0,0,0,null,0,0,0,0,null,0,0,0,0,{"$nulls":4},0]
[51,{"$nulls":13},0,null,null,0,0,null,null,null,0,{"$nulls":11},0,0,0,0,0,null,0,0,0,0,null,0,0,0,0,{"$nulls":4},0]
[52,{"$nulls":13},0,null,null,0,0,null,null,null,0,{"$nulls":11},0,0,0,0,0,null,0,0,0,0,null,0,0,0,0,{"$nulls":4},0]
[53,{"$nulls":13},0,null,null,0,0,null,null,null,0,{"$nulls":11},{"$f":"IF(B108=$AN$48,1,IF(B108=$AN$49,1,IF(B108=$AN$50,1,0)))","v":0},{"$f":"IF(C108=$AN$56,1,IF(C108=$AN$57,1,IF(C108=$AN$58,1,0)))","v":0},{"$f":"IF(R108>0,1,IF(O108>0,1,IF(V108>0,1,0)))","v":0},{"$f":"IF(AK108=0,0,IF(AI108=0,\"E\",0))","v":0},{"$f":"IF(AK108=0,0,IF(AJ108=0,\"E\",0))","v":0},null,0,0,0,0,null,0,0,0,0,{"$nulls":4},0]
[54,{"$nulls":13},0,null,null,0,0,null,null,null,0,{"$nulls":11},0,0,0,0,0,null,0,0,0,0,null,0,0,0,0,{"$nulls":4},0]
[55,{"$nulls":13},0,null,null,0,0,null,null,null,0,{"$nulls":11},0,0,0,0,0,null,0,0,0,0,null,0,0,0,0,{"$nulls":4},0]
[56,{"$nulls":13},0,null,null,0,0,null,null,null,0,{"$nulls":11},0,0,0,0,0,null,0,0,0,0,null,0,0,0,0,{"$nulls":4},0]
[57,{"$nulls":13},0,null,null,0,0,null,null,null,0,{"$nulls":11},0,0,0,0,0,null,0,0,0,0,null,0,0,0,0,{"$nulls":4},0]
[58,{"$nulls":13},0,null,null,0,0,null,null,null,0,{"$nulls":11},0,0,0,0,0,null,0,0,0,0,null,0,0,0,0,{"$nulls":4},0]
[59,{"$nulls":13},0,null,null,0,0,null,null,null,0,{"$nulls":11},0,0,0,0,0,null,0,0,0,0,null,0,0,0,0,{"$nulls":4},0]
[60,{"$nulls":13},0,null,null,0,0,null,null,null,0,{"$nulls":11},0,0,0,0,0,null,0,0,0,0,null,0,0,0,0,{"$nulls":4},0]
[61,{"$nulls":13},0,null,null,0,0,null,null,null,0,{"$nulls":11},0,0,0,0,0,null,0,0,0,0,null,0,0,0,0,{"$nulls":4},0]
[62,{"$nulls":13},0,null,null,0,0,null,null,null,0,{"$nulls":11},0,0,0,0,0,null,0,0,0,0,null,0,0,0,0,{"$nulls":4},0]
[63,{"$nulls":13},0,null,null,0,0,null,null,null,0,{"$nulls":11},0,0,0,0,0,null,0,0,0,0,null,0,0,0,0,{"$nulls":4},0]
[64,{"$nulls":13},0,null,null,0,0,null,null,null,0,{"$nulls":11},0,0,0,0,0,null,0,0,0,0,null,0,0,0,0,{"$nulls":4},0]
[65,{"$nulls":13},0,null,null,0,0,null,null,null,0,{"$nulls":11},0,0,0,0,0,null,0,0,0,0,null,0,0,0,0,{"$nulls":4},0]
[66,{"$nulls":13},{"$f":"SUM(I121:N121)","v":0},null,null,{"$f":"IF(ISBLANK(Q121)=TRUE,0,IF(P121=$N$2,Q121/$N$3,Q121))","v":0},{"$f":"IF(R121*O121<0,0,R121*O121)","v":0},null,null,null,{"$f":"V121*R121","v":0},{"$nulls":11},0,0,0,0,0,null,0,{"$f":"I121+J121+K121+L121","v":0},{"$f":"M121","v":0},{"$f":"N121","v":0},null,{"$f":"$AO121*AP121","v":0},{"$f":"$AO121*AQ121","v":0},{"$f":"$AO121*AR121","v":0},{"$f":"AV121+AU121+AT121","v":0},{"$nulls":4},0]
[67,{"$nulls":13},0,null,null,0,0,null,null,null,0,{"$nulls":11},0,0,0,0,0,null,0,0,0,0,null,0,0,0,0,{"$nulls":4},0]
[68,{"$nulls":13},0,null,null,0,0,null,null,null,0,{"$nulls":11},0,0,0,0,0,null,0,0,0,0,null,0,0,0,0,{"$nulls":4},0]
[69,{"$nulls":13},0,null,null,0,0,null,null,null,0,{"$nulls":11},0,0,0,0,0,null,0,0,0,0,null,0,0,0,0,{"$nulls":4},0]
[70,{"$nulls":13},0,null,null,0,0,null,null,null,0,{"$nulls":11},0,0,0,0,0,null,0,0,0,0,null,0,0,0,0,{"$nulls":4},0]
[71,{"$nulls":13},0,null,null,0,0,null,null,null,0,{"$nulls":11},0,0,0,0,0,null,0,0,0,0,null,0,0,0,0,{"$nulls":4},0]
[72,{"$nulls":13},0,null,null,0,0,null,null,null,0,{"$nulls":11},0,0,0,0,0,null,0,0,0,0,null,0,0,0,0,{"$nulls":4},0]
[73,{"$nulls":13},0,null,null,0,0,null,null,null,0,{"$nulls":11},0,0,0,0,0,null,0,0,0,0,null,0,0,0,0,{"$nulls":4},0]
[74,{"$nulls":13},0,null,null,0,0,null,null,null,0,{"$nulls":11},0,0,0,0,0,null,0,0,0,0,null,0,0,0,0,{"$nulls":4},0]
[75,{"$nulls":13},0,null,null,0,0,null,null,null,0,{"$nulls":11},0,0,0,0,0,null,0,0,0,0,null,0,0,0,0,{"$nulls":4},0]
[76,{"$nulls":13},0,null,null,0,0,null,null,null,0,{"$nulls":11},0,0,0,0,0,null,0,0,0,0,null,0,0,0,0,{"$nulls":4},0]
[77,{"$nulls":13},0,null,null,0,0,null,null,null,0,{"$nulls":11},0,0,0,0,0,null,0,0,0,0,null,0,0,0,0,{"$nulls":4},0]
[78,{"$nulls":13},0,null,null,0,0,null,null,null,0,{"$nulls":11},0,0,0,0,0,null,0,0,0,0,null,0,0,0,0,{"$nulls":4},0]
[79,{"$nulls":13},0,null,null,0,0,null,null,null,0,{"$nulls":11},0,0,0,0,0,null,0,0,0,0,null,0,0,0,0,{"$nulls":4},0]
[80,{"$nulls":13},0,null,null,0,0,null,null,null,0,{"$nulls":11},0,0,0,0,0,null,0,0,0,0,null,0,0,0,0,{"$nulls":4},0]
[81,{"$nulls":13},0,null,null,0,0,null,null,null,0,{"$nulls":11},0,0,0,0,0,null,0,0,0,0,null,0,0,0,0,{"$nulls":4},0]
[null,"Estimated logistics costs (from a manufacturer to the country) - %",null,null,"%",{"$nulls":10},0.02,{"$f":"P137","v":0.02},null,{"$f":"SUM(S56:S136)*P137","v":0},null,null,null,{"$f":"SUM(W56:W136)*P137","v":0},{"$nulls":21},"Total ->",{"$f":"SUM(AT56:AT136)","v":0},{"$f":"SUM(AU56:AU136)","v":0},{"$f":"SUM(AV56:AV136)","v":0},{"$f":"SUM(AW56:AW136)","v":0},{"$nulls":4},{"$f":"SUM(BB56:BB136)","v":0}]
["SUB-TOTAL",{"$nulls":15},"Sub-Total Priority 1",null,{"$f":"SUM(S56:S137)","v":0},null,"Sub-Total Priority 2",null,{"$f":"SUM(W56:W137)","v":0}]
[{"$nulls":39},{"$f":"ctlgs!G7","v":"Mitigating impact of Covid-19"},{"$f":"ctlgs!F14","v":"PPE & Infection Control (products)"},{"$nulls":4},{"$f":"SUMIFS($AT$56:$AT$136,$B$56:$B$136,$AN139,$C$56:$C$136,$AO139)","v":0},{"$f":"SUMIFS($AU$56:$AU$136,$B$56:$B$136,$AN139,$C$56:$C$136,$AO139)","v":0},{"$f":"SUMIFS($AV$56:$AV$136,$B$56:$B$136,$AN139,$C$56:$C$136,$AO139)","v":0},{"$f":"SUMIFS($AW$56:$AW$136,$B$56:$B$136,$AN139,$C$56:$C$136,$AO139)","v":0},{"$nulls":4},{"$f":"SUMIFS($BB$56:$BB$136,$B$56:$B$136,$AN139,$C$56:$C$136,$AO139)","v":0}]
[null,"Summary of Table 3",{"$nulls":37},{"$f":"ctlgs!G7","v":"Mitigating impact of Covid-19"},{"$f":"ctlgs!F15","v":"Treatment, Life support products"},{"$nulls":4},0,0,0,0,{"$nulls":4},0]
[null,"Category","Product type","Priority 1","Priority 2",{"$nulls":34},{"$f":"ctlgs!G7","v":"Mitigating impact of Covid-19"},{"$f":"ctlgs!F16","v":"All other Health Products"},{"$nulls":4},0,0,0,0,{"$nulls":4},0]
[null,{"$f":"AN139","v":"Mitigating impact of Covid-19"},"PPE & Infection Control (products)",{"$f":"AW139","v":0},{"$f":"BB139","v":0},{"$nulls":34},{"$f":"ctlgs!G8","v":"Reinforcing national response"},{"$f":"ctlgs!F14","v":"PPE & Infection Control (products)"},{"$nulls":4},0,0,0,0,{"$nulls":4},0]
[null,"Mitigating impact of Covid-19","Treatment, Life support products",{"$f":"AW140","v":0},{"$f":"BB140","v":0},{"$nulls":34},{"$f":"ctlgs!G8","v":"Reinforcing national response"},{"$f":"ctlgs!F15","v":"Treatment, Life support products"},{"$nulls":4},0,0,0,0,{"$nulls":4},0]
[null,"Mitigating impact of Covid-19","All other Health Products",{"$f":"AW141","v":0},{"$f":"BB141","v":0},{"$nulls":34},{"$f":"ctlgs!G8","v":"Reinforcing national response"},{"$f":"ctlgs!F16","v":"All other Health Products"},{"$nulls":4},0,0,0,0,{"$nulls":4},0]
[null,"Reinforcing national response","PPE & Infection Control (products)",{"$f":"AW142","v":0},{"$f":"BB142","v":0},{"$nulls":34},{"$f":"ctlgs!G9","v":"Improvements in health and comm. Syst"},{"$f":"ctlgs!F14","v":"PPE & Infection Control (products)"},{"$nulls":4},0,0,0,0,{"$nulls":4},0]
[null,"Reinforcing national response","Treatment, Life support products",{"$f":"AW143","v":0},{"$f":"BB143","v":0},{"$nulls":34},{"$f":"ctlgs!G9","v":"Improvements in health and comm. Syst"},{"$f":"ctlgs!F15","v":"Treatment, Life support products"},{"$nulls":4},0,0,0,0,{"$nulls":4},0]
[null,{"$f":"AN145","v":"Improvements in health and comm. Syst"},"PPE & Infection Control (products)",{"$f":"AW145","v":0},{"$f":"BB145","v":0},{"$nulls":34},{"$f":"ctlgs!G9","v":"Improvements in health and comm. Syst"},{"$f":"ctlgs!F16","v":"All other Health Products"},{"$nulls":4},0,0,0,0,{"$nulls":4},0]
[null,"Improvements in health and comm. Syst","Treatment, Life support products",{"$f":"AW146","v":0},{"$f":"BB146","v":0},{"$nulls":34},"Uncategorized or no Prod indicated","Uncategorized or no Prod indicated",{"$nulls":4},{"$f":"AT137-SUM(AT139:AT147)","v":0},{"$f":"AU137-SUM(AU139:AU147)","v":0},{"$f":"AV137-SUM(AV139:AV147)","v":0},{"$f":"AW137-SUM(AW139:AW147)","v":0},{"$nulls":4},{"$f":"BB137-SUM(BB139:BB147)","v":0}]
[null,"Improvements in health and comm. Syst","All other Health Products",{"$f":"AW147","v":0},{"$f":"BB147","v":0}]
[null,{"$f":"AN150","v":"Reinforcing national response"},{"$f":"AO150","v":"All other Health Products"},{"$f":"AW150","v":0},{"$f":"BB150","v":0},{"$nulls":34},{"$f":"AN144","v":"Reinforcing national response"},{"$f":"AO144","v":"All other Health Products"},{"$nulls":4},{"$f":"AT137-AT139-AT140-AT141-AT142-AT143-AT145-AT146-AT147","v":0},{"$f":"AU137-AU139-AU140-AU141-AU142-AU143-AU145-AU146-AU147","v":0},{"$f":"AV137-AV139-AV140-AV141-AV142-AV143-AV145-AV146-AV147","v":0},{"$f":"AW137-AW139-AW140-AW141-AW142-AW143-AW145-AW146-AW147","v":0},{"$nulls":4},{"$f":"BB137-BB139-BB140-BB141-BB142-BB143-BB145-BB146-BB147","v":0}]

{"sheet":"Budget Summary","index":4,"n_rows":40,"n_cols":28,"rows_kept":40,"cut":false,"hidden":false,"merged":[[33,2,34,2],[24,10,25,10],[33,0,34,0],[33,1,34,1],[33,3,33,8],[33,9,34,9],[33,10,34,10],[4,0,5,0],[24,0,25,0],[24,1,25,1],[24,3,24,8],[24,9,25,9],[24,2,25,2],[4,11,5,11],[4,3,4,8],[4,9,5,9],[4,10,5,10],[4,1,5,1],[4,2,5,2]]}
[null,null,"C19RM FUNDING REQUEST: Summary Budget",{"$nulls":18},"Control column","Control column","Control column","Control column","Control column","Control column","Control column"]
[{"$nulls":22},"Q2-2020","Q3-2020","Q4-2020","Q1-2021","Q2-2021","Total P2"]
[{"$nulls":21},"Total",{"$f":"SUM('C19RM Budget'!O9:O154)","v":0},{"$f":"SUM('C19RM Budget'!P9:P154)","v":0},{"$f":"SUM('C19RM Budget'!Q9:Q154)","v":0},{"$f":"SUM('C19RM Budget'!R9:R154)","v":0},{"$f":"SUM('C19RM Budget'!S9:S154)","v":0},{"$f":"SUM('C19RM Budget'!V9:V154)","v":0}]
[null,null,"Summary budget By Activity category in Grant Currency"]
["sn","By Activity category","By Activity category","Priority 1",{"$nulls":5},"Priority 2","Total request (P1 +P2)"]
[null,null,null,"Q2-2020","Q3-2020","Q4-2020","Q-2021","Q2-2021","Total",{"$nulls":13},"currency",{"$f":"'SETUP and Instructions'!G4","v":"Please Select"}]
[1,{"$f":"'C19RM Budget'!A9","v":"Mitigating impact of Covid-19"},"Mitigating impact of Covid-19",{"$f":"SUMIF('C19RM Budget'!A9:A154,'Budget Summary'!B7,'C19RM Budget'!O9:O154)","v":0},{"$f":"SUMIF('C19RM Budget'!A9:A154,'Budget Summary'!B7,'C19RM Budget'!P9:P154)","v":0},{"$f":"SUMIF('C19RM Budget'!A9:A154,'Budget Summary'!B7,'C19RM Budget'!Q9:Q154)","v":0},{"$f":"SUMIF('C19RM Budget'!A9:A154,'Budget Summary'!B7,'C19RM Budget'!R9:R154)","v":0},{"$f":"SUMIF('C19RM Budget'!A9:A154,'Budget Summary'!B7,'C19RM Budget'!S9:S154)","v":0},{"$f":"SUM(D7:H7)","v":0},{"$f":"SUMIF('C19RM Budget'!A9:A154,'Budget Summary'!B7,'C19RM Budget'!V9:V154)","v":0},{"$f":"I7+J7","v":0},{"$nulls":11},"rate",0.90664999999999996]
[2,{"$f":"'C19RM Budget'!A13","v":"Reinforcing national response"},"Reinforcing national response to COVID19",{"$f":"SUMIF('C19RM Budget'!A9:A154,'Budget Summary'!B8,'C19RM Budget'!O9:O154)","v":0},{"$f":"SUMIF('C19RM Budget'!A9:A154,'Budget Summary'!B8,'C19RM Budget'!P9:P154)","v":0},{"$f":"SUMIF('C19RM Budget'!A9:A154,'Budget Summary'!B8,'C19RM Budget'!Q9:Q154)","v":0},{"$f":"SUMIF('C19RM Budget'!A9:A154,'Budget Summary'!B8,'C19RM Budget'!R9:R154)","v":0},{"$f":"SUMIF('C19RM Budget'!A9:A154,'Budget Summary'!B8,'C19RM Budget'!S9:S154)","v":0},{"$f":"SUM(D8:H8)","v":0},{"$f":"SUMIF('C19RM Budget'!A9:A154,'Budget Summary'!B8,'C19RM Budget'!V9:V154)","v":0},{"$f":"I8+J8","v":0},{"$nulls":11},"Uncateg and EUR",{"$f":"IF(K10>0.1,IF(X6=\"EUR\",1,0),0)","v":0}]
[3,{"$f":"'C19RM Budget'!A17","v":"Improvements in health and comm. Syst"},"Improvements in health and community systems",{"$f":"SUMIF('C19RM Budget'!A9:A154,'Budget Summary'!B9,'C19RM Budget'!O9:O154)","v":0},{"$f":"SUMIF('C19RM Budget'!A9:A154,'Budget Summary'!B9,'C19RM Budget'!P9:P154)","v":0},{"$f":"SUMIF('C19RM Budget'!A9:A154,'Budget Summary'!B9,'C19RM Budget'!Q9:Q154)","v":0},{"$f":"SUMIF('C19RM Budget'!A9:A154,'Budget Summary'!B9,'C19RM Budget'!R9:R154)","v":0},{"$f":"SUMIF('C19RM Budget'!A9:A154,'Budget Summary'!B9,'C19RM Budget'!S9:S154)","v":0},0,{"$f":"SUMIF('C19RM Budget'!A9:A154,'Budget Summary'!B9,'C19RM Budget'!V9:V154)","v":0},{"$f":"I9+J9","v":0}]
[4,{"$f":"IF(K10>0,W11,\"\")","v":""},{"$f":"IF(L10>0,X11,\"\")","v":""},{"$f":"W3-D7-D8-D9","v":0},{"$f":"X3-E7-E8-E9","v":0},0,0,0,0,{"$f":"AB3-J9-J8-J7","v":0},{"$f":"I10+J10","v":0},{"$nulls":11},"sum of non-categorized",{"$f":"D10+E10+F10+G10+H10+J10","v":0}]
[null,"Total","Total",{"$f":"SUM(D7:D10)","v":0},{"$f":"SUM(E7:E10)","v":0},0,0,0,0,0,0,{"$nulls":11},"Activities with no category selected"]
[]
[]
[]
[{"$nulls":22},"Table"]
[{"$nulls":22},"up to J"]
{"$rows_empty":7}
[null,null,"Summary budget by Intervention Grant currency"]
["sn","By Activity category","By Activity category","Priority 1",{"$nulls":5},"Priority 2","Total request (P1 +P2)"]
[null,null,null,"Q2-2020","Q3-2020","Q4-2020","Q-2021","Q2-2021","Total"]
[1,"Risk mitigation for disease programs","Risk mitigation for disease programs",{"$f":"D7","v":0},{"$f":"E7","v":0},0,0,0,0,0,0]
[2,"COVID-19 control and containment including health systems strengthening","COVID-19 control and containment including health systems strengthening",{"$f":"D8+D9","v":0},{"$f":"E8+E9","v":0},0,0,0,0,0,0]
[null,{"$f":"IF(K10>0.1,W11,\"\")","v":""},{"$f":"IF(L10>0.1,X11,\"\")","v":""},{"$f":"D10","v":0},{"$f":"E10","v":0},0,0,0,0,0,0]
[null,"Total","Total",{"$f":"D27+D28+D29","v":0},{"$f":"E27+E28+E29","v":0},0,0,0,0,0,0]
[]
[]
[null,"Summary budget By Activity category (USD Equivalent, if grant is in EUR)",{"$f":"B33","v":"Summary budget By Activity category (USD Equivalent, if grant is in EUR)"}]
["sn","By Activity category",{"$f":"B34","v":"By Activity category"},"Priority 1",{"$nulls":5},"Priority 2","Total request (P1 +P2)"]
[null,null,null,"Q2-2020","Q3-2020","Q4-2020","Q-2021","Q2-2021","Total"]
[1,{"$f":"B7","v":"Mitigating impact of Covid-19"},"Mitigating impact of Covid-19",{"$f":"IF($X$6=\"EUR\",D7/$X$7,D7)","v":0},0,0,0,0,0,0,0]
[2,"Reinforcing national response","Reinforcing national response to COVID19",0,0,0,0,0,0,0,0]
[3,"Improvements in health and comm. Syst","Improvements in health and community systems",0,0,0,0,0,0,0,0]
[null,{"$f":"IF(K39>0.1,B10,\"\")","v":""},{"$f":"C10","v":""},0,0,0,0,0,0,0,0]
[null,"Total",{"$f":"C11","v":"Total"},{"$f":"SUM(D36:D39)","v":0},0,0,0,0,0,0,0]

{"sheet":"Free worksheet","index":5,"n_rows":0,"n_cols":0,"rows_kept":0,"cut":false,"hidden":false,"merged":[]}

{"sheet":"ctlgs","index":6,"n_rows":160,"n_cols":7,"rows_kept":160,"cut":false,"hidden":true,"merged":[]}
["AED",null,"Countries",null,"Interventions:"]
["AFN",null,"Afghanistan",null,"COVID-19 control and containment including health systems strengthening"]
["ALL",null,"Albania",null,"Risk mitigation for disease programs"]
["AMD",null,"Algeria"]
["ANG",null,"Angola"]
["AOA",null,"Armenia",null,"three categories of eligible programming supported by C19RM","Intervention mapping","Abbreviated category name"]
["ARS",null,"Azerbaijan",null,"Mitigating COVID-19 impact on HIV, TB, Malaria programs","Risk mitigation for disease programs","Mitigating impact of Covid-19"]
["AUD",null,"Bangladesh",null,"Reinforcing national COVID-19 response","COVID-19 control and containment including health systems strengthening","Reinforcing national response"]
["AWG",null,"Belarus",null,"Urgent improvements in health and community systems","COVID-19 control and containment including health systems strengthening","Improvements in health and comm. Syst"]
["AZN",null,"Belize"]
["BAM",null,"Benin"]
["BBD",null,"Bhutan"]
["BDT",null,"Bolivia (Plurinational State)",null,null,"Product type"]
["BGN",null,"Botswana",null,"Sub-Categories (4 HP and 6 non-HP)","PPE & Infection Control (products)"]
["BHD",null,"Burkina Faso",null,"Diagnostic Products","Treatment, Life support products"]
["BIF",null,"Burundi",null,"PPE & Infection Control (products)","All other Health Products"]
["BND",null,"Cabo Verde",null,"Treatment, Life support products","All other Health Products"]
["BOB",null,"Cambodia",null,"All other Health Products"]
["BRL",null,"Cameroon",null,"Health worker protection/IC activities "]
["BSD",null,"Central African Republic",null,"Training / Info Campaigns"]
["BTN",null,"Chad",null,"Treatment (activities/services)"]
["BWP",null,"Colombia",null,"Diagnosis / Testing services"]
["BYR",null,"Comoros",null,"Surveillance and M&E  activities"]
["BZD",null,"Congo",null,"Other"]
["CAD",null,"Congo (Democratic Republic)"]
["CDF",null,"Costa Rica"]
["CHF",null,"Côte d'Ivoire"]
["CLP",null,"Cuba"]
["CNY",null,"Djibouti"]
["COP",null,"Dominican Republic"]
["CRC",null,"Ecuador"]
["CUC",null,"Egypt"]
["CVE",null,"El Salvador"]
["CZK",null,"Eritrea",null,"interventions to mitigate the impact of COVID-19 on HIV, TB and malaria disease programs;"]
["DJF",null,"Eswatini",null," ii. actions to reinforce the response to COVID-19; and "]
["DKK",null,"Ethiopia",null,"iii. initiatives to make urgent improvements in health and community systems, including laboratory networks, supply chains and engagement with vulnerable communities."]
["DOP",null,"Gabon"]
["DZD",null,"Gambia"]
["EEK",null,"Georgia"]
["EGP",null,"Ghana"]
["ERN",null,"Guatemala"]
["ETB",null,"Guinea"]
["EUR",null,"Guinea-Bissau"]
["FJD",null,"Guyana"]
["FKP",null,"Haiti"]
["GBP",null,"Honduras"]
["GEL",null,"India"]
["GHS",null,"Indonesia"]
["GIP",null,"Iran (Islamic Republic)"]
["GMD",null,"Jamaica"]
["GNF",null,"Kazakhstan"]
["GQE",null,"Kenya"]
["GTQ",null,"Korea (Democratic Peoples Republic)"]
["GYD",null,"Kosovo"]
["HKD",null,"Kyrgyzstan"]
["HNL",null,"Lao (Peoples Democratic Republic)"]
["HRK",null,"Lesotho"]
["HTG",null,"Liberia"]
["HUF",null,"Madagascar"]
["IDR",null,"Malawi"]
["ILS",null,"Malaysia"]
["INR",null,"Mali"]
["IQD",null,"Mauritania"]
["IRR",null,"Mauritius"]
["ISK",null,"Moldova"]
["JMD",null,"Mongolia"]
["JOD",null,"Montenegro"]
["JPY",null,"Morocco"]
["KES",null,"Mozambique"]
["KGS",null,"Multicountry Africa ECSA-HC"]
["KHR",null,"Multicountry Americas EMMIE"]
["KMF",null,"Multicountry Asia IHAA"]
["KPW",null,"Multicountry Caribbean CARICOM-PANCAP"]
["KRW",null,"Multicountry Caribbean MCC"]
["KWD",null,"Multicountry East Asia and Pacific APN"]
["KYD",null,"Multicountry East Asia and Pacific RAI"]
["KZT",null,"Multicountry Eastern Africa IGAD"]
["LAK",null,"Multicountry EECA PAS"]
["LBP",null,"Multicountry HIV EECA APH"]
["LKR",null,"Multicountry HIV Latin America ALEP"]
["LRD",null,"Multicountry HIV MENA IHAA"]
["LSL",null,"Multicountry HIV SEA AFAO"]
["LTL",null,"Multicountry Middle East MER"]
["LVL",null,"Multicountry Southern Africa E8"]
["LYD",null,"Multicountry Southern Africa MOSASWA"]
["MAD",null,"Multicountry Southern Africa WHC"]
["MDL",null,"Multicountry TB Asia UNDP"]
["MGA",null,"Multicountry TB Asia UNOPS"]
["MKD",null,"Multicountry TB LAC PIH"]
["MMK",null,"Multicountry TB WC Africa NTP/SRL"]
["MNT",null,"Multicountry Western Pacific"]
["MOP",null,"Myanmar"]
["MRO",null,"Namibia"]
["MUR",null,"Nepal"]
["MVR",null,"Nicaragua"]
["MWK",null,"Niger"]
["MXN",null,"Nigeria"]
["MYR",null,"Pakistan"]
["MZM",null,"Panama"]
["NAD",null,"Papua New Guinea"]
["NGN",null,"Paraguay"]
["NIO",null,"Peru"]
["NOK",null,"Philippines"]
["NPR",null,"Romania"]
["NZD",null,"Rwanda"]
["OMR",null,"Sao Tome and Principe"]
["PAB",null,"Senegal"]
["PEN",null,"Serbia"]
["PGK",null,"Sierra Leone"]
["PHP",null,"Solomon Islands"]
["PKR",null,"Somalia"]
["PLN",null,"South Africa"]
["PYG",null,"South Sudan"]
["QAR",null,"Sri Lanka"]
["RON",null,"Sudan"]
["RSD",null,"Suriname"]
["RUB",null,"Tajikistan"]
["RWF",null,"Tanzania (United Republic)"]
["SAR",null,"Thailand"]
["SBD",null,"Timor-Leste"]
["SCR",null,"Togo"]
["SDG",null,"Tunisia"]
["SEK",null,"Turkmenistan"]
["SGD",null,"Uganda"]
["SHP",null,"Ukraine"]
["SIT",null,"Uzbekistan"]
["SKK",null,"Viet Nam"]
["SLL",null,"Zambia"]
["SOS",null,"Zanzibar"]
["SRD",null,"Zimbabwe"]
["STD",null,"Other (new)"]
["SYP"]
["SZL"]
["THB"]
["TJS"]
["TMM"]
["TND"]
["TOP"]
["TRY"]
["TTD"]
["TWD"]
["TZS"]
["UAH"]
["UGX"]
["USD"]
["UYU"]
["UZS"]
["VEB"]
["VND"]
["VUV"]
["WST"]
["XAF"]
["XCD"]
["XOF"]
["XPF"]
["YER"]
["ZAR"]
["ZMK"]
["ZWD"]
["Local"]

{"sheet":"PRList","index":7,"n_rows":326,"n_cols":13,"rows_kept":326,"cut":false,"hidden":true,"merged":[]}
["PR GF Territory","PR","GrantNum","PR1","GrantNum",null,"IP","IP","grant statis","W"]
["Afghanistan","United Nations Development Programme - AFG-H-UNDP","AFG-H-UNDP","United Nations Development Programme","AFG-H-UNDP",null,"2018-01-01","2020-12-31","Active","NFM2",null,null,{"$f":"B2&\" - \"&E2","v":"United Nations Development Programme - AFG-H-UNDP - AFG-H-UNDP"}]
["Afghanistan","United Nations Development Programme - AFG-M-UNDP","AFG-M-UNDP","United Nations Development Programme","AFG-M-UNDP",null,"2018-01-01","2020-12-31","Active","NFM2",null,null,"United Nations Development Programme - AFG-M-UNDP - AFG-M-UNDP"]
["Afghanistan","Ministry of Public Health of the Islamic Republic of Afghanistan - AFG-T-MOPH","AFG-T-MOPH","Ministry of Public Health of the Islamic Republic of Afghanistan","AFG-T-MOPH",null,"2018-01-01","2020-12-31","Active","NFM2",null,null,"Ministry of Public Health of the Islamic Republic of Afghanistan - AFG-T-MOPH - AFG-T-MOPH"]
["Afghanistan","United Nations Development Programme - AFG-T-UNDP","AFG-T-UNDP","United Nations Development Programme","AFG-T-UNDP",null,"2018-01-01","2020-12-31","Active","NFM2",null,null,"United Nations Development Programme - AFG-T-UNDP - AFG-T-UNDP"]
["Albania","Ministry of Health of the Republic of Albania - ALB-C-MOH","ALB-C-MOH","Ministry of Health of the Republic of Albania","ALB-C-MOH",null,"2020-01-01","2022-12-31","Active","NFM2",null,null,"Ministry of Health of the Republic of Albania - ALB-C-MOH - ALB-C-MOH"]
["Algeria","Ministry of Health, Population and Hospital Reform of the People's Democratic Republic of Algeria - DZA-H-MOH","DZA-H-MOH","Ministry of Health, Population and Hospital Reform of the People's Democratic Republic of Algeria","DZA-H-MOH",null,"2020-01-01","2022-12-31","Active","NFM2",null,null,"Ministry of Health, Population and Hospital Reform of the People's Democratic Republic of Algeria - DZA-H-MOH - DZA-H-MOH"]
["Angola","United Nations Development Programme - AGO-H-UNDP","AGO-H-UNDP","United Nations Development Programme","AGO-H-UNDP",null,"2018-07-01","2021-06-30","Active","NFM2",null,null,"United Nations Development Programme - AGO-H-UNDP - AGO-H-UNDP"]
["Angola","Ministry of Health of the Republic of Angola - AGO-M-MOH","AGO-M-MOH","Ministry of Health of the Republic of Angola","AGO-M-MOH",null,"2018-07-01","2021-06-30","Active","NFM2",null,null,"Ministry of Health of the Republic of Angola - AGO-M-MOH - AGO-M-MOH"]
["Angola","World Vision International - AGO-M-WVI","AGO-M-WVI","World Vision International","AGO-M-WVI",null,"2018-07-01","2021-06-30","Active","NFM2",null,null,"World Vision International - AGO-M-WVI - AGO-M-WVI"]
["Angola","Ministry of Health of the Republic of Angola - AGO-T-MOH","AGO-T-MOH","Ministry of Health of the Republic of Angola","AGO-T-MOH",null,"2019-01-01","2021-12-31","Active","NFM2",null,null,"Ministry of Health of the Republic of Angola - AGO-T-MOH - AGO-T-MOH"]
["Angola","United Nations Development Programme - AGO-Z-UNDP","AGO-Z-UNDP","United Nations Development Programme","AGO-Z-UNDP",null,"2020-07-01","2021-06-30","Grant Making","NFM2",null,null,"United Nations Development Programme - AGO-Z-UNDP - AGO-Z-UNDP"]
["Armenia","Ministry of Health of the Republic of Armenia - ARM-C-MOH","ARM-C-MOH","Ministry of Health of the Republic of Armenia","ARM-C-MOH",null,"2018-10-01","2021-09-30","Active","NFM2",null,null,"Ministry of Health of the Republic of Armenia - ARM-C-MOH - ARM-C-MOH"]
["Azerbaijan","Ministry of Health of the Republic of Azerbaijan - AZE-H-MOH","AZE-H-MOH","Ministry of Health of the Republic of Azerbaijan","AZE-H-MOH",null,"2018-07-01","2021-06-30","Active","NFM2",null,null,"Ministry of Health of the Republic of Azerbaijan - AZE-H-MOH - AZE-H-MOH"]
["Azerbaijan","Ministry of Health of the Republic of Azerbaijan - AZE-T-MOH","AZE-T-MOH","Ministry of Health of the Republic of Azerbaijan","AZE-T-MOH",null,"2018-01-01","2020-12-31","Active","NFM2",null,null,"Ministry of Health of the Republic of Azerbaijan - AZE-T-MOH - AZE-T-MOH"]
["Bangladesh","International Centre for Diarrhoeal Disease Research of the People's Republic of Bangladesh - BGD-H-ICDDRB","BGD-H-ICDDRB","International Centre for Diarrhoeal Disease Research of the People's Republic of Bangladesh","BGD-H-ICDDRB",null,"2017-12-01","2020-11-30","Active","NFM2",null,null,"International Centre for Diarrhoeal Disease Research of the People's Republic of Bangladesh - BGD-H-ICDDRB - BGD-H-ICDDRB"]
["Bangladesh","Economic Relations Division, Ministry of Finance of the People's Republic of Bangladesh - BGD-H-NASP","BGD-H-NASP","Economic Relations Division, Ministry of Finance of the People's Republic of Bangladesh","BGD-H-NASP",null,"2017-12-01","2020-11-30","Active","NFM2",null,null,"Economic Relations Division, Ministry of Finance of the People's Republic of Bangladesh - BGD-H-NASP - BGD-H-NASP"]
["Bangladesh","Save the Children Federation, Inc. - BGD-H-SC","BGD-H-SC","Save the Children Federation, Inc.","BGD-H-SC",null,"2017-12-01","2020-11-30","Active","NFM2",null,null,"Save the Children Federation, Inc. - BGD-H-SC - BGD-H-SC"]
["Bangladesh","BRAC - BGD-M-BRAC","BGD-M-BRAC","BRAC","BGD-M-BRAC",null,"2018-01-01","2020-12-31","Active","NFM2",null,null,"BRAC - BGD-M-BRAC - BGD-M-BRAC"]
["Bangladesh","Economic Relations Division, Ministry of Finance of the People's Republic of Bangladesh - BGD-M-NMCP","BGD-M-NMCP","Economic Relations Division, Ministry of Finance of the People's Republic of Bangladesh","BGD-M-NMCP",null,"2018-01-01","2020-12-31","Active","NFM2",null,null,"Economic Relations Division, Ministry of Finance of the People's Republic of Bangladesh - BGD-M-NMCP - BGD-M-NMCP"]
["Bangladesh","BRAC - BGD-T-BRAC","BGD-T-BRAC","BRAC","BGD-T-BRAC",null,"2018-01-01","2020-12-31","Active","NFM2",null,null,"BRAC - BGD-T-BRAC - BGD-T-BRAC"]
["Bangladesh","Economic Relations Division, Ministry of Finance of the People's Republic of Bangladesh - BGD-T-NTP","BGD-T-NTP","Economic Relations Division, Ministry of Finance of the People's Republic of Bangladesh","BGD-T-NTP",null,"2018-01-01","2020-12-31","Active","NFM2",null,null,"Economic Relations Division, Ministry of Finance of the People's Republic of Bangladesh - BGD-T-NTP - BGD-T-NTP"]
["Belarus","Republican Scientific and Practical Center for Medical Technologies, Informatization, Administration and Management of Health - BLR-C-RSPCMT","BLR-C-RSPCMT","Republican Scientific and Practical Center for Medical Technologies, Informatization, Administration and Management of Health","BLR-C-RSPCMT",null,"2019-01-01","2021-12-31","Active","NFM2",null,null,"Republican Scientific and Practical Center for Medical Technologies, Informatization, Administration and Management of Health - BLR-C-RSPCMT - BLR-C-RSPCMT"]
["Belize","United Nations Development Programme - BLZ-C-UNDP","BLZ-C-UNDP","United Nations Development Programme","BLZ-C-UNDP",null,"2019-01-01","2021-12-31","Active","NFM2",null,null,"United Nations Development Programme - BLZ-C-UNDP - BLZ-C-UNDP"]
["Benin","Plan International, Inc. - BEN-H-PlanBen","BEN-H-PlanBen","Plan International, Inc.","BEN-H-PlanBen",null,"2018-01-01","2020-12-31","Active","NFM2",null,null,"Plan International, Inc. - BEN-H-PlanBen - BEN-H-PlanBen"]
["Benin","Programme National de Lutte contre le SIDA de la République du Bénin - BEN-H-PSLS","BEN-H-PSLS","Programme National de Lutte contre le SIDA de la République du Bénin","BEN-H-PSLS",null,"2018-01-01","2020-12-31","Active","NFM2",null,null,"Programme National de Lutte contre le SIDA de la République du Bénin - BEN-H-PSLS - BEN-H-PSLS"]
["Benin","Programme National de Lutte contre le Paludisme de la République du Bénin - BEN-M-PNLP","BEN-M-PNLP","Programme National de Lutte contre le Paludisme de la République du Bénin","BEN-M-PNLP",null,"2018-01-01","2020-12-31","Active","NFM2",null,null,"Programme National de Lutte contre le Paludisme de la République du Bénin - BEN-M-PNLP - BEN-M-PNLP"]
["Benin","Conseil National de Lutte contre le VIH/SIDA, la Tuberculose, le Paludisme, les Hépatites, les Infections sexuellement transmissibles et les Epidémies - BEN-S-CNLS-TP","BEN-S-CNLS-TP","Conseil National de Lutte contre le VIH/SIDA, la Tuberculose, le Paludisme, les Hépatites, les Infections sexuellement transmissibles et les Epidémies","BEN-S-CNLS-TP",null,"2019-07-01","2022-06-30","Active","NFM2",null,null,"Conseil National de Lutte contre le VIH/SIDA, la Tuberculose, le Paludisme, les Hépatites, les Infections sexuellement transmissibles et les Epidémies - BEN-S-CNLS-TP - BEN-S-CNLS-TP"]
["Benin","Programme National contre la Tuberculose de la République du Bénin - BEN-T-PNT","BEN-T-PNT","Programme National contre la Tuberculose de la République du Bénin","BEN-T-PNT",null,"2018-01-01","2020-12-31","Active","NFM2",null,null,"Programme National contre la Tuberculose de la République du Bénin - BEN-T-PNT - BEN-T-PNT"]
["Bhutan","Ministry of Health of the Royal Government of Bhutan - BTN-H-MOH","BTN-H-MOH","Ministry of Health of the Royal Government of Bhutan","BTN-H-MOH",null,"2018-07-01","2021-06-30","Active","NFM2",null,null,"Ministry of Health of the Royal Government of Bhutan - BTN-H-MOH - BTN-H-MOH"]
["Bhutan","Ministry of Health of the Royal Government of Bhutan - BTN-M-MOH","BTN-M-MOH","Ministry of Health of the Royal Government of Bhutan","BTN-M-MOH",null,"2018-07-01","2021-06-30","Active","NFM2",null,null,"Ministry of Health of the Royal Government of Bhutan - BTN-M-MOH - BTN-M-MOH"]
["Bhutan","Ministry of Health of the Royal Government of Bhutan - BTN-T-MOH","BTN-T-MOH","Ministry of Health of the Royal Government of Bhutan","BTN-T-MOH",null,"2018-07-01","2021-06-30","Active","NFM2",null,null,"Ministry of Health of the Royal Government of Bhutan - BTN-T-MOH - BTN-T-MOH"]
["Bolivia (Plurinational State)","Humanist Institute for Co-operation with Developing Countries - BOL-H-HIVOS","BOL-H-HIVOS","Humanist Institute for Co-operation with Developing Countries","BOL-H-HIVOS",null,"2019-01-01","2021-12-31","Active","NFM2",null,null,"Humanist Institute for Co-operation with Developing Countries - BOL-H-HIVOS - BOL-H-HIVOS"]
["Bolivia (Plurinational State)","United Nations Development Programme - BOL-M-UNDP","BOL-M-UNDP","United Nations Development Programme","BOL-M-UNDP",null,"2019-01-01","2021-12-31","Active","NFM2",null,null,"United Nations Development Programme - BOL-M-UNDP - BOL-M-UNDP"]
["Bolivia (Plurinational State)","United Nations Development Programme - BOL-T-UNDP","BOL-T-UNDP","United Nations Development Programme","BOL-T-UNDP",null,"2020-01-01","2022-12-31","Active","NFM2",null,null,"United Nations Development Programme - BOL-T-UNDP - BOL-T-UNDP"]
["Botswana","African Comprehensive HIV/AIDS Partnerships - BWA-C-ACHAP","BWA-C-ACHAP","African Comprehensive HIV/AIDS Partnerships","BWA-C-ACHAP",null,"2019-01-01","2021-12-31","Active","NFM2",null,null,"African Comprehensive HIV/AIDS Partnerships - BWA-C-ACHAP - BWA-C-ACHAP"]
["Botswana","Ministry of Health of the Republic of Botswana - BWA-C-BMoH","BWA-C-BMoH","Ministry of Health of the Republic of Botswana","BWA-C-BMoH",null,"2019-01-01","2021-12-31","Active","NFM2",null,null,"Ministry of Health of the Republic of Botswana - BWA-C-BMoH - BWA-C-BMoH"]
["Botswana","Ministry of Health of the Republic of Botswana - BWA-M-BMOH","BWA-M-BMOH","Ministry of Health of the Republic of Botswana","BWA-M-BMOH",null,"2018-10-01","2021-09-30","Active","NFM2",null,null,"Ministry of Health of the Republic of Botswana - BWA-M-BMOH - BWA-M-BMOH"]
["Burkina Faso","Initiative Privée et Communautaire contre le VIH/SIDA au Burkina Faso - BFA-C-IPC","BFA-C-IPC","Initiative Privée et Communautaire contre le VIH/SIDA au Burkina Faso","BFA-C-IPC",null,"2018-01-01","2020-12-31","Active","NFM2",null,null,"Initiative Privée et Communautaire contre le VIH/SIDA au Burkina Faso - BFA-C-IPC - BFA-C-IPC"]
["Burkina Faso","Secrétariat Permanent du Conseil National de Lutte contre le Sida et les IST du Burkina Faso - BFA-H-SPCNLS","BFA-H-SPCNLS","Secrétariat Permanent du Conseil National de Lutte contre le Sida et les IST du Burkina Faso","BFA-H-SPCNLS",null,"2018-01-01","2020-12-31","Active","NFM2",null,null,"Secrétariat Permanent du Conseil National de Lutte contre le Sida et les IST du Burkina Faso - BFA-H-SPCNLS - BFA-H-SPCNLS"]
["Burkina Faso","Programme d'Appui au Développment Sanitaire du Burkina Faso - BFA-M-PADS","BFA-M-PADS","Programme d'Appui au Développment Sanitaire du Burkina Faso","BFA-M-PADS",null,"2018-01-01","2020-12-31","Active","NFM2",null,null,"Programme d'Appui au Développment Sanitaire du Burkina Faso - BFA-M-PADS - BFA-M-PADS"]
["Burkina Faso","Programme d'Appui au Développment Sanitaire du Burkina Faso - BFA-T-PADS","BFA-T-PADS","Programme d'Appui au Développment Sanitaire du Burkina Faso","BFA-T-PADS",null,"2018-01-01","2020-12-31","Active","NFM2",null,null,"Programme d'Appui au Développment Sanitaire du Burkina Faso - BFA-T-PADS - BFA-T-PADS"]
["Burundi","United Nations Development Programme - BDI-C-UNDP","BDI-C-UNDP","United Nations Development Programme","BDI-C-UNDP",null,"2018-01-01","2020-12-31","Active","NFM2",null,null,"United Nations Development Programme - BDI-C-UNDP - BDI-C-UNDP"]
["Burundi","United Nations Development Programme - BDI-M-UNDP","BDI-M-UNDP","United Nations Development Programme","BDI-M-UNDP",null,"2018-01-01","2020-12-31","Active","NFM2",null,null,"United Nations Development Programme - BDI-M-UNDP - BDI-M-UNDP"]
["Cabo Verde","Coordination Committee of the Fight against AIDS of Cabo Verde - CPV-Z-CCSSIDA","CPV-Z-CCSSIDA","Coordination Committee of the Fight against AIDS of Cabo Verde","CPV-Z-CCSSIDA",null,"2018-01-01","2020-12-31","Active","NFM2",null,null,"Coordination Committee of the Fight against AIDS of Cabo Verde - CPV-Z-CCSSIDA - CPV-Z-CCSSIDA"]
["Cambodia","Cambodia Ministry of Economy and Finance - KHM-C-MEF","KHM-C-MEF","Cambodia Ministry of Economy and Finance","KHM-C-MEF",null,"2018-01-01","2020-12-31","Active","NFM2",null,null,"Cambodia Ministry of Economy and Finance - KHM-C-MEF - KHM-C-MEF"]
["Cameroon","Cameroon National Association for Family Welfare - CMR-H-CMF","CMR-H-CMF","Cameroon National Association for Family Welfare","CMR-H-CMF",null,"2018-01-01","2020-12-31","Active","NFM2",null,null,"Cameroon National Association for Family Welfare - CMR-H-CMF - CMR-H-CMF"]
["Cameroon","Ministry of Public Health of the Republic of Cameroon - CMR-H-MOH","CMR-H-MOH","Ministry of Public Health of the Republic of Cameroon","CMR-H-MOH",null,"2018-01-01","2020-12-31","Active","NFM2",null,null,"Ministry of Public Health of the Republic of Cameroon - CMR-H-MOH - CMR-H-MOH"]
["Cameroon","Ministry of Public Health of the Republic of Cameroon - CMR-M-MOH","CMR-M-MOH","Ministry of Public Health of the Republic of Cameroon","CMR-M-MOH",null,"2018-01-01","2020-12-31","Active","NFM2",null,null,"Ministry of Public Health of the Republic of Cameroon - CMR-M-MOH - CMR-M-MOH"]
["Cameroon","Ministry of Public Health of the Republic of Cameroon - CMR-T-MOH","CMR-T-MOH","Ministry of Public Health of the Republic of Cameroon","CMR-T-MOH",null,"2018-01-01","2020-12-31","Active","NFM2",null,null,"Ministry of Public Health of the Republic of Cameroon - CMR-T-MOH - CMR-T-MOH"]
["Central African Republic","La Croix-Rouge française - CAF-C-CRF","CAF-C-CRF","La Croix-Rouge française","CAF-C-CRF",null,"2018-01-01","2020-12-31","Active","NFM2",null,null,"La Croix-Rouge française - CAF-C-CRF - CAF-C-CRF"]
["Central African Republic","World Vision International (CAR Branch office) - CAF-M-WVI","CAF-M-WVI","World Vision International (CAR Branch office)","CAF-M-WVI",null,"2018-01-01","2020-12-31","Active","NFM2",null,null,"World Vision International (CAR Branch office) - CAF-M-WVI - CAF-M-WVI"]
["Chad","Ministry of Public Health Chad - TCD-H-MOH","TCD-H-MOH","Ministry of Public Health Chad","TCD-H-MOH",null,"2019-04-01","2021-12-31","Active","NFM2",null,null,"Ministry of Public Health Chad - TCD-H-MOH - TCD-H-MOH"]
["Chad","United Nations Development Programme - TCD-M-UNDP","TCD-M-UNDP","United Nations Development Programme","TCD-M-UNDP",null,"2018-07-01","2021-06-30","Active","NFM2",null,null,"United Nations Development Programme - TCD-M-UNDP - TCD-M-UNDP"]
["Chad","Ministry of Public Health Chad - TCD-T-MOH","TCD-T-MOH","Ministry of Public Health Chad","TCD-T-MOH",null,"2019-04-01","2021-12-31","Active","NFM2",null,null,"Ministry of Public Health Chad - TCD-T-MOH - TCD-T-MOH"]
["Colombia","Fondo Financiero de Proyectos de Desarrollo - COL-H-ENTerritorio","COL-H-ENTerritorio","Fondo Financiero de Proyectos de Desarrollo","COL-H-ENTerritorio",null,"2019-11-01","2022-10-31","Active","NFM2",null,null,"Fondo Financiero de Proyectos de Desarrollo - COL-H-ENTerritorio - COL-H-ENTerritorio"]
["Comoros","Ministry of Health, Solidarity and Gender Promotion of the Union of the Comoros - COM-H-DNLS","COM-H-DNLS","Ministry of Health, Solidarity and Gender Promotion of the Union of the Comoros","COM-H-DNLS",null,"2019-07-01","2022-06-30","Active","NFM2",null,null,"Ministry of Health, Solidarity and Gender Promotion of the Union of the Comoros - COM-H-DNLS - COM-H-DNLS"]
["Comoros","Ministry of Health, Solidarity and Gender Promotion of the Union of the Comoros - COM-M-PNLP","COM-M-PNLP","Ministry of Health, Solidarity and Gender Promotion of the Union of the Comoros","COM-M-PNLP",null,"2019-01-01","2021-12-31","Active","NFM2",null,null,"Ministry of Health, Solidarity and Gender Promotion of the Union of the Comoros - COM-M-PNLP - COM-M-PNLP"]
["Comoros","Programme National de Lutte contre la Tuberculose et la Lepre - COM-T-PNLT","COM-T-PNLT","Programme National de Lutte contre la Tuberculose et la Lepre","COM-T-PNLT",null,"2018-10-01","2021-09-30","Active","NFM2",null,null,"Programme National de Lutte contre la Tuberculose et la Lepre - COM-T-PNLT - COM-T-PNLT"]
["Congo","La Croix-Rouge française - COG-C-CRF","COG-C-CRF","La Croix-Rouge française","COG-C-CRF",null,"2018-01-01","2020-12-31","Active","NFM2",null,null,"La Croix-Rouge française - COG-C-CRF - COG-C-CRF"]
["Congo","Catholic Relief Services, United States Conference of Catholic Bishops - COG-M-CRS","COG-M-CRS","Catholic Relief Services, United States Conference of Catholic Bishops","COG-M-CRS",null,"2018-05-01","2020-04-30","Active","NFM2",null,null,"Catholic Relief Services, United States Conference of Catholic Bishops - COG-M-CRS - COG-M-CRS"]
["Congo (Democratic Republic)","Stichting Cordaid - COD-C-CORDAID","COD-C-CORDAID","Stichting Cordaid","COD-C-CORDAID",null,"2018-01-01","2020-12-31","Active","NFM2",null,null,"Stichting Cordaid - COD-C-CORDAID - COD-C-CORDAID"]
["Congo (Democratic Republic)","Ministry of Health and Population of the Democratic Republic of Congo - COD-H-MOH","COD-H-MOH","Ministry of Health and Population of the Democratic Republic of Congo","COD-H-MOH",null,"2018-01-01","2020-12-31","Active","NFM2",null,null,"Ministry of Health and Population of the Democratic Republic of Congo - COD-H-MOH - COD-H-MOH"]
["Congo (Democratic Republic)","Ministry of Health and Population of the Democratic Republic of Congo - COD-M-MOH","COD-M-MOH","Ministry of Health and Population of the Democratic Republic of Congo","COD-M-MOH",null,"2018-01-01","2020-12-31","Active","NFM2",null,null,{"$f":"B64&\" - \"&E64","v":"Ministry of Health and Population of the Democratic Republic of Congo - COD-M-MOH - COD-M-MOH"}]
["Congo (Democratic Republic)","SANRU Asbl - COD-M-SANRU","COD-M-SANRU","SANRU Asbl","COD-M-SANRU",null,"2018-01-01","2020-12-31","Active","NFM2",null,null,"SANRU Asbl - COD-M-SANRU - COD-M-SANRU"]
["Congo (Democratic Republic)","Ministry of Health and Population of the Democratic Republic of Congo - COD-T-MOH","COD-T-MOH","Ministry of Health and Population of the Democratic Republic of Congo","COD-T-MOH",null,"2018-01-01","2020-12-31","Active","NFM2",null,null,"Ministry of Health and Population of the Democratic Republic of Congo - COD-T-MOH - COD-T-MOH"]
["Costa Rica","Humanist Institute for Co-operation with Developing Countries - CRI-H-HIVOS","CRI-H-HIVOS","Humanist Institute for Co-operation with Developing Countries","CRI-H-HIVOS",null,"2018-07-01","2021-06-30","Active","NFM2",null,null,"Humanist Institute for Co-operation with Developing Countries - CRI-H-HIVOS - CRI-H-HIVOS"]
["Côte d'Ivoire","Alliance Nationale Contre Le Sida en Cote D'Ivoire - CIV-H-ACI","CIV-H-ACI","Alliance Nationale Contre Le Sida en Cote D'Ivoire","CIV-H-ACI",null,"2018-01-01","2020-12-31","Active","NFM2",null,null,"Alliance Nationale Contre Le Sida en Cote D'Ivoire - CIV-H-ACI - CIV-H-ACI"]
["Côte d'Ivoire","Ministry of Health and Public Hygiene of the Republic of Côte d'Ivoire - CIV-H-MOH","CIV-H-MOH","Ministry of Health and Public Hygiene of the Republic of Côte d'Ivoire","CIV-H-MOH",null,"2018-01-01","2020-12-31","Active","NFM2",null,null,"Ministry of Health and Public Hygiene of the Republic of Côte d'Ivoire - CIV-H-MOH - CIV-H-MOH"]
["Côte d'Ivoire","Ministry of Health and Public Hygiene of the Republic of Côte d'Ivoire - CIV-M-MOH","CIV-M-MOH","Ministry of Health and Public Hygiene of the Republic of Côte d'Ivoire","CIV-M-MOH",null,"2018-01-01","2020-12-31","Active","NFM2",null,null,"Ministry of Health and Public Hygiene of the Republic of Côte d'Ivoire - CIV-M-MOH - CIV-M-MOH"]
["Côte d'Ivoire","Save the Children Federation, Inc. - CIV-M-SCI","CIV-M-SCI","Save the Children Federation, Inc.","CIV-M-SCI",null,"2018-01-01","2020-12-31","Active","NFM2",null,null,"Save the Children Federation, Inc. - CIV-M-SCI - CIV-M-SCI"]
["Côte d'Ivoire","Alliance Nationale Contre Le Sida en Cote D'Ivoire - CIV-T-ACI","CIV-T-ACI","Alliance Nationale Contre Le Sida en Cote D'Ivoire","CIV-T-ACI",null,"2018-01-01","2020-12-31","Active","NFM2",null,null,"Alliance Nationale Contre Le Sida en Cote D'Ivoire - CIV-T-ACI - CIV-T-ACI"]
["Côte d'Ivoire","Ministry of Health and Public Hygiene of the Republic of Côte d'Ivoire - CIV-T-MOH","CIV-T-MOH","Ministry of Health and Public Hygiene of the Republic of Côte d'Ivoire","CIV-T-MOH",null,"2018-01-01","2020-12-31","Active","NFM2",null,null,"Ministry of Health and Public Hygiene of the Republic of Côte d'Ivoire - CIV-T-MOH - CIV-T-MOH"]
["Cuba","United Nations Development Programme - CUB-H-UNDP","CUB-H-UNDP","United Nations Development Programme","CUB-H-UNDP",null,"2018-01-01","2020-12-31","Active","NFM2",null,null,"United Nations Development Programme - CUB-H-UNDP - CUB-H-UNDP"]
["Djibouti","United Nations Development Programme - DJI-C-UNDP","DJI-C-UNDP","United Nations Development Programme","DJI-C-UNDP",null,"2018-07-01","2020-12-31","Active","NFM2",null,null,"United Nations Development Programme - DJI-C-UNDP - DJI-C-UNDP"]
["Djibouti","United Nations Development Programme - DJI-M-UNDP","DJI-M-UNDP","United Nations Development Programme","DJI-M-UNDP",null,"2018-07-01","2020-12-31","Active","NFM2",null,null,"United Nations Development Programme - DJI-M-UNDP - DJI-M-UNDP"]
["Dominican Republic","Consejo Nacional para el VIH y el SIDA - DOM-H-CONAVIH","DOM-H-CONAVIH","Consejo Nacional para el VIH y el SIDA","DOM-H-CONAVIH",null,"2019-01-01","2021-12-31","Active","NFM2",null,null,"Consejo Nacional para el VIH y el SIDA - DOM-H-CONAVIH - DOM-H-CONAVIH"]
["Dominican Republic","Instituto Dermatológico y Cirugía de Piel ‘Dr. Huberto Bogaert Díaz’ - DOM-H-IDCP","DOM-H-IDCP","Instituto Dermatológico y Cirugía de Piel ‘Dr. Huberto Bogaert Díaz’","DOM-H-IDCP",null,"2019-01-01","2021-12-31","Active","NFM2",null,null,"Instituto Dermatológico y Cirugía de Piel ‘Dr. Huberto Bogaert Díaz’ - DOM-H-IDCP - DOM-H-IDCP"]
["Dominican Republic","Ministry of Public Health and Social Assistance of the Dominican Republic - DOM-T-MSPAS","DOM-T-MSPAS","Ministry of Public Health and Social Assistance of the Dominican Republic","DOM-T-MSPAS",null,"2019-01-01","2021-12-31","Active","NFM2",null,null,"Ministry of Public Health and Social Assistance of the Dominican Republic - DOM-T-MSPAS - DOM-T-MSPAS"]
["Ecuador","Ministry of Public Health of the Republic of Ecuador - ECU-H-MOH","ECU-H-MOH","Ministry of Public Health of the Republic of Ecuador","ECU-H-MOH",null,"2020-01-01","2022-12-31","Active","NFM2",null,null,"Ministry of Public Health of the Republic of Ecuador - ECU-H-MOH - ECU-H-MOH"]
["Egypt","United Nations Development Programme - EGY-C-UNDP","EGY-C-UNDP","United Nations Development Programme","EGY-C-UNDP",null,"2019-04-01","2022-03-31","Active","NFM2",null,null,"United Nations Development Programme - EGY-C-UNDP - EGY-C-UNDP"]
["El Salvador","Ministry of Health of the Republic of El Salvador - SLV-H-MOH","SLV-H-MOH","Ministry of Health of the Republic of El Salvador","SLV-H-MOH",null,"2019-01-01","2021-12-31","Active","NFM2",null,null,"Ministry of Health of the Republic of El Salvador - SLV-H-MOH - SLV-H-MOH"]
["El Salvador","Ministry of Health of the Republic of El Salvador - SLV-M-MOH","SLV-M-MOH","Ministry of Health of the Republic of El Salvador","SLV-M-MOH",null,"2017-01-01","2020-06-30","Active","NFM",null,null,"Ministry of Health of the Republic of El Salvador - SLV-M-MOH - SLV-M-MOH"]
["El Salvador","Ministry of Health of the Republic of El Salvador - SLV-T-MOH","SLV-T-MOH","Ministry of Health of the Republic of El Salvador","SLV-T-MOH",null,"2019-01-01","2021-12-31","Active","NFM2",null,null,"Ministry of Health of the Republic of El Salvador - SLV-T-MOH - SLV-T-MOH"]
["Eritrea","Ministry of Health of the State of Eritrea - ERI-H-MOH","ERI-H-MOH","Ministry of Health of the State of Eritrea","ERI-H-MOH",null,"2018-01-01","2020-12-31","Active","NFM2",null,null,"Ministry of Health of the State of Eritrea - ERI-H-MOH - ERI-H-MOH"]
["Eritrea","Ministry of Health of the State of Eritrea - ERI-M-MOH","ERI-M-MOH","Ministry of Health of the State of Eritrea","ERI-M-MOH",null,"2018-01-01","2020-12-31","Active","NFM2",null,null,"Ministry of Health of the State of Eritrea - ERI-M-MOH - ERI-M-MOH"]
["Eritrea","Ministry of Health of the State of Eritrea - ERI-T-MOH","ERI-T-MOH","Ministry of Health of the State of Eritrea","ERI-T-MOH",null,"2018-01-01","2020-12-31","Active","NFM2",null,null,"Ministry of Health of the State of Eritrea - ERI-T-MOH - ERI-T-MOH"]
["Eswatini","Coordinating Assembly of Non Governmental Organisation - SWZ-C-CANGO","SWZ-C-CANGO","Coordinating Assembly of Non Governmental Organisation","SWZ-C-CANGO",null,"2018-10-01","2021-09-30","Active","NFM2",null,null,"Coordinating Assembly of Non Governmental Organisation - SWZ-C-CANGO - SWZ-C-CANGO"]
["Eswatini","National Emergency Response Council on HIV and AIDS - SWZ-C-NERCHA","SWZ-C-NERCHA","National Emergency Response Council on HIV and AIDS","SWZ-C-NERCHA",null,"2018-10-01","2021-09-30","Active","NFM2",null,null,"National Emergency Response Council on HIV and AIDS - SWZ-C-NERCHA - SWZ-C-NERCHA"]
["Eswatini","National Emergency Response Council on HIV and AIDS - SWZ-M-NERCHA","SWZ-M-NERCHA","National Emergency Response Council on HIV and AIDS","SWZ-M-NERCHA",null,"2018-01-01","2020-12-31","Active","NFM2",null,null,"National Emergency Response Council on HIV and AIDS - SWZ-M-NERCHA - SWZ-M-NERCHA"]
["Ethiopia","HIV/AIDS Prevention and Control Office - ETH-H-HAPCO","ETH-H-HAPCO","HIV/AIDS Prevention and Control Office","ETH-H-HAPCO",null,"2018-01-01","2021-06-30","Active","NFM2",null,null,"HIV/AIDS Prevention and Control Office - ETH-H-HAPCO - ETH-H-HAPCO"]
["Ethiopia","Federal Ministry of Health of the Federal Democratic Republic of Ethiopia - ETH-M-FMOH","ETH-M-FMOH","Federal Ministry of Health of the Federal Democratic Republic of Ethiopia","ETH-M-FMOH",null,"2018-01-01","2021-06-30","Active","NFM2",null,null,"Federal Ministry of Health of the Federal Democratic Republic of Ethiopia - ETH-M-FMOH - ETH-M-FMOH"]
["Ethiopia","UNICEF Ethiopia - ETH-M-UNICEF","ETH-M-UNICEF","UNICEF Ethiopia","ETH-M-UNICEF",null,"2019-10-01","2020-09-30","Active","NFM2",null,null,"UNICEF Ethiopia - ETH-M-UNICEF - ETH-M-UNICEF"]
["Ethiopia","Federal Ministry of Health of the Federal Democratic Republic of Ethiopia - ETH-S-FMOH","ETH-S-FMOH","Federal Ministry of Health of the Federal Democratic Republic of Ethiopia","ETH-S-FMOH",null,"2018-01-01","2021-06-30","Active","NFM2",null,null,"Federal Ministry of Health of the Federal Democratic Republic of Ethiopia - ETH-S-FMOH - ETH-S-FMOH"]
["Ethiopia","Federal Ministry of Health of the Federal Democratic Republic of Ethiopia - ETH-T-FMOH","ETH-T-FMOH","Federal Ministry of Health of the Federal Democratic Republic of Ethiopia","ETH-T-FMOH",null,"2018-01-01","2021-06-30","Active","NFM2",null,null,"Federal Ministry of Health of the Federal Democratic Republic of Ethiopia - ETH-T-FMOH - ETH-T-FMOH"]
["Gabon","Centre de Recherches Médicales de Lambaréné - GAB-T-CERMEL","GAB-T-CERMEL","Centre de Recherches Médicales de Lambaréné","GAB-T-CERMEL",null,"2019-07-01","2021-12-31","Active","NFM2",null,null,"Centre de Recherches Médicales de Lambaréné - GAB-T-CERMEL - GAB-T-CERMEL"]
["Gambia","ActionAid International The Gambia - GMB-C-AAITG","GMB-C-AAITG","ActionAid International The Gambia","GMB-C-AAITG",null,"2018-01-01","2020-12-31","Active","NFM2",null,null,"ActionAid International The Gambia - GMB-C-AAITG - GMB-C-AAITG"]
["Gambia","The National AIDS Secretariat of the Republic of The Gambia - GMB-C-NAS","GMB-C-NAS","The National AIDS Secretariat of the Republic of The Gambia","GMB-C-NAS",null,"2018-01-01","2020-12-31","Active","NFM2",null,null,"The National AIDS Secretariat of the Republic of The Gambia - GMB-C-NAS - GMB-C-NAS"]
["Gambia","Ministry of Health and Social Welfare of the Republic of Gambia - GMB-M-MOH","GMB-M-MOH","Ministry of Health and Social Welfare of the Republic of Gambia","GMB-M-MOH",null,"2018-07-01","2021-06-30","Active","NFM2",null,null,"Ministry of Health and Social Welfare of the Republic of Gambia - GMB-M-MOH - GMB-M-MOH"]
["Georgia","National Center For Disease Control and Public Health - GEO-H-NCDC","GEO-H-NCDC","National Center For Disease Control and Public Health","GEO-H-NCDC",null,"2019-07-01","2022-06-30","Active","NFM2",null,null,"National Center For Disease Control and Public Health - GEO-H-NCDC - GEO-H-NCDC"]
["Georgia","National Center For Disease Control and Public Health - GEO-T-NCDC","GEO-T-NCDC","National Center For Disease Control and Public Health","GEO-T-NCDC",null,"2020-01-01","2022-12-31","Active","NFM2",null,null,"National Center For Disease Control and Public Health - GEO-T-NCDC - GEO-T-NCDC"]
["Ghana","Ministry of Health of the Republic of Ghana - GHA-C-MOH","GHA-C-MOH","Ministry of Health of the Republic of Ghana","GHA-C-MOH",null,"2018-01-01","2020-12-31","Active","NFM2",null,null,"Ministry of Health of the Republic of Ghana - GHA-C-MOH - GHA-C-MOH"]
["Ghana","West African Program to Combat AIDS and STI - GHA-H-WAPCAS","GHA-H-WAPCAS","West African Program to Combat AIDS and STI","GHA-H-WAPCAS",null,"2018-01-01","2020-12-31","Active","NFM2",null,null,"West African Program to Combat AIDS and STI - GHA-H-WAPCAS - GHA-H-WAPCAS"]
["Ghana","AngloGold Ashanti (Ghana) Malaria Control Limited - GHA-M-AGAMal","GHA-M-AGAMal","AngloGold Ashanti (Ghana) Malaria Control Limited","GHA-M-AGAMal",null,"2018-01-01","2020-12-31","Active","NFM2",null,null,"AngloGold Ashanti (Ghana) Malaria Control Limited - GHA-M-AGAMal - GHA-M-AGAMal"]
["Ghana","Ministry of Health of the Republic of Ghana - GHA-M-MOH","GHA-M-MOH","Ministry of Health of the Republic of Ghana","GHA-M-MOH",null,"2018-01-01","2020-12-31","Active","NFM2",null,null,"Ministry of Health of the Republic of Ghana - GHA-M-MOH - GHA-M-MOH"]
["Guatemala","Instituto de Nutrición de Centro América y Panamá (INCAP) - GTM-H-INCAP","GTM-H-INCAP","Instituto de Nutrición de Centro América y Panamá (INCAP)","GTM-H-INCAP",null,"2018-10-01","2020-12-31","Active","NFM2",null,null,"Instituto de Nutrición de Centro América y Panamá (INCAP) - GTM-H-INCAP - GTM-H-INCAP"]
["Guatemala","Ministry of Health and Social Assistance of the Republic of Guatemala - GTM-M-MSPAS","GTM-M-MSPAS","Ministry of Health and Social Assistance of the Republic of Guatemala","GTM-M-MSPAS",null,"2019-01-01","2021-06-30","Active","NFM2",null,null,"Ministry of Health and Social Assistance of the Republic of Guatemala - GTM-M-MSPAS - GTM-M-MSPAS"]
["Guatemala","Ministry of Health and Social Assistance of the Republic of Guatemala - GTM-T-MSPAS","GTM-T-MSPAS","Ministry of Health and Social Assistance of the Republic of Guatemala","GTM-T-MSPAS",null,"2019-07-01","2022-06-30","Active","NFM2",null,null,"Ministry of Health and Social Assistance of the Republic of Guatemala - GTM-T-MSPAS - GTM-T-MSPAS"]
["Guinea","Plan International, Inc. - GIN-C-PLAN","GIN-C-PLAN","Plan International, Inc.","GIN-C-PLAN",null,"2018-01-01","2020-12-31","Active","NFM2",null,null,"Plan International, Inc. - GIN-C-PLAN - GIN-C-PLAN"]
["Guinea","The Ministry of Public Health of the Republic of Guinea - GIN-H-MOH","GIN-H-MOH","The Ministry of Public Health of the Republic of Guinea","GIN-H-MOH",null,"2018-01-01","2020-12-31","Active","NFM2",null,null,"The Ministry of Public Health of the Republic of Guinea - GIN-H-MOH - GIN-H-MOH"]
["Guinea","Catholic Relief Services - United States Conference of Catholic Bishops - GIN-M-CRS","GIN-M-CRS","Catholic Relief Services - United States Conference of Catholic Bishops","GIN-M-CRS",null,"2018-01-01","2020-12-31","Active","NFM2",null,null,"Catholic Relief Services - United States Conference of Catholic Bishops - GIN-M-CRS - GIN-M-CRS"]
["Guinea-Bissau","Ministry of Health of the Republic of Guinea-Bissau - GNB-C-MOH","GNB-C-MOH","Ministry of Health of the Republic of Guinea-Bissau","GNB-C-MOH",null,"2018-01-01","2020-12-31","Active","NFM2",null,null,"Ministry of Health of the Republic of Guinea-Bissau - GNB-C-MOH - GNB-C-MOH"]
["Guinea-Bissau","United Nations Development Programme - GNB-M-UNDP","GNB-M-UNDP","United Nations Development Programme","GNB-M-UNDP",null,"2018-01-01","2020-12-31","Active","NFM2",null,null,"United Nations Development Programme - GNB-M-UNDP - GNB-M-UNDP"]
["Guyana","Ministry of Health of the Republic of Guyana - GUY-H-MOH","GUY-H-MOH","Ministry of Health of the Republic of Guyana","GUY-H-MOH",null,"2018-01-01","2020-12-30","Active","NFM2",null,null,"Ministry of Health of the Republic of Guyana - GUY-H-MOH - GUY-H-MOH"]
["Guyana","Ministry of Health of the Republic of Guyana - GUY-M-MOH","GUY-M-MOH","Ministry of Health of the Republic of Guyana","GUY-M-MOH",null,"2020-01-01","2022-12-31","Active","NFM2",null,null,"Ministry of Health of the Republic of Guyana - GUY-M-MOH - GUY-M-MOH"]
["Guyana","Ministry of Health of the Republic of Guyana - GUY-T-MOH","GUY-T-MOH","Ministry of Health of the Republic of Guyana","GUY-T-MOH",null,"2019-04-01","2022-03-31","Active","NFM2",null,null,"Ministry of Health of the Republic of Guyana - GUY-T-MOH - GUY-T-MOH"]
["Haiti","Population Services International - HTI-C-PSI","HTI-C-PSI","Population Services International","HTI-C-PSI",null,"2018-01-01","2020-12-31","Active","NFM2",null,null,"Population Services International - HTI-C-PSI - HTI-C-PSI"]
["Haiti","Population Services International - HTI-M-PSI","HTI-M-PSI","Population Services International","HTI-M-PSI",null,"2018-01-01","2020-12-31","Active","NFM2",null,null,"Population Services International - HTI-M-PSI - HTI-M-PSI"]
["Honduras","Cooperative Housing Foundation - HND-C-CHF","HND-C-CHF","Cooperative Housing Foundation","HND-C-CHF",null,"2019-08-01","2022-07-31","Active","NFM2",null,null,"Cooperative Housing Foundation - HND-C-CHF - HND-C-CHF"]
["Honduras","Cooperative Housing Foundation - HND-M-CHF","HND-M-CHF","Cooperative Housing Foundation","HND-M-CHF",null,"2018-01-01","2020-12-31","Active","NFM2",null,null,"Cooperative Housing Foundation - HND-M-CHF - HND-M-CHF"]
["India","William J Clinton Foundation - IND-C-WJCF","IND-C-WJCF","William J Clinton Foundation","IND-C-WJCF",null,"2018-01-01","2021-03-31","Active","NFM2",null,null,"William J Clinton Foundation - IND-C-WJCF - IND-C-WJCF"]
["India","India HIV/AIDS Alliance - IND-H-IHAA","IND-H-IHAA","India HIV/AIDS Alliance","IND-H-IHAA",null,"2018-01-01","2021-03-31","Active","NFM2",null,null,"India HIV/AIDS Alliance - IND-H-IHAA - IND-H-IHAA"]
["India","Department of Economic Affairs, Ministry of Finance of India - IND-H-NACO","IND-H-NACO","Department of Economic Affairs, Ministry of Finance of India","IND-H-NACO",null,"2018-01-01","2021-03-31","Active","NFM2",null,null,"Department of Economic Affairs, Ministry of Finance of India - IND-H-NACO - IND-H-NACO"]
["India","Plan International (India Chapter) - IND-H-PLAN","IND-H-PLAN","Plan International (India Chapter)","IND-H-PLAN",null,"2018-01-01","2021-03-31","Active","NFM2",null,null,"Plan International (India Chapter) - IND-H-PLAN - IND-H-PLAN"]
["India","Solidarity and Action Against The HIV Infection in India - IND-H-SAATHII","IND-H-SAATHII","Solidarity and Action Against The HIV Infection in India","IND-H-SAATHII",null,"2018-01-01","2021-03-31","Active","NFM2",null,null,"Solidarity and Action Against The HIV Infection in India - IND-H-SAATHII - IND-H-SAATHII"]
["India","Department of Economic Affairs, Ministry of Finance of India - IND-M-NVBDCP","IND-M-NVBDCP","Department of Economic Affairs, Ministry of Finance of India","IND-M-NVBDCP",null,"2018-01-01","2021-03-31","Active","NFM2",null,null,{"$f":"B126&\" - \"&E126","v":"Department of Economic Affairs, Ministry of Finance of India - IND-M-NVBDCP - IND-M-NVBDCP"}]
["India","Centre for Health Research and Innovation - IND-T-CHRI","IND-T-CHRI","Centre for Health Research and Innovation","IND-T-CHRI",null,"2018-01-01","2021-03-31","Active","NFM2",null,null,"Centre for Health Research and Innovation - IND-T-CHRI - IND-T-CHRI"]
["India","Department of Economic Affairs, Ministry of Finance of India - IND-T-CTD","IND-T-CTD","Department of Economic Affairs, Ministry of Finance of India","IND-T-CTD",null,"2018-01-01","2021-03-31","Active","NFM2",null,null,"Department of Economic Affairs, Ministry of Finance of India - IND-T-CTD - IND-T-CTD"]
["India","FOUNDATION FOR INNOVATIVE NEW DIAGNOSTICS INDIA - IND-T-FIND","IND-T-FIND","FOUNDATION FOR INNOVATIVE NEW DIAGNOSTICS INDIA","IND-T-FIND",null,"2018-01-01","2021-03-31","Active","NFM2",null,null,"FOUNDATION FOR INNOVATIVE NEW DIAGNOSTICS INDIA - IND-T-FIND - IND-T-FIND"]
["India","International Bank for Reconstruction and Development - IND-T-IBRD","IND-T-IBRD","International Bank for Reconstruction and Development","IND-T-IBRD",null,"2019-04-01","2021-03-31","Active","NFM2",null,null,"International Bank for Reconstruction and Development - IND-T-IBRD - IND-T-IBRD"]
["India","International Union Against Tuberculosis and Lung Disease - IND-T-IUATLD","IND-T-IUATLD","International Union Against Tuberculosis and Lung Disease","IND-T-IUATLD",null,"2018-01-01","2021-03-31","Active","NFM2",null,null,"International Union Against Tuberculosis and Lung Disease - IND-T-IUATLD - IND-T-IUATLD"]
["Indonesia","Directorate General of Disease Prevention and Control, Ministry of Health of The Republic of Indonesia - IDN-H-MOH","IDN-H-MOH","Directorate General of Disease Prevention and Control, Ministry of Health of The Republic of Indonesia","IDN-H-MOH",null,"2018-01-01","2020-12-31","Active","NFM2",null,null,"Directorate General of Disease Prevention and Control, Ministry of Health of The Republic of Indonesia - IDN-H-MOH - IDN-H-MOH"]
["Indonesia","Yayasan Spiritia - IDN-H-SPIRITI","IDN-H-SPIRITI","Yayasan Spiritia","IDN-H-SPIRITI",null,"2018-01-01","2020-12-31","Active","NFM2",null,null,"Yayasan Spiritia - IDN-H-SPIRITI - IDN-H-SPIRITI"]
["Indonesia","Directorate General of Disease Prevention and Control, Ministry of Health of The Republic of Indonesia - IDN-M-MOH","IDN-M-MOH","Directorate General of Disease Prevention and Control, Ministry of Health of The Republic of Indonesia","IDN-M-MOH",null,"2018-01-01","2020-12-31","Active","NFM2",null,null,"Directorate General of Disease Prevention and Control, Ministry of Health of The Republic of Indonesia - IDN-M-MOH - IDN-M-MOH"]
["Indonesia","Persatuan Karya Dharma Kesehatan Indonesia (also known as “PERDHAKI”, Association of Voluntary Health Services of Indonesia) - IDN-M-PERDHAK","IDN-M-PERDHAK","Persatuan Karya Dharma Kesehatan Indonesia (also known as “PERDHAKI”, Association of Voluntary Health Services of Indonesia)","IDN-M-PERDHAK",null,"2018-01-01","2020-12-31","Active","NFM2",null,null,"Persatuan Karya Dharma Kesehatan Indonesia (also known as “PERDHAKI”, Association of Voluntary Health Services of Indonesia) - IDN-M-PERDHAK - IDN-M-PERDHAK"]
["Indonesia","Central Board of ‘Aisyiyah - IDN-T-AISYIYA","IDN-T-AISYIYA","Central Board of ‘Aisyiyah","IDN-T-AISYIYA",null,"2018-01-01","2020-12-31","Active","NFM2",null,null,"Central Board of ‘Aisyiyah - IDN-T-AISYIYA - IDN-T-AISYIYA"]
["Indonesia","Directorate General of Disease Prevention and Control, Ministry of Health of The Republic of Indonesia - IDN-T-MOH","IDN-T-MOH","Directorate General of Disease Prevention and Control, Ministry of Health of The Republic of Indonesia","IDN-T-MOH",null,"2018-01-01","2020-12-31","Active","NFM2",null,null,"Directorate General of Disease Prevention and Control, Ministry of Health of The Republic of Indonesia - IDN-T-MOH - IDN-T-MOH"]
["Iran (Islamic Republic)","United Nations Development Programme - IRN-H-UNDP","IRN-H-UNDP","United Nations Development Programme","IRN-H-UNDP",null,"2018-04-01","2021-03-31","Active","NFM2",null,null,"United Nations Development Programme - IRN-H-UNDP - IRN-H-UNDP"]
["Jamaica","Ministry of Health of Jamaica - JAM-H-MOH","JAM-H-MOH","Ministry of Health of Jamaica","JAM-H-MOH",null,"2019-01-01","2021-12-31","Active","NFM2",null,null,"Ministry of Health of Jamaica - JAM-H-MOH - JAM-H-MOH"]
["Kazakhstan","Kazakh scientific center of dermatology and infectious diseases of the Ministry of Health of the Republic of Kazakhstan - KAZ-H-RAC","KAZ-H-RAC","Kazakh scientific center of dermatology and infectious diseases of the Ministry of Health of the Republic of Kazakhstan","KAZ-H-RAC",null,"2018-01-01","2020-12-31","Active","NFM2",null,null,"Kazakh scientific center of dermatology and infectious diseases of the Ministry of Health of the Republic of Kazakhstan - KAZ-H-RAC - KAZ-H-RAC"]
["Kazakhstan","National Center of Tuberculosis Problems of the Ministry of Healthcare and Social Development of the Republic of Kazakhstan - KAZ-T-NCTP","KAZ-T-NCTP","National Center of Tuberculosis Problems of the Ministry of Healthcare and Social Development of the Republic of Kazakhstan","KAZ-T-NCTP",null,"2020-01-01","2022-12-31","Active","NFM2",null,null,"National Center of Tuberculosis Problems of the Ministry of Healthcare and Social Development of the Republic of Kazakhstan - KAZ-T-NCTP - KAZ-T-NCTP"]
["Kenya","Kenya Red Cross Society - KEN-H-KRCS","KEN-H-KRCS","Kenya Red Cross Society","KEN-H-KRCS",null,"2018-01-01","2021-06-30","Active","NFM2",null,null,"Kenya Red Cross Society - KEN-H-KRCS - KEN-H-KRCS"]
["Kenya","National Treasury of the Republic of Kenya - KEN-H-TNT","KEN-H-TNT","National Treasury of the Republic of Kenya","KEN-H-TNT",null,"2018-01-01","2021-06-30","Active","NFM2",null,null,"National Treasury of the Republic of Kenya - KEN-H-TNT - KEN-H-TNT"]
["Kenya","Amref Health Africa in Kenya - KEN-M-AMREF","KEN-M-AMREF","Amref Health Africa in Kenya","KEN-M-AMREF",null,"2018-01-01","2021-06-30","Active","NFM2",null,null,"Amref Health Africa in Kenya - KEN-M-AMREF - KEN-M-AMREF"]
["Kenya","National Treasury of the Republic of Kenya - KEN-M-TNT","KEN-M-TNT","National Treasury of the Republic of Kenya","KEN-M-TNT",null,"2018-01-01","2021-06-30","Active","NFM2",null,null,"National Treasury of the Republic of Kenya - KEN-M-TNT - KEN-M-TNT"]
["Kenya","Amref Health Africa in Kenya - KEN-T-AMREF","KEN-T-AMREF","Amref Health Africa in Kenya","KEN-T-AMREF",null,"2018-01-01","2021-06-30","Active","NFM2",null,null,"Amref Health Africa in Kenya - KEN-T-AMREF - KEN-T-AMREF"]
["Kenya","National Treasury of the Republic of Kenya - KEN-T-TNT","KEN-T-TNT","National Treasury of the Republic of Kenya","KEN-T-TNT",null,"2018-01-01","2021-06-30","Active","NFM2",null,null,"National Treasury of the Republic of Kenya - KEN-T-TNT - KEN-T-TNT"]
["Korea (Democratic Peoples Republic)","United Nations Children's Fund - PRK-Z-UNICEF","PRK-Z-UNICEF","United Nations Children's Fund","PRK-Z-UNICEF",null,"2019-10-01","2022-09-30","Active","NFM2",null,null,"United Nations Children's Fund - PRK-Z-UNICEF - PRK-Z-UNICEF"]
["Kosovo","Community Development Fund - QNA-H-CDF","QNA-H-CDF","Community Development Fund","QNA-H-CDF",null,"2018-04-01","2020-12-31","Active","NFM2",null,null,"Community Development Fund - QNA-H-CDF - QNA-H-CDF"]
["Kosovo","Community Development Fund - QNA-T-CDF","QNA-T-CDF","Community Development Fund","QNA-T-CDF",null,"2019-01-01","2021-12-31","Active","NFM2",null,null,"Community Development Fund - QNA-T-CDF - QNA-T-CDF"]
["Kyrgyzstan","United Nations Development Programme - KGZ-C-UNDP","KGZ-C-UNDP","United Nations Development Programme","KGZ-C-UNDP",null,"2018-07-01","2020-12-31","Active","NFM2",null,null,"United Nations Development Programme - KGZ-C-UNDP - KGZ-C-UNDP"]
["Lao (Peoples Democratic Republic)","Ministry of Health of the Lao People's Democratic Republic - LAO-H-GFMOH","LAO-H-GFMOH","Ministry of Health of the Lao People's Democratic Republic","LAO-H-GFMOH",null,"2018-01-01","2020-12-31","Active","NFM2",null,null,"Ministry of Health of the Lao People's Democratic Republic - LAO-H-GFMOH - LAO-H-GFMOH"]
["Lao (Peoples Democratic Republic)","Ministry of Health of the Lao People's Democratic Republic - LAO-T-GFMOH","LAO-T-GFMOH","Ministry of Health of the Lao People's Democratic Republic","LAO-T-GFMOH",null,"2018-01-01","2020-12-31","Active","NFM2",null,null,"Ministry of Health of the Lao People's Democratic Republic - LAO-T-GFMOH - LAO-T-GFMOH"]
["Lesotho","Ministry of Finance of the Kingdom of Lesotho - LSO-C-MOF","LSO-C-MOF","Ministry of Finance of the Kingdom of Lesotho","LSO-C-MOF",null,"2018-07-01","2021-06-30","Active","NFM2",null,null,"Ministry of Finance of the Kingdom of Lesotho - LSO-C-MOF - LSO-C-MOF"]
["Lesotho","Pact Lesotho - LSO-C-PACT","LSO-C-PACT","Pact Lesotho","LSO-C-PACT",null,"2018-07-01","2021-06-30","Active","NFM2",null,null,"Pact Lesotho - LSO-C-PACT - LSO-C-PACT"]
["Liberia","Ministry of Health and Social Welfare of the Republic of Liberia - LBR-C-MOH","LBR-C-MOH","Ministry of Health and Social Welfare of the Republic of Liberia","LBR-C-MOH",null,"2018-01-01","2020-12-31","Active","NFM2",null,null,"Ministry of Health and Social Welfare of the Republic of Liberia - LBR-C-MOH - LBR-C-MOH"]
["Liberia","Population Services International - LBR-H-PSI","LBR-H-PSI","Population Services International","LBR-H-PSI",null,"2018-01-01","2020-12-31","Active","NFM2",null,null,"Population Services International - LBR-H-PSI - LBR-H-PSI"]
["Liberia","Ministry of Health and Social Welfare of the Republic of Liberia - LBR-M-MOH","LBR-M-MOH","Ministry of Health and Social Welfare of the Republic of Liberia","LBR-M-MOH",null,"2018-07-01","2021-06-30","Active","NFM2",null,null,"Ministry of Health and Social Welfare of the Republic of Liberia - LBR-M-MOH - LBR-M-MOH"]
["Liberia","Plan International, Inc. - LBR-M-PII","LBR-M-PII","Plan International, Inc.","LBR-M-PII",null,"2018-07-01","2021-06-30","Active","NFM2",null,null,"Plan International, Inc. - LBR-M-PII - LBR-M-PII"]
["Madagascar","Population Services International - MDG-H-PSI","MDG-H-PSI","Population Services International","MDG-H-PSI",null,"2018-01-01","2020-12-31","Active","NFM2",null,null,"Population Services International - MDG-H-PSI - MDG-H-PSI"]
["Madagascar","Sécrétariat Exécutif du Comité National de Lutte Contre le VIH/SIDA de la République de Madagascar - MDG-H-SECNLS","MDG-H-SECNLS","Sécrétariat Exécutif du Comité National de Lutte Contre le VIH/SIDA de la République de Madagascar","MDG-H-SECNLS",null,"2018-01-01","2020-12-31","Active","NFM2",null,null,"Sécrétariat Exécutif du Comité National de Lutte Contre le VIH/SIDA de la République de Madagascar - MDG-H-SECNLS - MDG-H-SECNLS"]
["Madagascar","Ministry of Public Health of the Republic of Madagascar - MDG-M-MOH","MDG-M-MOH","Ministry of Public Health of the Republic of Madagascar","MDG-M-MOH",null,"2018-07-01","2021-06-30","Active","NFM2",null,null,"Ministry of Public Health of the Republic of Madagascar - MDG-M-MOH - MDG-M-MOH"]
["Madagascar","Population Services International - MDG-M-PSI","MDG-M-PSI","Population Services International","MDG-M-PSI",null,"2018-07-01","2021-06-30","Active","NFM2",null,null,"Population Services International - MDG-M-PSI - MDG-M-PSI"]
["Madagascar","Office National de Nutrition - MDG-T-ONN","MDG-T-ONN","Office National de Nutrition","MDG-T-ONN",null,"2018-01-01","2020-12-31","Active","NFM2",null,null,"Office National de Nutrition - MDG-T-ONN - MDG-T-ONN"]
["Malawi","ActionAid International Malawi - MWI-C-AA","MWI-C-AA","ActionAid International Malawi","MWI-C-AA",null,"2018-01-01","2020-12-31","Active","NFM2",null,null,"ActionAid International Malawi - MWI-C-AA - MWI-C-AA"]
["Malawi","Ministry of Health of the Republic of Malawi - MWI-C-MOH","MWI-C-MOH","Ministry of Health of the Republic of Malawi","MWI-C-MOH",null,"2018-01-01","2020-12-31","Active","NFM2",null,null,"Ministry of Health of the Republic of Malawi - MWI-C-MOH - MWI-C-MOH"]
["Malawi","Ministry of Health of the Republic of Malawi - MWI-M-MOH","MWI-M-MOH","Ministry of Health of the Republic of Malawi","MWI-M-MOH",null,"2018-01-01","2020-12-31","Active","NFM2",null,null,"Ministry of Health of the Republic of Malawi - MWI-M-MOH - MWI-M-MOH"]
["Malawi","World Vision Malawi - MWI-M-WVM","MWI-M-WVM","World Vision Malawi","MWI-M-WVM",null,"2018-01-01","2020-12-31","Active","NFM2",null,null,"World Vision Malawi - MWI-M-WVM - MWI-M-WVM"]
["Malaysia","Malaysian AIDS Council - MYS-H-MAC","MYS-H-MAC","Malaysian AIDS Council","MYS-H-MAC",null,"2019-07-01","2022-06-30","Active","NFM2",null,null,"Malaysian AIDS Council - MYS-H-MAC - MYS-H-MAC"]
["Mali","National High Council for the Fight against AIDS in the Republic of Mali - MLI-H-HCNLS","MLI-H-HCNLS","National High Council for the Fight against AIDS in the Republic of Mali","MLI-H-HCNLS",null,"2018-01-01","2020-12-31","Active","NFM2",null,null,"National High Council for the Fight against AIDS in the Republic of Mali - MLI-H-HCNLS - MLI-H-HCNLS"]
["Mali","Plan International, Inc. - MLI-H-PLAN","MLI-H-PLAN","Plan International, Inc.","MLI-H-PLAN",null,"2018-01-01","2020-12-31","Active","NFM2",null,null,"Plan International, Inc. - MLI-H-PLAN - MLI-H-PLAN"]
["Mali","Population Services International - MLI-M-PSI","MLI-M-PSI","Population Services International","MLI-M-PSI",null,"2019-01-01","2021-12-31","Active","NFM2",null,null,"Population Services International - MLI-M-PSI - MLI-M-PSI"]
["Mali","Catholic Relief Services - United States Conference of Catholic Bishops - MLI-T-CRS","MLI-T-CRS","Catholic Relief Services - United States Conference of Catholic Bishops","MLI-T-CRS",null,"2018-01-01","2020-12-31","Active","NFM2",null,null,"Catholic Relief Services - United States Conference of Catholic Bishops - MLI-T-CRS - MLI-T-CRS"]
["Mauritania","Secrétariat Exécutif National de Lutte contre le SIDA de la République Islamique de Mauritanie - MRT-Z-SENLS","MRT-Z-SENLS","Secrétariat Exécutif National de Lutte contre le SIDA de la République Islamique de Mauritanie","MRT-Z-SENLS",null,"2019-07-01","2021-12-31","Active","NFM2",null,null,"Secrétariat Exécutif National de Lutte contre le SIDA de la République Islamique de Mauritanie - MRT-Z-SENLS - MRT-Z-SENLS"]
["Mauritius","Ministry of Health and Quality of Life (implementing through the National AIDS Secretariat) of the Republic of Mauritius - MUS-H-NAS","MUS-H-NAS","Ministry of Health and Quality of Life (implementing through the National AIDS Secretariat) of the Republic of Mauritius","MUS-H-NAS",null,"2018-01-01","2020-12-31","Active","NFM2",null,null,"Ministry of Health and Quality of Life (implementing through the National AIDS Secretariat) of the Republic of Mauritius - MUS-H-NAS - MUS-H-NAS"]
["Mauritius","Prévention Information Lutte contre le Sida - MUS-H-PILS","MUS-H-PILS","Prévention Information Lutte contre le Sida","MUS-H-PILS",null,"2018-01-01","2020-12-31","Active","NFM2",null,null,"Prévention Information Lutte contre le Sida - MUS-H-PILS - MUS-H-PILS"]
["Moldova","Public Institution - Coordination, Implementation and Monitoring Unit of the Health  System Projects - MDA-C-PCIMU","MDA-C-PCIMU","Public Institution - Coordination, Implementation and Monitoring Unit of the Health  System Projects","MDA-C-PCIMU",null,"2018-01-01","2020-12-31","Active","NFM2",null,null,"Public Institution - Coordination, Implementation and Monitoring Unit of the Health  System Projects - MDA-C-PCIMU - MDA-C-PCIMU"]
["Moldova","Center for Health Policies and Studies - MDA-T-PAS","MDA-T-PAS","Center for Health Policies and Studies","MDA-T-PAS",null,"2018-01-01","2020-12-31","Active","NFM2",null,null,"Center for Health Policies and Studies - MDA-T-PAS - MDA-T-PAS"]
["Mongolia","Ministry of Health of Mongolia - MNG-H-MOH","MNG-H-MOH","Ministry of Health of Mongolia","MNG-H-MOH",null,"2018-01-01","2020-12-31","Active","NFM2",null,null,"Ministry of Health of Mongolia - MNG-H-MOH - MNG-H-MOH"]
["Mongolia","Ministry of Health of Mongolia - MNG-T-MOH","MNG-T-MOH","Ministry of Health of Mongolia","MNG-T-MOH",null,"2018-01-01","2020-12-31","Active","NFM2",null,null,"Ministry of Health of Mongolia - MNG-T-MOH - MNG-T-MOH"]
["Montenegro","Ministry of Health of Montenegro - MNE-H-MoH","MNE-H-MoH","Ministry of Health of Montenegro","MNE-H-MoH",null,"2019-01-01","2021-12-31","Active","NFM2",null,null,"Ministry of Health of Montenegro - MNE-H-MoH - MNE-H-MoH"]
["Morocco","Ministry of Health of the Kingdom of Morocco - MAR-H-MOH","MAR-H-MOH","Ministry of Health of the Kingdom of Morocco","MAR-H-MOH",null,"2018-01-01","2020-12-31","Active","NFM2",null,null,"Ministry of Health of the Kingdom of Morocco - MAR-H-MOH - MAR-H-MOH"]
["Morocco","Ministry of Health of the Kingdom of Morocco - MAR-T-MOH","MAR-T-MOH","Ministry of Health of the Kingdom of Morocco","MAR-T-MOH",null,"2018-01-01","2020-12-31","Active","NFM2",null,null,"Ministry of Health of the Kingdom of Morocco - MAR-T-MOH - MAR-T-MOH"]
["Mozambique","Centro de Colaboração em Saúde - MOZ-C-CCS","MOZ-C-CCS","Centro de Colaboração em Saúde","MOZ-C-CCS",null,"2018-01-01","2020-12-31","Active","NFM2",null,null,"Centro de Colaboração em Saúde - MOZ-C-CCS - MOZ-C-CCS"]
["Mozambique","Fundação para o Desenvolvimento da Comunidade - MOZ-H-FDC","MOZ-H-FDC","Fundação para o Desenvolvimento da Comunidade","MOZ-H-FDC",null,"2018-01-01","2020-12-31","Active","NFM2",null,null,"Fundação para o Desenvolvimento da Comunidade - MOZ-H-FDC - MOZ-H-FDC"]
["Mozambique","Ministry of Health of Mozambique - MOZ-H-MOH","MOZ-H-MOH","Ministry of Health of Mozambique","MOZ-H-MOH",null,"2018-01-01","2020-12-31","Active","NFM2",null,null,"Ministry of Health of Mozambique - MOZ-H-MOH - MOZ-H-MOH"]
["Mozambique","Ministry of Health of Mozambique - MOZ-M-MOH","MOZ-M-MOH","Ministry of Health of Mozambique","MOZ-M-MOH",null,"2018-01-01","2020-12-31","Active","NFM2",null,null,"Ministry of Health of Mozambique - MOZ-M-MOH - MOZ-M-MOH"]
["Mozambique","World Vision Mozambique - MOZ-M-WV","MOZ-M-WV","World Vision Mozambique","MOZ-M-WV",null,"2018-01-01","2020-12-31","Active","NFM2",null,null,"World Vision Mozambique - MOZ-M-WV - MOZ-M-WV"]
["Mozambique","Ministry of Health of Mozambique - MOZ-T-MOH","MOZ-T-MOH","Ministry of Health of Mozambique","MOZ-T-MOH",null,"2018-01-01","2020-12-31","Active","NFM2",null,null,"Ministry of Health of Mozambique - MOZ-T-MOH - MOZ-T-MOH"]
["Multicountry Africa ECSA-HC","East, Central and Southern Africa Health Community - QPA-T-ECSA","QPA-T-ECSA","East, Central and Southern Africa Health Community","QPA-T-ECSA",null,"2019-07-01","2022-06-30","Active","NFM2",null,null,{"$f":"B190&\" - \"&E190","v":"East, Central and Southern Africa Health Community - QPA-T-ECSA - QPA-T-ECSA"}]
["Multicountry Americas EMMIE","Inter American Bank - QRA-M-IDB","QRA-M-IDB","Inter American Bank","QRA-M-IDB",null,"2018-01-01","2023-12-31","Active","NFM2",null,null,"Inter American Bank - QRA-M-IDB - QRA-M-IDB"]
["Multicountry Asia IHAA","India HIV/AIDS Alliance - QSA-H-IHAA","QSA-H-IHAA","India HIV/AIDS Alliance","QSA-H-IHAA",null,"2017-01-01","2020-12-31","Active","RGF",null,null,"India HIV/AIDS Alliance - QSA-H-IHAA - QSA-H-IHAA"]
["Multicountry Caribbean CARICOM-PANCAP","Caribbean Community Secretariat - QRA-H-CARICOM","QRA-H-CARICOM","Caribbean Community Secretariat","QRA-H-CARICOM",null,"2019-10-01","2022-09-30","Active","NFM2",null,null,"Caribbean Community Secretariat - QRA-H-CARICOM - QRA-H-CARICOM"]
["Multicountry Caribbean MCC","Organisation of Eastern Caribbean States - QRB-C-OECS","QRB-C-OECS","Organisation of Eastern Caribbean States","QRB-C-OECS",null,"2019-04-01","2022-03-31","Active","NFM2",null,null,"Organisation of Eastern Caribbean States - QRB-C-OECS - QRB-C-OECS"]
["Multicountry East Asia and Pacific APN","Save the Children Federation, Inc. - QSA-H-SCF","QSA-H-SCF","Save the Children Federation, Inc.","QSA-H-SCF",null,"2018-01-01","2020-12-31","Active","NFM",null,null,"Save the Children Federation, Inc. - QSA-H-SCF - QSA-H-SCF"]
["Multicountry East Asia and Pacific RAI","United Nations Office for Project Services - QSE-M-UNOPS","QSE-M-UNOPS","United Nations Office for Project Services","QSE-M-UNOPS",null,"2018-01-01","2020-12-31","Active","NFM2",null,null,"United Nations Office for Project Services - QSE-M-UNOPS - QSE-M-UNOPS"]
["Multicountry Eastern Africa IGAD","Intergovernmental Authority on Development - QPA-T-IGAD","QPA-T-IGAD","Intergovernmental Authority on Development","QPA-T-IGAD",null,"2019-04-01","2022-03-31","Active","NFM2",null,null,"Intergovernmental Authority on Development - QPA-T-IGAD - QPA-T-IGAD"]
["Multicountry EECA PAS","Center for Health Policies and Studies - QMZ-T-PAS","QMZ-T-PAS","Center for Health Policies and Studies","QMZ-T-PAS",null,"2019-01-01","2021-12-31","Active","NFM2",null,null,"Center for Health Policies and Studies - QMZ-T-PAS - QMZ-T-PAS"]
["Multicountry HIV EECA APH","International Charitable Foundation “Alliance for Public Health” - QMZ-H-AUA","QMZ-H-AUA","International Charitable Foundation “Alliance for Public Health”","QMZ-H-AUA",null,"2019-01-01","2021-12-31","Active","NFM2",null,null,"International Charitable Foundation “Alliance for Public Health” - QMZ-H-AUA - QMZ-H-AUA"]
["Multicountry HIV Latin America ALEP","Humanist Institute for Co-operation with Developing Countries - QRA-H-HIVOS2","QRA-H-HIVOS2","Humanist Institute for Co-operation with Developing Countries","QRA-H-HIVOS2",null,"2019-10-01","2022-09-30","Active","NFM2",null,null,"Humanist Institute for Co-operation with Developing Countries - QRA-H-HIVOS2 - QRA-H-HIVOS2"]
["Multicountry HIV MENA IHAA","Frontline AIDS - QMZ-H-FA","QMZ-H-FA","Frontline AIDS","QMZ-H-FA",null,"2019-01-01","2021-12-31","Active","NFM2",null,null,"Frontline AIDS - QMZ-H-FA - QMZ-H-FA"]
["Multicountry HIV SEA AFAO","Australian Federation Of Aids Organisations, Inc. - QMZ-H-AFAO","QMZ-H-AFAO","Australian Federation Of Aids Organisations, Inc.","QMZ-H-AFAO",null,"2019-01-01","2021-12-31","Active","NFM2",null,null,"Australian Federation Of Aids Organisations, Inc. - QMZ-H-AFAO - QMZ-H-AFAO"]
["Multicountry Middle East MER","International Organization for Migration - QSF-Z-IOM","QSF-Z-IOM","International Organization for Migration","QSF-Z-IOM",null,"2019-01-01","2021-12-31","Active","NFM2",null,null,"International Organization for Migration - QSF-Z-IOM - QSF-Z-IOM"]
["Multicountry Southern Africa E8","Non-Profit Association \"Southern Africa Malaria Elimination Eight Initiative Sectretariat\" - QPA-M-E8S","QPA-M-E8S","Non-Profit Association \"Southern Africa Malaria Elimination Eight Initiative Sectretariat\"","QPA-M-E8S",null,"2019-04-01","2021-09-30","Active","NFM2",null,null,"Non-Profit Association \"Southern Africa Malaria Elimination Eight Initiative Sectretariat\" - QPA-M-E8S - QPA-M-E8S"]
["Multicountry Southern Africa MOSASWA","Lubombo Spatial Development Initiative 2 NPC - QPA-M-LSDI","QPA-M-LSDI","Lubombo Spatial Development Initiative 2 NPC","QPA-M-LSDI",null,"2020-01-01","2022-12-31","Active","NFM2",null,null,"Lubombo Spatial Development Initiative 2 NPC - QPA-M-LSDI - QPA-M-LSDI"]
["Multicountry Southern Africa WHC","Wits Health Consortium (Pty) Ltd - QPA-T-WHC","QPA-T-WHC","Wits Health Consortium (Pty) Ltd","QPA-T-WHC",null,"2018-01-01","2020-12-31","Active","NFM2",null,null,"Wits Health Consortium (Pty) Ltd - QPA-T-WHC - QPA-T-WHC"]
["Multicountry TB Asia UNDP","United Nations Development Programme - QMZ-T-UNDP","QMZ-T-UNDP","United Nations Development Programme","QMZ-T-UNDP",null,"2019-01-01","2021-12-31","Active","NFM2",null,null,"United Nations Development Programme - QMZ-T-UNDP - QMZ-T-UNDP"]
["Multicountry TB Asia UNOPS","United Nations Office for Project Services - QMZ-T-UNOPS","QMZ-T-UNOPS","United Nations Office for Project Services","QMZ-T-UNOPS",null,"2019-01-01","2021-12-31","Active","NFM2",null,null,"United Nations Office for Project Services - QMZ-T-UNOPS - QMZ-T-UNOPS"]
["Multicountry TB LAC PIH","Partners In Health - QRA-T-PIH","QRA-T-PIH","Partners In Health","QRA-T-PIH",null,"2019-07-01","2022-06-30","Active","NFM2",null,null,"Partners In Health - QRA-T-PIH - QRA-T-PIH"]
["Multicountry TB WC Africa NTP/SRL","Programme National contre la Tuberculose de la République du Bénin - QMZ-T-PNT","QMZ-T-PNT","Programme National contre la Tuberculose de la République du Bénin","QMZ-T-PNT",null,"2019-01-01","2021-12-31","Active","NFM2",null,null,"Programme National contre la Tuberculose de la République du Bénin - QMZ-T-PNT - QMZ-T-PNT"]
["Multicountry Western Pacific","United Nations Development Programme - QUA-C-UNDP","QUA-C-UNDP","United Nations Development Programme","QUA-C-UNDP",null,"2018-01-01","2020-12-31","Active","NFM2",null,null,"United Nations Development Programme - QUA-C-UNDP - QUA-C-UNDP"]
["Multicountry Western Pacific","United Nations Development Programme - QUA-M-UNDP","QUA-M-UNDP","United Nations Development Programme","QUA-M-UNDP",null,"2018-01-01","2020-12-31","Active","NFM2",null,null,"United Nations Development Programme - QUA-M-UNDP - QUA-M-UNDP"]
["Myanmar","Save the Children Federation, Inc. - MMR-H-SCF","MMR-H-SCF","Save the Children Federation, Inc.","MMR-H-SCF",null,"2018-01-01","2020-12-31","Active","NFM2",null,null,"Save the Children Federation, Inc. - MMR-H-SCF - MMR-H-SCF"]
["Myanmar","United Nations Office for Project Services - MMR-H-UNOPS","MMR-H-UNOPS","United Nations Office for Project Services","MMR-H-UNOPS",null,"2018-01-01","2020-12-31","Active","NFM2",null,null,"United Nations Office for Project Services - MMR-H-UNOPS - MMR-H-UNOPS"]
["Myanmar","Save the Children Federation, Inc. - MMR-T-SCF","MMR-T-SCF","Save the Children Federation, Inc.","MMR-T-SCF",null,"2018-01-01","2020-12-31","Active","NFM2",null,null,"Save the Children Federation, Inc. - MMR-T-SCF - MMR-T-SCF"]
["Myanmar","United Nations Office for Project Services - MMR-T-UNOPS","MMR-T-UNOPS","United Nations Office for Project Services","MMR-T-UNOPS",null,"2018-01-01","2020-12-31","Active","NFM2",null,null,"United Nations Office for Project Services - MMR-T-UNOPS - MMR-T-UNOPS"]
["Namibia","Ministry of Health and Social Services of Namibia - NAM-C-MOH","NAM-C-MOH","Ministry of Health and Social Services of Namibia","NAM-C-MOH",null,"2018-01-01","2020-12-31","Active","NFM2",null,null,"Ministry of Health and Social Services of Namibia - NAM-C-MOH - NAM-C-MOH"]
["Namibia","Namibia Network of AIDS Service Organizations - NAM-C-NANASO","NAM-C-NANASO","Namibia Network of AIDS Service Organizations","NAM-C-NANASO",null,"2018-01-01","2020-12-31","Active","NFM2",null,null,"Namibia Network of AIDS Service Organizations - NAM-C-NANASO - NAM-C-NANASO"]
["Namibia","Ministry of Health and Social Services of Namibia - NAM-M-MOH","NAM-M-MOH","Ministry of Health and Social Services of Namibia","NAM-M-MOH",null,"2018-01-01","2020-12-31","Active","NFM2",null,null,"Ministry of Health and Social Services of Namibia - NAM-M-MOH - NAM-M-MOH"]
["Nepal","Save the Children Federation, Inc. - NPL-H-SCF","NPL-H-SCF","Save the Children Federation, Inc.","NPL-H-SCF",null,"2018-03-16","2021-03-15","Active","NFM2",null,null,"Save the Children Federation, Inc. - NPL-H-SCF - NPL-H-SCF"]
["Nepal","Save the Children Federation, Inc. - NPL-M-SCF","NPL-M-SCF","Save the Children Federation, Inc.","NPL-M-SCF",null,"2018-03-16","2021-03-15","Active","NFM2",null,null,"Save the Children Federation, Inc. - NPL-M-SCF - NPL-M-SCF"]
["Nepal","Save the Children Federation, Inc. - NPL-T-SCF","NPL-T-SCF","Save the Children Federation, Inc.","NPL-T-SCF",null,"2018-03-16","2021-03-15","Active","NFM2",null,null,"Save the Children Federation, Inc. - NPL-T-SCF - NPL-T-SCF"]
["Nicaragua","World Vision International para Nicaragua - NIC-H-WVI","NIC-H-WVI","World Vision International para Nicaragua","NIC-H-WVI",null,"2019-07-01","2020-12-31","Active","NFM2",null,null,"World Vision International para Nicaragua - NIC-H-WVI - NIC-H-WVI"]
["Nicaragua","Federación Red NICASALUD - NIC-M-REDNICA","NIC-M-REDNICA","Federación Red NICASALUD","NIC-M-REDNICA",null,"2019-01-01","2021-12-31","Active","NFM2",null,null,"Federación Red NICASALUD - NIC-M-REDNICA - NIC-M-REDNICA"]
["Nicaragua","World Vision International para Nicaragua - NIC-T-WVI","NIC-T-WVI","World Vision International para Nicaragua","NIC-T-WVI",null,"2019-07-01","2021-12-31","Active","NFM2",null,null,"World Vision International para Nicaragua - NIC-T-WVI - NIC-T-WVI"]
["Niger","Coordination Intersectorielle de Lutte contre les IST/VIH/SIDA de la République du Niger - NER-H-CNCTRN","NER-H-CNCTRN","Coordination Intersectorielle de Lutte contre les IST/VIH/SIDA de la République du Niger","NER-H-CNCTRN",null,"2018-01-01","2020-12-31","Active","NFM2",null,null,"Coordination Intersectorielle de Lutte contre les IST/VIH/SIDA de la République du Niger - NER-H-CNCTRN - NER-H-CNCTRN"]
["Niger","Catholic Relief Services - United States Conference of Catholic Bishops - NER-M-CRS","NER-M-CRS","Catholic Relief Services - United States Conference of Catholic Bishops","NER-M-CRS",null,"2018-01-01","2020-12-31","Active","NFM2",null,null,"Catholic Relief Services - United States Conference of Catholic Bishops - NER-M-CRS - NER-M-CRS"]
["Niger","Ministry of Public Health Of Niger - NER-T-MSP","NER-T-MSP","Ministry of Public Health Of Niger","NER-T-MSP",null,"2019-01-01","2021-12-31","Active","NFM2",null,null,"Ministry of Public Health Of Niger - NER-T-MSP - NER-T-MSP"]
["Nigeria","Lagos State Ministry of Health - NGA-C-LSMOH","NGA-C-LSMOH","Lagos State Ministry of Health","NGA-C-LSMOH",null,"2019-01-01","2020-12-31","Active","NFM2",null,null,"Lagos State Ministry of Health - NGA-C-LSMOH - NGA-C-LSMOH"]
["Nigeria","Family Health International (FHI360) - NGA-H-FHI360","NGA-H-FHI360","Family Health International (FHI360)","NGA-H-FHI360",null,"2019-07-01","2020-12-31","Active","NFM2",null,null,"Family Health International (FHI360) - NGA-H-FHI360 - NGA-H-FHI360"]
["Nigeria","National Agency for the Control of AIDS - NGA-H-NACA","NGA-H-NACA","National Agency for the Control of AIDS","NGA-H-NACA",null,"2019-07-01","2020-12-31","Active","NFM2",null,null,"National Agency for the Control of AIDS - NGA-H-NACA - NGA-H-NACA"]
["Nigeria","Society For Family Health - NGA-H-SFHNG","NGA-H-SFHNG","Society For Family Health","NGA-H-SFHNG",null,"2019-07-01","2020-12-31","Active","NFM2",null,null,"Society For Family Health - NGA-H-SFHNG - NGA-H-SFHNG"]
["Nigeria","Catholic Relief Services - United States Conference of Catholic Bishops - NGA-M-CRS","NGA-M-CRS","Catholic Relief Services - United States Conference of Catholic Bishops","NGA-M-CRS",null,"2018-01-01","2020-12-31","Active","NFM2",null,null,"Catholic Relief Services - United States Conference of Catholic Bishops - NGA-M-CRS - NGA-M-CRS"]
["Nigeria","National Malaria Elimination Programme of the Federal Ministry of Health of the Federal Republic of Nigeria - NGA-M-NMEP","NGA-M-NMEP","National Malaria Elimination Programme of the Federal Ministry of Health of the Federal Republic of Nigeria","NGA-M-NMEP",null,"2018-01-01","2020-12-31","Active","NFM2",null,null,"National Malaria Elimination Programme of the Federal Ministry of Health of the Federal Republic of Nigeria - NGA-M-NMEP - NGA-M-NMEP"]
["Nigeria","Management Sciences for Health - NGA-S-MSH","NGA-S-MSH","Management Sciences for Health","NGA-S-MSH",null,"2019-04-01","2020-12-31","Active","NFM2",null,null,"Management Sciences for Health - NGA-S-MSH - NGA-S-MSH"]
["Nigeria","Institute of Human Virology Nigeria - NGA-T-IHVN","NGA-T-IHVN","Institute of Human Virology Nigeria","NGA-T-IHVN",null,"2019-01-01","2020-12-31","Active","NFM2",null,null,"Institute of Human Virology Nigeria - NGA-T-IHVN - NGA-T-IHVN"]
["Nigeria","National Tuberculosis & Leprosy Control Programme - NGA-T-NTBLCP","NGA-T-NTBLCP","National Tuberculosis & Leprosy Control Programme","NGA-T-NTBLCP",null,"2019-01-01","2020-12-31","Active","NFM2",null,null,"National Tuberculosis & Leprosy Control Programme - NGA-T-NTBLCP - NGA-T-NTBLCP"]
["Pakistan","Ministry of National Health Services, Regulations and Coordination of Pakistan - PAK-H-NACP","PAK-H-NACP","Ministry of National Health Services, Regulations and Coordination of Pakistan","PAK-H-NACP",null,"2018-01-01","2020-12-31","Active","NFM2",null,null,"Ministry of National Health Services, Regulations and Coordination of Pakistan - PAK-H-NACP - PAK-H-NACP"]
["Pakistan","Nai Zindagi - PAK-H-NZT","PAK-H-NZT","Nai Zindagi","PAK-H-NZT",null,"2018-01-01","2020-12-31","Active","NFM2",null,null,"Nai Zindagi - PAK-H-NZT - PAK-H-NZT"]
["Pakistan","Ministry of National Health Services, Regulations and Coordination of Pakistan - PAK-M-DOMC","PAK-M-DOMC","Ministry of National Health Services, Regulations and Coordination of Pakistan","PAK-M-DOMC",null,"2018-01-01","2020-12-31","Active","NFM2",null,null,"Ministry of National Health Services, Regulations and Coordination of Pakistan - PAK-M-DOMC - PAK-M-DOMC"]
["Pakistan","The Indus Hospital - PAK-M-TIH","PAK-M-TIH","The Indus Hospital","PAK-M-TIH",null,"2018-01-01","2020-12-31","Active","NFM2",null,null,"The Indus Hospital - PAK-M-TIH - PAK-M-TIH"]
["Pakistan","Mercy Corps - PAK-T-MC","PAK-T-MC","Mercy Corps","PAK-T-MC",null,"2018-01-01","2020-12-31","Active","NFM2",null,null,"Mercy Corps - PAK-T-MC - PAK-T-MC"]
["Pakistan","National TB Control Programme Pakistan - PAK-T-NTP","PAK-T-NTP","National TB Control Programme Pakistan","PAK-T-NTP",null,"2018-01-01","2020-12-31","Active","NFM2",null,null,"National TB Control Programme Pakistan - PAK-T-NTP - PAK-T-NTP"]
["Pakistan","The Indus Hospital - PAK-T-TIH","PAK-T-TIH","The Indus Hospital","PAK-T-TIH",null,"2018-01-01","2020-12-31","Active","NFM2",null,null,"The Indus Hospital - PAK-T-TIH - PAK-T-TIH"]
["Panama","United Nations Development Programme - PAN-C-UNDP","PAN-C-UNDP","United Nations Development Programme","PAN-C-UNDP",null,"2019-01-01","2021-12-31","Active","NFM2",null,null,"United Nations Development Programme - PAN-C-UNDP - PAN-C-UNDP"]
["Papua New Guinea","World Vision (PNG) Trust - PNG-C-WV","PNG-C-WV","World Vision (PNG) Trust","PNG-C-WV",null,"2018-01-01","2020-12-31","Active","NFM2",null,null,"World Vision (PNG) Trust - PNG-C-WV - PNG-C-WV"]
["Papua New Guinea","The Rotary Club of Port Moresby Inc. - PNG-M-RAM","PNG-M-RAM","The Rotary Club of Port Moresby Inc.","PNG-M-RAM",null,"2018-01-01","2020-12-31","Active","NFM2",null,null,"The Rotary Club of Port Moresby Inc. - PNG-M-RAM - PNG-M-RAM"]
["Paraguay","Centro de Información y Recursos para el Desarrollo - PRY-H-CIRD","PRY-H-CIRD","Centro de Información y Recursos para el Desarrollo","PRY-H-CIRD",null,"2018-03-01","2021-02-28","Active","NFM2",null,null,"Centro de Información y Recursos para el Desarrollo - PRY-H-CIRD - PRY-H-CIRD"]
["Paraguay","Alter Vida - Centro de Estudios y Formación para el Ecodesarrollo - PRY-T-AV","PRY-T-AV","Alter Vida - Centro de Estudios y Formación para el Ecodesarrollo","PRY-T-AV",null,"2019-01-01","2021-12-31","Active","NFM2",null,null,"Alter Vida - Centro de Estudios y Formación para el Ecodesarrollo - PRY-T-AV - PRY-T-AV"]
["Peru","Care Peru - PER-H-CARE","PER-H-CARE","Care Peru","PER-H-CARE",null,"2019-07-01","2022-06-30","Active","NFM2",null,null,"Care Peru - PER-H-CARE - PER-H-CARE"]
["Peru","Socios en Salud sucursal Peru - PER-T-SES","PER-T-SES","Socios en Salud sucursal Peru","PER-T-SES",null,"2019-07-01","2022-06-30","Active","NFM2",null,null,"Socios en Salud sucursal Peru - PER-T-SES - PER-T-SES"]
["Philippines","Save the Children Federation, Inc. - PHL-H-SC","PHL-H-SC","Save the Children Federation, Inc.","PHL-H-SC",null,"2018-01-01","2020-12-31","Active","NFM2",null,null,"Save the Children Federation, Inc. - PHL-H-SC - PHL-H-SC"]
["Philippines","Pilipinas Shell Foundation, Inc. - PHL-M-PSFI","PHL-M-PSFI","Pilipinas Shell Foundation, Inc.","PHL-M-PSFI",null,"2021-01-01","2023-12-31","Grant Making","NFM3",null,null,{"$f":"B253&\" - \"&E253","v":"Pilipinas Shell Foundation, Inc. - PHL-M-PSFI - PHL-M-PSFI"}]
["Philippines","Philippine Business for Social Progress - PHL-T-PBSP","PHL-T-PBSP","Philippine Business for Social Progress","PHL-T-PBSP",null,"2018-01-01","2020-12-31","Active","NFM2",null,null,"Philippine Business for Social Progress - PHL-T-PBSP - PHL-T-PBSP"]
["Romania","Ministry of Health of Romania - ROU-T-MOH","ROU-T-MOH","Ministry of Health of Romania","ROU-T-MOH",null,"2018-10-01","2021-03-31","Active","NFM2",null,null,"Ministry of Health of Romania - ROU-T-MOH - ROU-T-MOH"]
["Rwanda","Ministry of Health of the Republic of Rwanda - RWA-H-MOH","RWA-H-MOH","Ministry of Health of the Republic of Rwanda","RWA-H-MOH",null,"2018-01-01","2021-06-30","Active","NFM2",null,null,"Ministry of Health of the Republic of Rwanda - RWA-H-MOH - RWA-H-MOH"]
["Rwanda","Ministry of Health of the Republic of Rwanda - RWA-M-MOH","RWA-M-MOH","Ministry of Health of the Republic of Rwanda","RWA-M-MOH",null,"2018-01-01","2021-06-30","Active","NFM2",null,null,"Ministry of Health of the Republic of Rwanda - RWA-M-MOH - RWA-M-MOH"]
["Rwanda","Ministry of Health of the Republic of Rwanda - RWA-T-MOH","RWA-T-MOH","Ministry of Health of the Republic of Rwanda","RWA-T-MOH",null,"2018-01-01","2021-06-30","Active","NFM2",null,null,"Ministry of Health of the Republic of Rwanda - RWA-T-MOH - RWA-T-MOH"]
["Sao Tome and Principe","United Nations Development Programme - STP-Z-UNDP","STP-Z-UNDP","United Nations Development Programme","STP-Z-UNDP",null,"2018-01-01","2020-12-31","Active","NFM2",null,null,"United Nations Development Programme - STP-Z-UNDP - STP-Z-UNDP"]
["Senegal","Alliance Nationale Contre le Sida - Sénégal - SEN-H-ANCS","SEN-H-ANCS","Alliance Nationale Contre le Sida - Sénégal","SEN-H-ANCS",null,"2018-01-01","2020-12-31","Active","NFM2",null,null,"Alliance Nationale Contre le Sida - Sénégal - SEN-H-ANCS - SEN-H-ANCS"]
["Senegal","Conseil National de Lutte contre le SIDA de la République du Sénégal - SEN-H-CNLS","SEN-H-CNLS","Conseil National de Lutte contre le SIDA de la République du Sénégal","SEN-H-CNLS",null,"2018-01-01","2020-12-31","Active","NFM2",null,null,"Conseil National de Lutte contre le SIDA de la République du Sénégal - SEN-H-CNLS - SEN-H-CNLS"]
["Senegal","Ministry of Health and Social Action of the Republic of Senegal - SEN-M-PNLP","SEN-M-PNLP","Ministry of Health and Social Action of the Republic of Senegal","SEN-M-PNLP",null,"2018-01-01","2020-12-31","Active","NFM2",null,null,"Ministry of Health and Social Action of the Republic of Senegal - SEN-M-PNLP - SEN-M-PNLP"]
["Senegal","Ministry of Health and Social Action of the Republic of Senegal - SEN-Z-MOH","SEN-Z-MOH","Ministry of Health and Social Action of the Republic of Senegal","SEN-Z-MOH",null,"2018-01-01","2020-12-31","Active","NFM2",null,null,"Ministry of Health and Social Action of the Republic of Senegal - SEN-Z-MOH - SEN-Z-MOH"]
["Serbia","Ministry of Health of Republic of Serbia - SRB-H-MOH","SRB-H-MOH","Ministry of Health of Republic of Serbia","SRB-H-MOH",null,"2019-07-01","2022-06-30","Active","NFM2",null,null,"Ministry of Health of Republic of Serbia - SRB-H-MOH - SRB-H-MOH"]
["Sierra Leone","National HIV/AIDS Secretariat - SLE-H-NAS","SLE-H-NAS","National HIV/AIDS Secretariat","SLE-H-NAS",null,"2018-01-01","2020-12-31","Active","NFM2",null,null,"National HIV/AIDS Secretariat - SLE-H-NAS - SLE-H-NAS"]
["Sierra Leone","Catholic Relief Services - United States Conference of Catholic Bishops - SLE-M-CRS","SLE-M-CRS","Catholic Relief Services - United States Conference of Catholic Bishops","SLE-M-CRS",null,"2018-07-01","2021-06-30","Active","NFM2",null,null,"Catholic Relief Services - United States Conference of Catholic Bishops - SLE-M-CRS - SLE-M-CRS"]
["Sierra Leone","Ministry of Health and Sanitation of Sierra Leone - SLE-Z-MOHS","SLE-Z-MOHS","Ministry of Health and Sanitation of Sierra Leone","SLE-Z-MOHS",null,"2018-07-01","2021-06-30","Active","NFM2",null,null,"Ministry of Health and Sanitation of Sierra Leone - SLE-Z-MOHS - SLE-Z-MOHS"]
["Solomon Islands","Solomon Islands Ministry of Health and Medical Services - SLB-C-MOH","SLB-C-MOH","Solomon Islands Ministry of Health and Medical Services","SLB-C-MOH",null,"2018-01-01","2020-12-31","Active","NFM2",null,null,"Solomon Islands Ministry of Health and Medical Services - SLB-C-MOH - SLB-C-MOH"]
["Solomon Islands","Solomon Islands Ministry of Health and Medical Services - SLB-M-MHMS","SLB-M-MHMS","Solomon Islands Ministry of Health and Medical Services","SLB-M-MHMS",null,"2018-01-01","2020-12-31","Active","NFM2",null,null,"Solomon Islands Ministry of Health and Medical Services - SLB-M-MHMS - SLB-M-MHMS"]
["Somalia","United Nations Children's Fund - SOM-H-UNICEF","SOM-H-UNICEF","United Nations Children's Fund","SOM-H-UNICEF",null,"2018-01-01","2020-12-31","Active","NFM2",null,null,"United Nations Children's Fund - SOM-H-UNICEF - SOM-H-UNICEF"]
["Somalia","United Nations Children's Fund - SOM-M-UNICEF","SOM-M-UNICEF","United Nations Children's Fund","SOM-M-UNICEF",null,"2018-01-01","2020-12-31","Active","NFM2",null,null,"United Nations Children's Fund - SOM-M-UNICEF - SOM-M-UNICEF"]
["Somalia","World Vision International - SOM-T-WV","SOM-T-WV","World Vision International","SOM-T-WV",null,"2018-01-01","2020-12-31","Active","NFM2",null,null,"World Vision International - SOM-T-WV - SOM-T-WV"]
["South Africa","AIDS Foundation South Africa - ZAF-C-AFSA","ZAF-C-AFSA","AIDS Foundation South Africa","ZAF-C-AFSA",null,"2019-04-01","2022-03-31","Active","NFM2",null,null,"AIDS Foundation South Africa - ZAF-C-AFSA - ZAF-C-AFSA"]
["South Africa","Beyond Zero NPC - ZAF-C-BZ","ZAF-C-BZ","Beyond Zero NPC","ZAF-C-BZ",null,"2019-04-01","2022-03-31","Active","NFM2",null,null,"Beyond Zero NPC - ZAF-C-BZ - ZAF-C-BZ"]
["South Africa","Networking HIV, AIDS Community of South Africa NPC - ZAF-C-NACOSA","ZAF-C-NACOSA","Networking HIV, AIDS Community of South Africa NPC","ZAF-C-NACOSA",null,"2019-04-01","2022-03-31","Active","NFM2",null,null,"Networking HIV, AIDS Community of South Africa NPC - ZAF-C-NACOSA - ZAF-C-NACOSA"]
["South Africa","National Department of Health of the Republic of South Africa - ZAF-C-NDOH","ZAF-C-NDOH","National Department of Health of the Republic of South Africa","ZAF-C-NDOH",null,"2019-04-01","2022-03-31","Active","NFM2",null,null,"National Department of Health of the Republic of South Africa - ZAF-C-NDOH - ZAF-C-NDOH"]
["South Sudan","United Nations Development Programme - SSD-H-UNDP","SSD-H-UNDP","United Nations Development Programme","SSD-H-UNDP",null,"2018-01-01","2020-12-31","Active","NFM2",null,null,"United Nations Development Programme - SSD-H-UNDP - SSD-H-UNDP"]
["South Sudan","Population Services International - SSD-M-PSI","SSD-M-PSI","Population Services International","SSD-M-PSI",null,"2018-01-01","2020-12-31","Active","NFM2",null,null,"Population Services International - SSD-M-PSI - SSD-M-PSI"]
["South Sudan","United Nations Development Programme - SSD-T-UNDP","SSD-T-UNDP","United Nations Development Programme","SSD-T-UNDP",null,"2018-01-01","2020-12-31","Active","NFM2",null,null,"United Nations Development Programme - SSD-T-UNDP - SSD-T-UNDP"]
["Sri Lanka","The Family Planning Association of Sri Lanka - LKA-H-FPA","LKA-H-FPA","The Family Planning Association of Sri Lanka","LKA-H-FPA",null,"2019-01-01","2021-12-31","Active","NFM2",null,null,"The Family Planning Association of Sri Lanka - LKA-H-FPA - LKA-H-FPA"]
["Sri Lanka","Ministry of Health, Nutrition & Indigenous Medicine of the Democratic Socialist Republic of Sri Lanka - LKA-H-MOH","LKA-H-MOH","Ministry of Health, Nutrition & Indigenous Medicine of the Democratic Socialist Republic of Sri Lanka","LKA-H-MOH",null,"2019-01-01","2021-12-31","Active","NFM2",null,null,"Ministry of Health, Nutrition & Indigenous Medicine of the Democratic Socialist Republic of Sri Lanka - LKA-H-MOH - LKA-H-MOH"]
["Sri Lanka","Ministry of Health, Nutrition & Indigenous Medicine of the Democratic Socialist Republic of Sri Lanka - LKA-M-MOH","LKA-M-MOH","Ministry of Health, Nutrition & Indigenous Medicine of the Democratic Socialist Republic of Sri Lanka","LKA-M-MOH",null,"2019-01-01","2021-12-31","Active","NFM2",null,null,"Ministry of Health, Nutrition & Indigenous Medicine of the Democratic Socialist Republic of Sri Lanka - LKA-M-MOH - LKA-M-MOH"]
["Sri Lanka","Ministry of Health, Nutrition & Indigenous Medicine of the Democratic Socialist Republic of Sri Lanka - LKA-T-MOH","LKA-T-MOH","Ministry of Health, Nutrition & Indigenous Medicine of the Democratic Socialist Republic of Sri Lanka","LKA-T-MOH",null,"2019-01-01","2021-12-31","Active","NFM2",null,null,"Ministry of Health, Nutrition & Indigenous Medicine of the Democratic Socialist Republic of Sri Lanka - LKA-T-MOH - LKA-T-MOH"]
["Sudan","United Nations Development Programme - SDN-H-UNDP","SDN-H-UNDP","United Nations Development Programme","SDN-H-UNDP",null,"2018-01-01","2020-12-31","Active","NFM2",null,null,"United Nations Development Programme - SDN-H-UNDP - SDN-H-UNDP"]
["Sudan","Federal Ministry of Health of the Republic of Sudan - SDN-M-MOH","SDN-M-MOH","Federal Ministry of Health of the Republic of Sudan","SDN-M-MOH",null,"2018-01-01","2020-12-31","Active","NFM2",null,null,"Federal Ministry of Health of the Republic of Sudan - SDN-M-MOH - SDN-M-MOH"]
["Sudan","United Nations Development Programme - SDN-T-UNDP","SDN-T-UNDP","United Nations Development Programme","SDN-T-UNDP",null,"2018-01-01","2020-12-31","Active","NFM2",null,null,"United Nations Development Programme - SDN-T-UNDP - SDN-T-UNDP"]
["Suriname","Ministry of Health of the Republic of Suriname - SUR-C-MOH","SUR-C-MOH","Ministry of Health of the Republic of Suriname","SUR-C-MOH",null,"2019-01-01","2021-12-31","Active","NFM2",null,null,"Ministry of Health of the Republic of Suriname - SUR-C-MOH - SUR-C-MOH"]
["Suriname","Ministry of Health of the Republic of Suriname - SUR-M-MoH","SUR-M-MoH","Ministry of Health of the Republic of Suriname","SUR-M-MoH",null,"2018-04-01","2021-03-31","Active","NFM2",null,null,"Ministry of Health of the Republic of Suriname - SUR-M-MoH - SUR-M-MoH"]
["Tajikistan","United Nations Development Programme - TJK-H-UNDP","TJK-H-UNDP","United Nations Development Programme","TJK-H-UNDP",null,"2018-01-01","2020-12-31","Active","NFM2",null,null,"United Nations Development Programme - TJK-H-UNDP - TJK-H-UNDP"]
["Tajikistan","Republican Center of Tuberculosis Control - Tajikistan - TJK-T-RCTC","TJK-T-RCTC","Republican Center of Tuberculosis Control - Tajikistan","TJK-T-RCTC",null,"2018-04-01","2021-03-31","Active","NFM2",null,null,"Republican Center of Tuberculosis Control - Tajikistan - TJK-T-RCTC - TJK-T-RCTC"]
["Tanzania (United Republic)","Amref Health Africa, Tanzania - TZA-C-Amref","TZA-C-Amref","Amref Health Africa, Tanzania","TZA-C-Amref",null,"2018-01-01","2020-12-31","Active","NFM2",null,null,"Amref Health Africa, Tanzania - TZA-C-Amref - TZA-C-Amref"]
["Tanzania (United Republic)","Ministry of Finance and Planning of the United Republic of Tanzania - TZA-H-MOF","TZA-H-MOF","Ministry of Finance and Planning of the United Republic of Tanzania","TZA-H-MOF",null,"2018-01-01","2020-12-31","Active","NFM2",null,null,"Ministry of Finance and Planning of the United Republic of Tanzania - TZA-H-MOF - TZA-H-MOF"]
["Tanzania (United Republic)","Ministry of Finance and Planning of the United Republic of Tanzania - TZA-M-MOFP","TZA-M-MOFP","Ministry of Finance and Planning of the United Republic of Tanzania","TZA-M-MOFP",null,"2018-01-01","2020-12-31","Active","NFM2",null,null,"Ministry of Finance and Planning of the United Republic of Tanzania - TZA-M-MOFP - TZA-M-MOFP"]
["Tanzania (United Republic)","Ministry of Finance and Planning of the United Republic of Tanzania - TZA-T-MOF","TZA-T-MOF","Ministry of Finance and Planning of the United Republic of Tanzania","TZA-T-MOF",null,"2018-01-01","2020-12-31","Active","NFM2",null,null,"Ministry of Finance and Planning of the United Republic of Tanzania - TZA-T-MOF - TZA-T-MOF"]
["Thailand","Department of Disease Control, Ministry of Public Health of the Royal Government of Thailand - THA-C-DDC","THA-C-DDC","Department of Disease Control, Ministry of Public Health of the Royal Government of Thailand","THA-C-DDC",null,"2018-01-01","2020-12-31","Active","NFM2",null,null,"Department of Disease Control, Ministry of Public Health of the Royal Government of Thailand - THA-C-DDC - THA-C-DDC"]
["Thailand","Raks Thai Foundation - THA-C-RTF","THA-C-RTF","Raks Thai Foundation","THA-C-RTF",null,"2018-01-01","2020-12-31","Active","NFM2",null,null,"Raks Thai Foundation - THA-C-RTF - THA-C-RTF"]
["Timor-Leste","Ministry of Health of the Democratic Republic of Timor-Leste - TLS-H-MOH","TLS-H-MOH","Ministry of Health of the Democratic Republic of Timor-Leste","TLS-H-MOH",null,"2018-01-01","2020-12-31","Active","NFM2",null,null,"Ministry of Health of the Democratic Republic of Timor-Leste - TLS-H-MOH - TLS-H-MOH"]
["Timor-Leste","Ministry of Health of the Democratic Republic of Timor-Leste - TLS-M-MOH","TLS-M-MOH","Ministry of Health of the Democratic Republic of Timor-Leste","TLS-M-MOH",null,"2018-01-01","2020-12-31","Active","NFM2",null,null,"Ministry of Health of the Democratic Republic of Timor-Leste - TLS-M-MOH - TLS-M-MOH"]
["Timor-Leste","Ministry of Health of the Democratic Republic of Timor-Leste - TLS-T-MOH","TLS-T-MOH","Ministry of Health of the Democratic Republic of Timor-Leste","TLS-T-MOH",null,"2018-01-01","2020-12-31","Active","NFM2",null,null,"Ministry of Health of the Democratic Republic of Timor-Leste - TLS-T-MOH - TLS-T-MOH"]
["Togo","Primature de la République Togolaise - TGO-H-PMT","TGO-H-PMT","Primature de la République Togolaise","TGO-H-PMT",null,"2018-01-01","2020-12-31","Active","NFM2",null,null,"Primature de la République Togolaise - TGO-H-PMT - TGO-H-PMT"]
["Togo","Primature de la République Togolaise - TGO-M-PMT","TGO-M-PMT","Primature de la République Togolaise","TGO-M-PMT",null,"2018-01-01","2020-12-31","Active","NFM2",null,null,"Primature de la République Togolaise - TGO-M-PMT - TGO-M-PMT"]
["Togo","Primature de la République Togolaise - TGO-T-PMT","TGO-T-PMT","Primature de la République Togolaise","TGO-T-PMT",null,"2018-01-01","2020-12-31","Active","NFM2",null,null,"Primature de la République Togolaise - TGO-T-PMT - TGO-T-PMT"]
["Tunisia","Office National de la Famille et de la Population de la République de Tunisie - TUN-H-ONFP","TUN-H-ONFP","Office National de la Famille et de la Population de la République de Tunisie","TUN-H-ONFP",null,"2019-01-01","2021-12-31","Active","NFM2",null,null,"Office National de la Famille et de la Population de la République de Tunisie - TUN-H-ONFP - TUN-H-ONFP"]
["Turkmenistan","United Nations Development Programme - TKM-T-UNDP","TKM-T-UNDP","United Nations Development Programme","TKM-T-UNDP",null,"2018-07-01","2021-06-30","Active","NFM2",null,null,"United Nations Development Programme - TKM-T-UNDP - TKM-T-UNDP"]
["Uganda","The AIDS Support Organisation (Uganda) Limited - UGA-C-TASO","UGA-C-TASO","The AIDS Support Organisation (Uganda) Limited","UGA-C-TASO",null,"2018-01-01","2020-12-31","Active","NFM2",null,null,"The AIDS Support Organisation (Uganda) Limited - UGA-C-TASO - UGA-C-TASO"]
["Uganda","Ministry of Finance, Planning and Economic Development of the Republic of Uganda - UGA-H-MoFPED","UGA-H-MoFPED","Ministry of Finance, Planning and Economic Development of the Republic of Uganda","UGA-H-MoFPED",null,"2018-01-01","2020-12-31","Active","NFM2",null,null,"Ministry of Finance, Planning and Economic Development of the Republic of Uganda - UGA-H-MoFPED - UGA-H-MoFPED"]
["Uganda","Ministry of Finance, Planning and Economic Development of the Republic of Uganda - UGA-M-MoFPED","UGA-M-MoFPED","Ministry of Finance, Planning and Economic Development of the Republic of Uganda","UGA-M-MoFPED",null,"2018-01-01","2020-12-31","Active","NFM2",null,null,"Ministry of Finance, Planning and Economic Development of the Republic of Uganda - UGA-M-MoFPED - UGA-M-MoFPED"]
["Uganda","The AIDS Support Organisation (Uganda) Limited - UGA-M-TASO","UGA-M-TASO","The AIDS Support Organisation (Uganda) Limited","UGA-M-TASO",null,"2018-01-01","2020-12-31","Active","NFM2",null,null,"The AIDS Support Organisation (Uganda) Limited - UGA-M-TASO - UGA-M-TASO"]
["Uganda","Ministry of Finance, Planning and Economic Development of the Republic of Uganda - UGA-T-MoFPED","UGA-T-MoFPED","Ministry of Finance, Planning and Economic Development of the Republic of Uganda","UGA-T-MoFPED",null,"2018-01-01","2020-12-31","Active","NFM2",null,null,"Ministry of Finance, Planning and Economic Development of the Republic of Uganda - UGA-T-MoFPED - UGA-T-MoFPED"]
["Ukraine","International Charitable Foundation “Alliance for Public Health” - UKR-C-AUA","UKR-C-AUA","International Charitable Foundation “Alliance for Public Health”","UKR-C-AUA",null,"2018-01-01","2020-12-31","Active","NFM2",null,null,"International Charitable Foundation “Alliance for Public Health” - UKR-C-AUA - UKR-C-AUA"]
["Ukraine","Charitable Organization \"All-Ukrainian Network of People Living with HIV/AIDS\" - UKR-C-AUN","UKR-C-AUN","Charitable Organization \"All-Ukrainian Network of People Living with HIV/AIDS\"","UKR-C-AUN",null,"2018-01-01","2020-12-31","Active","NFM2",null,null,"Charitable Organization \"All-Ukrainian Network of People Living with HIV/AIDS\" - UKR-C-AUN - UKR-C-AUN"]
["Ukraine","State Institution \"Public Health Center of the Ministry of Health of Ukraine\" - UKR-C-PHC","UKR-C-PHC","State Institution \"Public Health Center of the Ministry of Health of Ukraine\"","UKR-C-PHC",null,"2018-01-01","2020-12-31","Active","NFM2",null,null,"State Institution \"Public Health Center of the Ministry of Health of Ukraine\" - UKR-C-PHC - UKR-C-PHC"]
["Uzbekistan","Republican Center to Fight AIDS - UZB-H-RAC","UZB-H-RAC","Republican Center to Fight AIDS","UZB-H-RAC",null,"2018-07-01","2021-06-30","Active","NFM2",null,null,"Republican Center to Fight AIDS - UZB-H-RAC - UZB-H-RAC"]
["Uzbekistan","Republican DOTS Center of the Republic of Uzbekistan - UZB-T-RDC","UZB-T-RDC","Republican DOTS Center of the Republic of Uzbekistan","UZB-T-RDC",null,"2018-07-01","2021-06-30","Active","NFM2",null,null,"Republican DOTS Center of the Republic of Uzbekistan - UZB-T-RDC - UZB-T-RDC"]
["Viet Nam","Viet Nam Authority of HIV/AIDS Control - VNM-H-VAAC","VNM-H-VAAC","Viet Nam Authority of HIV/AIDS Control","VNM-H-VAAC",null,"2018-01-01","2020-12-31","Active","NFM2",null,null,"Viet Nam Authority of HIV/AIDS Control - VNM-H-VAAC - VNM-H-VAAC"]
["Viet Nam","Viet Nam Union of Science and Technology Associations - VNM-H-VUSTA","VNM-H-VUSTA","Viet Nam Union of Science and Technology Associations","VNM-H-VUSTA",null,"2018-01-01","2020-12-31","Active","NFM2",null,null,"Viet Nam Union of Science and Technology Associations - VNM-H-VUSTA - VNM-H-VUSTA"]
["Viet Nam","Viet Nam National Lung Hospital - VNM-T-NTP","VNM-T-NTP","Viet Nam National Lung Hospital","VNM-T-NTP",null,"2018-01-01","2020-12-31","Active","NFM2",null,null,{"$f":"B317&\" - \"&E317","v":"Viet Nam National Lung Hospital - VNM-T-NTP - VNM-T-NTP"}]
["Zambia","Churches Health Association of Zambia - ZMB-C-CHAZ","ZMB-C-CHAZ","Churches Health Association of Zambia","ZMB-C-CHAZ",null,"2018-01-01","2020-12-31","Active","NFM2",null,null,"Churches Health Association of Zambia - ZMB-C-CHAZ - ZMB-C-CHAZ"]
["Zambia","Ministry of Health of the Republic of Zambia - ZMB-C-MOH","ZMB-C-MOH","Ministry of Health of the Republic of Zambia","ZMB-C-MOH",null,"2018-01-01","2020-12-31","Active","NFM2",null,null,"Ministry of Health of the Republic of Zambia - ZMB-C-MOH - ZMB-C-MOH"]
["Zambia","Churches Health Association of Zambia - ZMB-M-CHAZ","ZMB-M-CHAZ","Churches Health Association of Zambia","ZMB-M-CHAZ",null,"2018-01-01","2020-12-31","Active","NFM2",null,null,"Churches Health Association of Zambia - ZMB-M-CHAZ - ZMB-M-CHAZ"]
["Zambia","Ministry of Health of the Republic of Zambia - ZMB-M-MOH","ZMB-M-MOH","Ministry of Health of the Republic of Zambia","ZMB-M-MOH",null,"2018-01-01","2020-12-31","Active","NFM2",null,null,"Ministry of Health of the Republic of Zambia - ZMB-M-MOH - ZMB-M-MOH"]
["Zanzibar","Ministry of Health of the Revolutionary Government of Zanzibar - QNB-C-MOH","QNB-C-MOH","Ministry of Health of the Revolutionary Government of Zanzibar","QNB-C-MOH",null,"2018-01-01","2020-12-31","Active","NFM2",null,null,"Ministry of Health of the Revolutionary Government of Zanzibar - QNB-C-MOH - QNB-C-MOH"]
["Zanzibar","Ministry of Health of the Revolutionary Government of Zanzibar - QNB-M-MoH","QNB-M-MoH","Ministry of Health of the Revolutionary Government of Zanzibar","QNB-M-MoH",null,"2018-01-01","2020-12-31","Active","NFM2",null,null,"Ministry of Health of the Revolutionary Government of Zanzibar - QNB-M-MoH - QNB-M-MoH"]
["Zimbabwe","United Nations Development Programme - ZWE-H-UNDP","ZWE-H-UNDP","United Nations Development Programme","ZWE-H-UNDP",null,"2018-01-01","2020-12-31","Active","NFM2",null,null,"United Nations Development Programme - ZWE-H-UNDP - ZWE-H-UNDP"]
["Zimbabwe","The Ministry of Health and Child Care of the Republic of Zimbabwe - ZWE-M-MOHCC","ZWE-M-MOHCC","The Ministry of Health and Child Care of the Republic of Zimbabwe","ZWE-M-MOHCC",null,"2018-01-01","2020-12-31","Active","NFM2",null,null,"The Ministry of Health and Child Care of the Republic of Zimbabwe - ZWE-M-MOHCC - ZWE-M-MOHCC"]
["Zimbabwe","The Ministry of Health and Child Care of the Republic of Zimbabwe - ZWE-T-MOHCC","ZWE-T-MOHCC","The Ministry of Health and Child Care of the Republic of Zimbabwe","ZWE-T-MOHCC",null,"2018-01-01","2020-12-31","Active","NFM2",null,null,"The Ministry of Health and Child Care of the Republic of Zimbabwe - ZWE-T-MOHCC - ZWE-T-MOHCC"]